Body Name,Body,Service Area Categorisation,Service Division Categorisation,Responsible Unit,Expenses Type,Detailed Expenses Type,Payment Date,Transaction Number,Payment Amount,Supplier Type,Supplier Name,Supplier Id
Portsmouth City Council,PCC,Highways and Transport Services,"Airports, Harbours and Toll Facilities",Portsmouth International Port,Supplies and Services,Communications and computing,19-Apr-23,6712723,-9,SUPPLIER,SOFTCAT LIMITED,300000020457809
Portsmouth City Council,PCC,Costs below Net Cost of Services,Trading,Regeneration,Premises-Related Expenditure,Rates,28-Apr-23,6714855,"2,876.00",OTHER LOCAL AUTHORITY,LEEDS CITY COUNCIL,300000020461628
Portsmouth City Council,PCC,Costs below Net Cost of Services,Trading,Regeneration,Premises-Related Expenditure,Rates,28-Apr-23,6715000,130,SUPPLIER,MANCHESTER CITY COUNCIL,300000112662644
Portsmouth City Council,PCC,Costs below Net Cost of Services,Trading,Regeneration,Premises-Related Expenditure,Rates,28-Apr-23,6715000,430,SUPPLIER,MANCHESTER CITY COUNCIL,300000112662644
Portsmouth City Council,PCC,Children's and Education Services,Safeguarding Children and Young Peoples Services,Children's Services and Education,Third Party Payments,Other establishments,03-Apr-23,6710191,-941,SUPPLIER,LILIAN DAVIS GROUP LTD,300000020467263
Portsmouth City Council,PCC,Children's and Education Services,Safeguarding Children and Young Peoples Services,Children's Services and Education,Third Party Payments,Other establishments,03-Apr-23,6710191,-10,SUPPLIER,LILIAN DAVIS GROUP LTD,300000020467263
Portsmouth City Council,PCC,Children's and Education Services,Safeguarding Children and Young Peoples Services,Children's Services and Education,Third Party Payments,Other establishments,03-Apr-23,6710191,-10,SUPPLIER,LILIAN DAVIS GROUP LTD,300000020467263
Portsmouth City Council,PCC,Children's and Education Services,Safeguarding Children and Young Peoples Services,Children's Services and Education,Third Party Payments,Other establishments,03-Apr-23,6710191,-10,SUPPLIER,LILIAN DAVIS GROUP LTD,300000020467263
Portsmouth City Council,PCC,Children's and Education Services,Safeguarding Children and Young Peoples Services,Children's Services and Education,Third Party Payments,Other establishments,03-Apr-23,6710191,-8.57,SUPPLIER,LILIAN DAVIS GROUP LTD,300000020467263
Portsmouth City Council,PCC,Children's and Education Services,Safeguarding Children and Young Peoples Services,Children's Services and Education,Third Party Payments,Other establishments,03-Apr-23,6710191,-5.71,SUPPLIER,LILIAN DAVIS GROUP LTD,300000020467263
Portsmouth City Council,PCC,Children's and Education Services,Safeguarding Children and Young Peoples Services,Children's Services and Education,Third Party Payments,Other establishments,03-Apr-23,6710191,71.43,SUPPLIER,LILIAN DAVIS GROUP LTD,300000020467263
Portsmouth City Council,PCC,Children's and Education Services,Safeguarding Children and Young Peoples Services,Children's Services and Education,Third Party Payments,Other establishments,03-Apr-23,6710191,107.14,SUPPLIER,LILIAN DAVIS GROUP LTD,300000020467263
Portsmouth City Council,PCC,Children's and Education Services,Safeguarding Children and Young Peoples Services,Children's Services and Education,Third Party Payments,Other establishments,03-Apr-23,6710191,125,SUPPLIER,LILIAN DAVIS GROUP LTD,300000020467263
Portsmouth City Council,PCC,Children's and Education Services,Safeguarding Children and Young Peoples Services,Children's Services and Education,Third Party Payments,Other establishments,03-Apr-23,6710191,125,SUPPLIER,LILIAN DAVIS GROUP LTD,300000020467263
Portsmouth City Council,PCC,Children's and Education Services,Safeguarding Children and Young Peoples Services,Children's Services and Education,Third Party Payments,Other establishments,03-Apr-23,6710191,125,SUPPLIER,LILIAN DAVIS GROUP LTD,300000020467263
Portsmouth City Council,PCC,Children's and Education Services,Safeguarding Children and Young Peoples Services,Children's Services and Education,Third Party Payments,Other establishments,03-Apr-23,6710191,220,SUPPLIER,LILIAN DAVIS GROUP LTD,300000020467263
Portsmouth City Council,PCC,Children's and Education Services,Safeguarding Children and Young Peoples Services,Children's Services and Education,Third Party Payments,Other establishments,03-Apr-23,6710191,330,SUPPLIER,LILIAN DAVIS GROUP LTD,300000020467263
Portsmouth City Council,PCC,Children's and Education Services,Safeguarding Children and Young Peoples Services,Children's Services and Education,Third Party Payments,Other establishments,03-Apr-23,6710191,385,SUPPLIER,LILIAN DAVIS GROUP LTD,300000020467263
Portsmouth City Council,PCC,Children's and Education Services,Safeguarding Children and Young Peoples Services,Children's Services and Education,Third Party Payments,Other establishments,03-Apr-23,6710191,385,SUPPLIER,LILIAN DAVIS GROUP LTD,300000020467263
Portsmouth City Council,PCC,Children's and Education Services,Safeguarding Children and Young Peoples Services,Children's Services and Education,Third Party Payments,Other establishments,03-Apr-23,6710191,385,SUPPLIER,LILIAN DAVIS GROUP LTD,300000020467263
Portsmouth City Council,PCC,Children's and Education Services,Safeguarding Children and Young Peoples Services,Children's Services and Education,Third Party Payments,Other establishments,03-Apr-23,6710191,-872.6,SUPPLIER,LILIAN DAVIS GROUP LTD,300000020467263
Portsmouth City Council,PCC,Children's and Education Services,Safeguarding Children and Young Peoples Services,Children's Services and Education,Third Party Payments,Other establishments,03-Apr-23,6710191,-10,SUPPLIER,LILIAN DAVIS GROUP LTD,300000020467263
Portsmouth City Council,PCC,Children's and Education Services,Safeguarding Children and Young Peoples Services,Children's Services and Education,Third Party Payments,Other establishments,03-Apr-23,6710191,-10,SUPPLIER,LILIAN DAVIS GROUP LTD,300000020467263
Portsmouth City Council,PCC,Children's and Education Services,Safeguarding Children and Young Peoples Services,Children's Services and Education,Third Party Payments,Other establishments,03-Apr-23,6710191,-10,SUPPLIER,LILIAN DAVIS GROUP LTD,300000020467263
Portsmouth City Council,PCC,Children's and Education Services,Safeguarding Children and Young Peoples Services,Children's Services and Education,Third Party Payments,Other establishments,03-Apr-23,6710191,-8.57,SUPPLIER,LILIAN DAVIS GROUP LTD,300000020467263
Portsmouth City Council,PCC,Children's and Education Services,Safeguarding Children and Young Peoples Services,Children's Services and Education,Third Party Payments,Other establishments,03-Apr-23,6710191,-5.71,SUPPLIER,LILIAN DAVIS GROUP LTD,300000020467263
Portsmouth City Council,PCC,Children's and Education Services,Safeguarding Children and Young Peoples Services,Children's Services and Education,Third Party Payments,Other establishments,03-Apr-23,6710191,-0.01,SUPPLIER,LILIAN DAVIS GROUP LTD,300000020467263
Portsmouth City Council,PCC,Children's and Education Services,Safeguarding Children and Young Peoples Services,Children's Services and Education,Third Party Payments,Other establishments,03-Apr-23,6710191,42.86,SUPPLIER,LILIAN DAVIS GROUP LTD,300000020467263
Portsmouth City Council,PCC,Children's and Education Services,Safeguarding Children and Young Peoples Services,Children's Services and Education,Third Party Payments,Other establishments,03-Apr-23,6710191,64.29,SUPPLIER,LILIAN DAVIS GROUP LTD,300000020467263
Portsmouth City Council,PCC,Children's and Education Services,Safeguarding Children and Young Peoples Services,Children's Services and Education,Third Party Payments,Other establishments,03-Apr-23,6710191,75,SUPPLIER,LILIAN DAVIS GROUP LTD,300000020467263
Portsmouth City Council,PCC,Children's and Education Services,Safeguarding Children and Young Peoples Services,Children's Services and Education,Third Party Payments,Other establishments,03-Apr-23,6710191,75,SUPPLIER,LILIAN DAVIS GROUP LTD,300000020467263
Portsmouth City Council,PCC,Children's and Education Services,Safeguarding Children and Young Peoples Services,Children's Services and Education,Third Party Payments,Other establishments,03-Apr-23,6710191,75,SUPPLIER,LILIAN DAVIS GROUP LTD,300000020467263
Portsmouth City Council,PCC,Children's and Education Services,Safeguarding Children and Young Peoples Services,Children's Services and Education,Third Party Payments,Other establishments,03-Apr-23,6710191,251.43,SUPPLIER,LILIAN DAVIS GROUP LTD,300000020467263
Portsmouth City Council,PCC,Children's and Education Services,Safeguarding Children and Young Peoples Services,Children's Services and Education,Third Party Payments,Other establishments,03-Apr-23,6710191,377.14,SUPPLIER,LILIAN DAVIS GROUP LTD,300000020467263
Portsmouth City Council,PCC,Children's and Education Services,Safeguarding Children and Young Peoples Services,Children's Services and Education,Third Party Payments,Other establishments,03-Apr-23,6710191,440,SUPPLIER,LILIAN DAVIS GROUP LTD,300000020467263
Portsmouth City Council,PCC,Children's and Education Services,Safeguarding Children and Young Peoples Services,Children's Services and Education,Third Party Payments,Other establishments,03-Apr-23,6710191,440,SUPPLIER,LILIAN DAVIS GROUP LTD,300000020467263
Portsmouth City Council,PCC,Children's and Education Services,Safeguarding Children and Young Peoples Services,Children's Services and Education,Third Party Payments,Other establishments,03-Apr-23,6710191,440,SUPPLIER,LILIAN DAVIS GROUP LTD,300000020467263
Portsmouth City Council,PCC,Children's and Education Services,Safeguarding Children and Young Peoples Services,Children's Services and Education,Third Party Payments,Other establishments,03-Apr-23,6710191,-872.6,SUPPLIER,LILIAN DAVIS GROUP LTD,300000020467263
Portsmouth City Council,PCC,Children's and Education Services,Safeguarding Children and Young Peoples Services,Children's Services and Education,Third Party Payments,Other establishments,03-Apr-23,6710191,-10,SUPPLIER,LILIAN DAVIS GROUP LTD,300000020467263
Portsmouth City Council,PCC,Children's and Education Services,Safeguarding Children and Young Peoples Services,Children's Services and Education,Third Party Payments,Other establishments,03-Apr-23,6710191,-10,SUPPLIER,LILIAN DAVIS GROUP LTD,300000020467263
Portsmouth City Council,PCC,Children's and Education Services,Safeguarding Children and Young Peoples Services,Children's Services and Education,Third Party Payments,Other establishments,03-Apr-23,6710191,-10,SUPPLIER,LILIAN DAVIS GROUP LTD,300000020467263
Portsmouth City Council,PCC,Children's and Education Services,Safeguarding Children and Young Peoples Services,Children's Services and Education,Third Party Payments,Other establishments,03-Apr-23,6710191,-8.57,SUPPLIER,LILIAN DAVIS GROUP LTD,300000020467263
Portsmouth City Council,PCC,Children's and Education Services,Safeguarding Children and Young Peoples Services,Children's Services and Education,Third Party Payments,Other establishments,03-Apr-23,6710191,-5.71,SUPPLIER,LILIAN DAVIS GROUP LTD,300000020467263
Portsmouth City Council,PCC,Children's and Education Services,Safeguarding Children and Young Peoples Services,Children's Services and Education,Third Party Payments,Other establishments,03-Apr-23,6710191,71.43,SUPPLIER,LILIAN DAVIS GROUP LTD,300000020467263
Portsmouth City Council,PCC,Children's and Education Services,Safeguarding Children and Young Peoples Services,Children's Services and Education,Third Party Payments,Other establishments,03-Apr-23,6710191,107.14,SUPPLIER,LILIAN DAVIS GROUP LTD,300000020467263
Portsmouth City Council,PCC,Children's and Education Services,Safeguarding Children and Young Peoples Services,Children's Services and Education,Third Party Payments,Other establishments,03-Apr-23,6710191,125,SUPPLIER,LILIAN DAVIS GROUP LTD,300000020467263
Portsmouth City Council,PCC,Children's and Education Services,Safeguarding Children and Young Peoples Services,Children's Services and Education,Third Party Payments,Other establishments,03-Apr-23,6710191,125,SUPPLIER,LILIAN DAVIS GROUP LTD,300000020467263
Portsmouth City Council,PCC,Children's and Education Services,Safeguarding Children and Young Peoples Services,Children's Services and Education,Third Party Payments,Other establishments,03-Apr-23,6710191,125,SUPPLIER,LILIAN DAVIS GROUP LTD,300000020467263
Portsmouth City Council,PCC,Children's and Education Services,Safeguarding Children and Young Peoples Services,Children's Services and Education,Third Party Payments,Other establishments,03-Apr-23,6710191,221.71,SUPPLIER,LILIAN DAVIS GROUP LTD,300000020467263
Portsmouth City Council,PCC,Children's and Education Services,Safeguarding Children and Young Peoples Services,Children's Services and Education,Third Party Payments,Other establishments,03-Apr-23,6710191,332.57,SUPPLIER,LILIAN DAVIS GROUP LTD,300000020467263
Portsmouth City Council,PCC,Children's and Education Services,Safeguarding Children and Young Peoples Services,Children's Services and Education,Third Party Payments,Other establishments,03-Apr-23,6710191,388,SUPPLIER,LILIAN DAVIS GROUP LTD,300000020467263
Portsmouth City Council,PCC,Children's and Education Services,Safeguarding Children and Young Peoples Services,Children's Services and Education,Third Party Payments,Other establishments,03-Apr-23,6710191,388,SUPPLIER,LILIAN DAVIS GROUP LTD,300000020467263
Portsmouth City Council,PCC,Children's and Education Services,Safeguarding Children and Young Peoples Services,Children's Services and Education,Third Party Payments,Other establishments,03-Apr-23,6710191,388,SUPPLIER,LILIAN DAVIS GROUP LTD,300000020467263
Portsmouth City Council,PCC,Children's and Education Services,Safeguarding Children and Young Peoples Services,Children's Services and Education,Third Party Payments,Other establishments,03-Apr-23,6710191,-892.54,SUPPLIER,LILIAN DAVIS GROUP LTD,300000020467263
Portsmouth City Council,PCC,Children's and Education Services,Safeguarding Children and Young Peoples Services,Children's Services and Education,Third Party Payments,Other establishments,03-Apr-23,6710191,-10,SUPPLIER,LILIAN DAVIS GROUP LTD,300000020467263
Portsmouth City Council,PCC,Children's and Education Services,Safeguarding Children and Young Peoples Services,Children's Services and Education,Third Party Payments,Other establishments,03-Apr-23,6710191,-10,SUPPLIER,LILIAN DAVIS GROUP LTD,300000020467263
Portsmouth City Council,PCC,Children's and Education Services,Safeguarding Children and Young Peoples Services,Children's Services and Education,Third Party Payments,Other establishments,03-Apr-23,6710191,-10,SUPPLIER,LILIAN DAVIS GROUP LTD,300000020467263
Portsmouth City Council,PCC,Children's and Education Services,Safeguarding Children and Young Peoples Services,Children's Services and Education,Third Party Payments,Other establishments,03-Apr-23,6710191,-8.57,SUPPLIER,LILIAN DAVIS GROUP LTD,300000020467263
Portsmouth City Council,PCC,Children's and Education Services,Safeguarding Children and Young Peoples Services,Children's Services and Education,Third Party Payments,Other establishments,03-Apr-23,6710191,-5.71,SUPPLIER,LILIAN DAVIS GROUP LTD,300000020467263
Portsmouth City Council,PCC,Children's and Education Services,Safeguarding Children and Young Peoples Services,Children's Services and Education,Third Party Payments,Other establishments,03-Apr-23,6710191,-0.01,SUPPLIER,LILIAN DAVIS GROUP LTD,300000020467263
Portsmouth City Council,PCC,Children's and Education Services,Safeguarding Children and Young Peoples Services,Children's Services and Education,Third Party Payments,Other establishments,03-Apr-23,6710191,68.57,SUPPLIER,LILIAN DAVIS GROUP LTD,300000020467263
Portsmouth City Council,PCC,Children's and Education Services,Safeguarding Children and Young Peoples Services,Children's Services and Education,Third Party Payments,Other establishments,03-Apr-23,6710191,102.86,SUPPLIER,LILIAN DAVIS GROUP LTD,300000020467263
Portsmouth City Council,PCC,Children's and Education Services,Safeguarding Children and Young Peoples Services,Children's Services and Education,Third Party Payments,Other establishments,03-Apr-23,6710191,120,SUPPLIER,LILIAN DAVIS GROUP LTD,300000020467263
Portsmouth City Council,PCC,Children's and Education Services,Safeguarding Children and Young Peoples Services,Children's Services and Education,Third Party Payments,Other establishments,03-Apr-23,6710191,120,SUPPLIER,LILIAN DAVIS GROUP LTD,300000020467263
Portsmouth City Council,PCC,Children's and Education Services,Safeguarding Children and Young Peoples Services,Children's Services and Education,Third Party Payments,Other establishments,03-Apr-23,6710191,120,SUPPLIER,LILIAN DAVIS GROUP LTD,300000020467263
Portsmouth City Council,PCC,Children's and Education Services,Safeguarding Children and Young Peoples Services,Children's Services and Education,Third Party Payments,Other establishments,03-Apr-23,6710191,251.43,SUPPLIER,LILIAN DAVIS GROUP LTD,300000020467263
Portsmouth City Council,PCC,Children's and Education Services,Safeguarding Children and Young Peoples Services,Children's Services and Education,Third Party Payments,Other establishments,03-Apr-23,6710191,377.14,SUPPLIER,LILIAN DAVIS GROUP LTD,300000020467263
Portsmouth City Council,PCC,Children's and Education Services,Safeguarding Children and Young Peoples Services,Children's Services and Education,Third Party Payments,Other establishments,03-Apr-23,6710191,440,SUPPLIER,LILIAN DAVIS GROUP LTD,300000020467263
Portsmouth City Council,PCC,Children's and Education Services,Safeguarding Children and Young Peoples Services,Children's Services and Education,Third Party Payments,Other establishments,03-Apr-23,6710191,440,SUPPLIER,LILIAN DAVIS GROUP LTD,300000020467263
Portsmouth City Council,PCC,Children's and Education Services,Safeguarding Children and Young Peoples Services,Children's Services and Education,Third Party Payments,Other establishments,03-Apr-23,6710191,440,SUPPLIER,LILIAN DAVIS GROUP LTD,300000020467263
Portsmouth City Council,PCC,Children's and Education Services,Children Looked After,Children's Services and Education,Third Party Payments,Other establishments,04-Apr-23,6710964,830,PUBLIC LIMITED COMPANY,FAITH HOPE AND FAMILIES LIMITED,300000168088079
Portsmouth City Council,PCC,Children's and Education Services,Asylum seekers,Children's Services and Education,Third Party Payments,Other establishments,04-Apr-23,6710948,364.29,SUPPLIER,FAMILY FIRST FOSTERING,300000020483859
Portsmouth City Council,PCC,Children's and Education Services,Asylum seekers,Children's Services and Education,Third Party Payments,Other establishments,04-Apr-23,6710948,485.71,SUPPLIER,FAMILY FIRST FOSTERING,300000020483859
Portsmouth City Council,PCC,Children's and Education Services,Asylum seekers,Children's Services and Education,Third Party Payments,Other establishments,04-Apr-23,6710948,850,SUPPLIER,FAMILY FIRST FOSTERING,300000020483859
Portsmouth City Council,PCC,Children's and Education Services,Asylum seekers,Children's Services and Education,Third Party Payments,Other establishments,04-Apr-23,6710948,850,SUPPLIER,FAMILY FIRST FOSTERING,300000020483859
Portsmouth City Council,PCC,Children's and Education Services,Asylum seekers,Children's Services and Education,Third Party Payments,Other establishments,04-Apr-23,6710948,850,SUPPLIER,FAMILY FIRST FOSTERING,300000020483859
Portsmouth City Council,PCC,Children's and Education Services,Safeguarding Children and Young Peoples Services,Children's Services and Education,Third Party Payments,Other establishments,04-Apr-23,6710948,375,SUPPLIER,FAMILY FIRST FOSTERING,300000020483859
Portsmouth City Council,PCC,Children's and Education Services,Safeguarding Children and Young Peoples Services,Children's Services and Education,Third Party Payments,Other establishments,04-Apr-23,6710948,500,SUPPLIER,FAMILY FIRST FOSTERING,300000020483859
Portsmouth City Council,PCC,Children's and Education Services,Safeguarding Children and Young Peoples Services,Children's Services and Education,Third Party Payments,Other establishments,04-Apr-23,6710948,875,SUPPLIER,FAMILY FIRST FOSTERING,300000020483859
Portsmouth City Council,PCC,Children's and Education Services,Safeguarding Children and Young Peoples Services,Children's Services and Education,Third Party Payments,Other establishments,04-Apr-23,6710948,875,SUPPLIER,FAMILY FIRST FOSTERING,300000020483859
Portsmouth City Council,PCC,Children's and Education Services,Safeguarding Children and Young Peoples Services,Children's Services and Education,Third Party Payments,Other establishments,04-Apr-23,6710948,875,SUPPLIER,FAMILY FIRST FOSTERING,300000020483859
Portsmouth City Council,PCC,Children's and Education Services,Safeguarding Children and Young Peoples Services,Children's Services and Education,Third Party Payments,Other establishments,04-Apr-23,6710948,392.19,SUPPLIER,FAMILY FIRST FOSTERING,300000020483859
Portsmouth City Council,PCC,Children's and Education Services,Safeguarding Children and Young Peoples Services,Children's Services and Education,Third Party Payments,Other establishments,04-Apr-23,6710948,522.91,SUPPLIER,FAMILY FIRST FOSTERING,300000020483859
Portsmouth City Council,PCC,Children's and Education Services,Safeguarding Children and Young Peoples Services,Children's Services and Education,Third Party Payments,Other establishments,04-Apr-23,6710948,915.1,SUPPLIER,FAMILY FIRST FOSTERING,300000020483859
Portsmouth City Council,PCC,Children's and Education Services,Safeguarding Children and Young Peoples Services,Children's Services and Education,Third Party Payments,Other establishments,04-Apr-23,6710948,915.1,SUPPLIER,FAMILY FIRST FOSTERING,300000020483859
Portsmouth City Council,PCC,Children's and Education Services,Safeguarding Children and Young Peoples Services,Children's Services and Education,Third Party Payments,Other establishments,04-Apr-23,6710948,915.1,SUPPLIER,FAMILY FIRST FOSTERING,300000020483859
Portsmouth City Council,PCC,Children's and Education Services,Safeguarding Children and Young Peoples Services,Children's Services and Education,Third Party Payments,Other establishments,04-Apr-23,6710948,214.29,SUPPLIER,FAMILY FIRST FOSTERING,300000020483859
Portsmouth City Council,PCC,Children's and Education Services,Safeguarding Children and Young Peoples Services,Children's Services and Education,Third Party Payments,Other establishments,04-Apr-23,6710948,285.71,SUPPLIER,FAMILY FIRST FOSTERING,300000020483859
Portsmouth City Council,PCC,Children's and Education Services,Safeguarding Children and Young Peoples Services,Children's Services and Education,Third Party Payments,Other establishments,04-Apr-23,6710948,500,SUPPLIER,FAMILY FIRST FOSTERING,300000020483859
Portsmouth City Council,PCC,Children's and Education Services,Safeguarding Children and Young Peoples Services,Children's Services and Education,Third Party Payments,Other establishments,04-Apr-23,6710948,500,SUPPLIER,FAMILY FIRST FOSTERING,300000020483859
Portsmouth City Council,PCC,Children's and Education Services,Safeguarding Children and Young Peoples Services,Children's Services and Education,Third Party Payments,Other establishments,04-Apr-23,6710948,500,SUPPLIER,FAMILY FIRST FOSTERING,300000020483859
Portsmouth City Council,PCC,Children's and Education Services,Safeguarding Children and Young Peoples Services,Children's Services and Education,Third Party Payments,Other establishments,04-Apr-23,6710948,369.75,SUPPLIER,FAMILY FIRST FOSTERING,300000020483859
Portsmouth City Council,PCC,Children's and Education Services,Safeguarding Children and Young Peoples Services,Children's Services and Education,Third Party Payments,Other establishments,04-Apr-23,6710948,493,SUPPLIER,FAMILY FIRST FOSTERING,300000020483859
Portsmouth City Council,PCC,Children's and Education Services,Safeguarding Children and Young Peoples Services,Children's Services and Education,Third Party Payments,Other establishments,04-Apr-23,6710948,862.75,SUPPLIER,FAMILY FIRST FOSTERING,300000020483859
Portsmouth City Council,PCC,Children's and Education Services,Safeguarding Children and Young Peoples Services,Children's Services and Education,Third Party Payments,Other establishments,04-Apr-23,6710948,862.75,SUPPLIER,FAMILY FIRST FOSTERING,300000020483859
Portsmouth City Council,PCC,Children's and Education Services,Safeguarding Children and Young Peoples Services,Children's Services and Education,Third Party Payments,Other establishments,04-Apr-23,6710948,862.75,SUPPLIER,FAMILY FIRST FOSTERING,300000020483859
Portsmouth City Council,PCC,Children's and Education Services,Safeguarding Children and Young Peoples Services,Children's Services and Education,Third Party Payments,Other establishments,04-Apr-23,6710948,392.19,SUPPLIER,FAMILY FIRST FOSTERING,300000020483859
Portsmouth City Council,PCC,Children's and Education Services,Safeguarding Children and Young Peoples Services,Children's Services and Education,Third Party Payments,Other establishments,04-Apr-23,6710948,392.19,SUPPLIER,FAMILY FIRST FOSTERING,300000020483859
Portsmouth City Council,PCC,Children's and Education Services,Safeguarding Children and Young Peoples Services,Children's Services and Education,Third Party Payments,Other establishments,04-Apr-23,6710948,522.91,SUPPLIER,FAMILY FIRST FOSTERING,300000020483859
Portsmouth City Council,PCC,Children's and Education Services,Safeguarding Children and Young Peoples Services,Children's Services and Education,Third Party Payments,Other establishments,04-Apr-23,6710948,522.91,SUPPLIER,FAMILY FIRST FOSTERING,300000020483859
Portsmouth City Council,PCC,Children's and Education Services,Safeguarding Children and Young Peoples Services,Children's Services and Education,Third Party Payments,Other establishments,04-Apr-23,6710948,915.1,SUPPLIER,FAMILY FIRST FOSTERING,300000020483859
Portsmouth City Council,PCC,Children's and Education Services,Safeguarding Children and Young Peoples Services,Children's Services and Education,Third Party Payments,Other establishments,04-Apr-23,6710948,915.1,SUPPLIER,FAMILY FIRST FOSTERING,300000020483859
Portsmouth City Council,PCC,Children's and Education Services,Safeguarding Children and Young Peoples Services,Children's Services and Education,Third Party Payments,Other establishments,05-Apr-23,6711082,-892.54,SUPPLIER,LILIAN DAVIS GROUP LTD,300000020467263
Portsmouth City Council,PCC,Children's and Education Services,Safeguarding Children and Young Peoples Services,Children's Services and Education,Third Party Payments,Other establishments,05-Apr-23,6711082,-10,SUPPLIER,LILIAN DAVIS GROUP LTD,300000020467263
Portsmouth City Council,PCC,Children's and Education Services,Safeguarding Children and Young Peoples Services,Children's Services and Education,Third Party Payments,Other establishments,05-Apr-23,6711082,-10,SUPPLIER,LILIAN DAVIS GROUP LTD,300000020467263
Portsmouth City Council,PCC,Children's and Education Services,Safeguarding Children and Young Peoples Services,Children's Services and Education,Third Party Payments,Other establishments,05-Apr-23,6711082,-10,SUPPLIER,LILIAN DAVIS GROUP LTD,300000020467263
Portsmouth City Council,PCC,Children's and Education Services,Safeguarding Children and Young Peoples Services,Children's Services and Education,Third Party Payments,Other establishments,05-Apr-23,6711082,-5.71,SUPPLIER,LILIAN DAVIS GROUP LTD,300000020467263
Portsmouth City Council,PCC,Children's and Education Services,Safeguarding Children and Young Peoples Services,Children's Services and Education,Third Party Payments,Other establishments,05-Apr-23,6711082,-4.29,SUPPLIER,LILIAN DAVIS GROUP LTD,300000020467263
Portsmouth City Council,PCC,Children's and Education Services,Safeguarding Children and Young Peoples Services,Children's Services and Education,Third Party Payments,Other establishments,05-Apr-23,6711082,51.43,SUPPLIER,LILIAN DAVIS GROUP LTD,300000020467263
Portsmouth City Council,PCC,Children's and Education Services,Safeguarding Children and Young Peoples Services,Children's Services and Education,Third Party Payments,Other establishments,05-Apr-23,6711082,68.57,SUPPLIER,LILIAN DAVIS GROUP LTD,300000020467263
Portsmouth City Council,PCC,Children's and Education Services,Safeguarding Children and Young Peoples Services,Children's Services and Education,Third Party Payments,Other establishments,05-Apr-23,6711082,120,SUPPLIER,LILIAN DAVIS GROUP LTD,300000020467263
Portsmouth City Council,PCC,Children's and Education Services,Safeguarding Children and Young Peoples Services,Children's Services and Education,Third Party Payments,Other establishments,05-Apr-23,6711082,120,SUPPLIER,LILIAN DAVIS GROUP LTD,300000020467263
Portsmouth City Council,PCC,Children's and Education Services,Safeguarding Children and Young Peoples Services,Children's Services and Education,Third Party Payments,Other establishments,05-Apr-23,6711082,120,SUPPLIER,LILIAN DAVIS GROUP LTD,300000020467263
Portsmouth City Council,PCC,Children's and Education Services,Safeguarding Children and Young Peoples Services,Children's Services and Education,Third Party Payments,Other establishments,05-Apr-23,6711082,188.57,SUPPLIER,LILIAN DAVIS GROUP LTD,300000020467263
Portsmouth City Council,PCC,Children's and Education Services,Safeguarding Children and Young Peoples Services,Children's Services and Education,Third Party Payments,Other establishments,05-Apr-23,6711082,251.43,SUPPLIER,LILIAN DAVIS GROUP LTD,300000020467263
Portsmouth City Council,PCC,Children's and Education Services,Safeguarding Children and Young Peoples Services,Children's Services and Education,Third Party Payments,Other establishments,05-Apr-23,6711082,440,SUPPLIER,LILIAN DAVIS GROUP LTD,300000020467263
Portsmouth City Council,PCC,Children's and Education Services,Safeguarding Children and Young Peoples Services,Children's Services and Education,Third Party Payments,Other establishments,05-Apr-23,6711082,440,SUPPLIER,LILIAN DAVIS GROUP LTD,300000020467263
Portsmouth City Council,PCC,Children's and Education Services,Safeguarding Children and Young Peoples Services,Children's Services and Education,Third Party Payments,Other establishments,05-Apr-23,6711082,440,SUPPLIER,LILIAN DAVIS GROUP LTD,300000020467263
Portsmouth City Council,PCC,Children's and Education Services,Children Looked After,Children's Services and Education,Third Party Payments,Other establishments,05-Apr-23,6711102,0.08,LIMITED COMPANY,GROWING INDEPENDENT SUPPORT (GISUK) LTD,300000429302011
Portsmouth City Council,PCC,Children's and Education Services,Children Looked After,Children's Services and Education,Third Party Payments,Other establishments,05-Apr-23,6711102,18.99,LIMITED COMPANY,GROWING INDEPENDENT SUPPORT (GISUK) LTD,300000429302011
Portsmouth City Council,PCC,Children's and Education Services,Children Looked After,Children's Services and Education,Third Party Payments,Other establishments,05-Apr-23,6711102,24.81,LIMITED COMPANY,GROWING INDEPENDENT SUPPORT (GISUK) LTD,300000429302011
Portsmouth City Council,PCC,Children's and Education Services,Children Looked After,Children's Services and Education,Third Party Payments,Other establishments,05-Apr-23,6711102,33.09,LIMITED COMPANY,GROWING INDEPENDENT SUPPORT (GISUK) LTD,300000429302011
Portsmouth City Council,PCC,Children's and Education Services,Children Looked After,Children's Services and Education,Third Party Payments,Other establishments,05-Apr-23,6711102,57.9,LIMITED COMPANY,GROWING INDEPENDENT SUPPORT (GISUK) LTD,300000429302011
Portsmouth City Council,PCC,Children's and Education Services,Children Looked After,Children's Services and Education,Third Party Payments,Other establishments,05-Apr-23,6711102,57.9,LIMITED COMPANY,GROWING INDEPENDENT SUPPORT (GISUK) LTD,300000429302011
Portsmouth City Council,PCC,Children's and Education Services,Children Looked After,Children's Services and Education,Third Party Payments,Other establishments,05-Apr-23,6711102,57.9,LIMITED COMPANY,GROWING INDEPENDENT SUPPORT (GISUK) LTD,300000429302011
Portsmouth City Council,PCC,Children's and Education Services,Children Looked After,Children's Services and Education,Third Party Payments,Other establishments,05-Apr-23,6711102,"1,242.86",LIMITED COMPANY,GROWING INDEPENDENT SUPPORT (GISUK) LTD,300000429302011
Portsmouth City Council,PCC,Children's and Education Services,Children Looked After,Children's Services and Education,Third Party Payments,Other establishments,05-Apr-23,6711102,"1,657.14",LIMITED COMPANY,GROWING INDEPENDENT SUPPORT (GISUK) LTD,300000429302011
Portsmouth City Council,PCC,Children's and Education Services,Children Looked After,Children's Services and Education,Third Party Payments,Other establishments,05-Apr-23,6711102,"2,900.00",LIMITED COMPANY,GROWING INDEPENDENT SUPPORT (GISUK) LTD,300000429302011
Portsmouth City Council,PCC,Children's and Education Services,Children Looked After,Children's Services and Education,Third Party Payments,Other establishments,05-Apr-23,6711102,"2,900.00",LIMITED COMPANY,GROWING INDEPENDENT SUPPORT (GISUK) LTD,300000429302011
Portsmouth City Council,PCC,Children's and Education Services,Children Looked After,Children's Services and Education,Third Party Payments,Other establishments,05-Apr-23,6711102,"2,900.00",LIMITED COMPANY,GROWING INDEPENDENT SUPPORT (GISUK) LTD,300000429302011
Portsmouth City Council,PCC,Children's and Education Services,Asylum seekers,Children's Services and Education,Third Party Payments,Joint authorities,05-Apr-23,6711107,-40,OTHER LOCAL AUTHORITY,London Borough of Barnet,300000513853488
Portsmouth City Council,PCC,Children's and Education Services,Asylum seekers,Children's Services and Education,Third Party Payments,Joint authorities,05-Apr-23,6711107,300.86,OTHER LOCAL AUTHORITY,London Borough of Barnet,300000513853488
Portsmouth City Council,PCC,Children's and Education Services,Asylum seekers,Children's Services and Education,Third Party Payments,Joint authorities,05-Apr-23,6711107,401.14,OTHER LOCAL AUTHORITY,London Borough of Barnet,300000513853488
Portsmouth City Council,PCC,Children's and Education Services,Asylum seekers,Children's Services and Education,Third Party Payments,Joint authorities,05-Apr-23,6711107,702,OTHER LOCAL AUTHORITY,London Borough of Barnet,300000513853488
Portsmouth City Council,PCC,Children's and Education Services,Asylum seekers,Children's Services and Education,Third Party Payments,Joint authorities,05-Apr-23,6711107,702,OTHER LOCAL AUTHORITY,London Borough of Barnet,300000513853488
Portsmouth City Council,PCC,Children's and Education Services,Asylum seekers,Children's Services and Education,Third Party Payments,Joint authorities,05-Apr-23,6711107,702,OTHER LOCAL AUTHORITY,London Borough of Barnet,300000513853488
Portsmouth City Council,PCC,Children's and Education Services,Safeguarding Children and Young Peoples Services,Children's Services and Education,Third Party Payments,Other establishments,06-Apr-23,6711180,401.4,SUPPLIER,FOSTER CARE ASSOCIATES LTD,300000020461175
Portsmouth City Council,PCC,Children's and Education Services,Safeguarding Children and Young Peoples Services,Children's Services and Education,Third Party Payments,Other establishments,06-Apr-23,6711180,602.1,SUPPLIER,FOSTER CARE ASSOCIATES LTD,300000020461175
Portsmouth City Council,PCC,Children's and Education Services,Safeguarding Children and Young Peoples Services,Children's Services and Education,Third Party Payments,Other establishments,06-Apr-23,6711180,702.45,SUPPLIER,FOSTER CARE ASSOCIATES LTD,300000020461175
Portsmouth City Council,PCC,Children's and Education Services,Safeguarding Children and Young Peoples Services,Children's Services and Education,Third Party Payments,Other establishments,06-Apr-23,6711180,702.45,SUPPLIER,FOSTER CARE ASSOCIATES LTD,300000020461175
Portsmouth City Council,PCC,Children's and Education Services,Safeguarding Children and Young Peoples Services,Children's Services and Education,Third Party Payments,Other establishments,06-Apr-23,6711180,702.45,SUPPLIER,FOSTER CARE ASSOCIATES LTD,300000020461175
Portsmouth City Council,PCC,Housing Revenue Account,"Rents, Rates, Taxes and Other Charges","Housing, Neighbourhood and Building Services",Premises-Related Expenditure,Rates,25-Apr-23,6713970,135,OTHER LOCAL AUTHORITY,HAVANT BOROUGH COUNCIL,300000020457057
Portsmouth City Council,PCC,Housing Revenue Account,"Rents, Rates, Taxes and Other Charges","Housing, Neighbourhood and Building Services",Premises-Related Expenditure,Rates,25-Apr-23,6713970,135,OTHER LOCAL AUTHORITY,HAVANT BOROUGH COUNCIL,300000020457057
Portsmouth City Council,PCC,Housing Revenue Account,"Rents, Rates, Taxes and Other Charges","Housing, Neighbourhood and Building Services",Premises-Related Expenditure,Rates,25-Apr-23,6713970,135,OTHER LOCAL AUTHORITY,HAVANT BOROUGH COUNCIL,300000020457057
Portsmouth City Council,PCC,Housing Revenue Account,"Rents, Rates, Taxes and Other Charges","Housing, Neighbourhood and Building Services",Premises-Related Expenditure,Rates,25-Apr-23,6713970,135,OTHER LOCAL AUTHORITY,HAVANT BOROUGH COUNCIL,300000020457057
Portsmouth City Council,PCC,Housing Revenue Account,"Rents, Rates, Taxes and Other Charges","Housing, Neighbourhood and Building Services",Premises-Related Expenditure,Rates,25-Apr-23,6713970,135,OTHER LOCAL AUTHORITY,HAVANT BOROUGH COUNCIL,300000020457057
Portsmouth City Council,PCC,Housing Revenue Account,"Rents, Rates, Taxes and Other Charges","Housing, Neighbourhood and Building Services",Premises-Related Expenditure,Rates,25-Apr-23,6713970,256,OTHER LOCAL AUTHORITY,HAVANT BOROUGH COUNCIL,300000020457057
Portsmouth City Council,PCC,Housing Revenue Account,Special Services,"Housing, Neighbourhood and Building Services",Premises-Related Expenditure,Energy costs,11-Apr-23,6711562,"-1,038.47",LIMITED COMPANY,GAZPROM MARKETING AND TRADING LTD,300000250807105
Portsmouth City Council,PCC,Children's and Education Services,Children Looked After,Children's Services and Education,Premises-Related Expenditure,Energy costs,11-Apr-23,6711562,-167.66,LIMITED COMPANY,GAZPROM MARKETING AND TRADING LTD,300000250807105
Portsmouth City Council,PCC,Children's and Education Services,Children Looked After,Children's Services and Education,Premises-Related Expenditure,Energy costs,11-Apr-23,6711562,-183.55,LIMITED COMPANY,GAZPROM MARKETING AND TRADING LTD,300000250807105
Portsmouth City Council,PCC,Housing Revenue Account,Special Services,"Housing, Neighbourhood and Building Services",Premises-Related Expenditure,Energy costs,11-Apr-23,6711562,"-1,120.23",LIMITED COMPANY,GAZPROM MARKETING AND TRADING LTD,300000250807105
Portsmouth City Council,PCC,Housing Revenue Account,"Rents, Rates, Taxes and Other Charges","Housing, Neighbourhood and Building Services",Premises-Related Expenditure,Rates,25-Apr-23,6713970,135,OTHER LOCAL AUTHORITY,HAVANT BOROUGH COUNCIL,300000020457057
Portsmouth City Council,PCC,Housing Revenue Account,"Rents, Rates, Taxes and Other Charges","Housing, Neighbourhood and Building Services",Premises-Related Expenditure,Rates,25-Apr-23,6713969,157,OTHER LOCAL AUTHORITY,HAVANT BOROUGH COUNCIL,300000020457057
Portsmouth City Council,PCC,Housing Revenue Account,"Rents, Rates, Taxes and Other Charges","Housing, Neighbourhood and Building Services",Premises-Related Expenditure,Rates,25-Apr-23,6713970,135,OTHER LOCAL AUTHORITY,HAVANT BOROUGH COUNCIL,300000020457057
Portsmouth City Council,PCC,Housing Revenue Account,"Rents, Rates, Taxes and Other Charges","Housing, Neighbourhood and Building Services",Premises-Related Expenditure,Rates,25-Apr-23,6713970,135,OTHER LOCAL AUTHORITY,HAVANT BOROUGH COUNCIL,300000020457057
Portsmouth City Council,PCC,Housing Revenue Account,"Rents, Rates, Taxes and Other Charges","Housing, Neighbourhood and Building Services",Premises-Related Expenditure,Rates,25-Apr-23,6713969,135,OTHER LOCAL AUTHORITY,HAVANT BOROUGH COUNCIL,300000020457057
Portsmouth City Council,PCC,Housing Revenue Account,"Rents, Rates, Taxes and Other Charges","Housing, Neighbourhood and Building Services",Premises-Related Expenditure,Rates,25-Apr-23,6713969,269,OTHER LOCAL AUTHORITY,HAVANT BOROUGH COUNCIL,300000020457057
Portsmouth City Council,PCC,Housing Revenue Account,"Rents, Rates, Taxes and Other Charges","Housing, Neighbourhood and Building Services",Premises-Related Expenditure,Rates,25-Apr-23,6713970,135,OTHER LOCAL AUTHORITY,HAVANT BOROUGH COUNCIL,300000020457057
Portsmouth City Council,PCC,Housing Revenue Account,"Rents, Rates, Taxes and Other Charges","Housing, Neighbourhood and Building Services",Premises-Related Expenditure,Rates,25-Apr-23,6713969,135,OTHER LOCAL AUTHORITY,HAVANT BOROUGH COUNCIL,300000020457057
Portsmouth City Council,PCC,Housing Revenue Account,"Rents, Rates, Taxes and Other Charges","Housing, Neighbourhood and Building Services",Premises-Related Expenditure,Rates,25-Apr-23,6713970,269,OTHER LOCAL AUTHORITY,HAVANT BOROUGH COUNCIL,300000020457057
Portsmouth City Council,PCC,Housing Revenue Account,"Rents, Rates, Taxes and Other Charges","Housing, Neighbourhood and Building Services",Premises-Related Expenditure,Rates,25-Apr-23,6713969,135,OTHER LOCAL AUTHORITY,HAVANT BOROUGH COUNCIL,300000020457057
Portsmouth City Council,PCC,Housing Revenue Account,"Rents, Rates, Taxes and Other Charges","Housing, Neighbourhood and Building Services",Premises-Related Expenditure,Rates,25-Apr-23,6713969,135,OTHER LOCAL AUTHORITY,HAVANT BOROUGH COUNCIL,300000020457057
Portsmouth City Council,PCC,Housing Revenue Account,"Rents, Rates, Taxes and Other Charges","Housing, Neighbourhood and Building Services",Premises-Related Expenditure,Rates,25-Apr-23,6713969,135,OTHER LOCAL AUTHORITY,HAVANT BOROUGH COUNCIL,300000020457057
Portsmouth City Council,PCC,Housing Revenue Account,"Rents, Rates, Taxes and Other Charges","Housing, Neighbourhood and Building Services",Premises-Related Expenditure,Rates,25-Apr-23,6713969,269,OTHER LOCAL AUTHORITY,HAVANT BOROUGH COUNCIL,300000020457057
Portsmouth City Council,PCC,Housing Revenue Account,"Rents, Rates, Taxes and Other Charges","Housing, Neighbourhood and Building Services",Premises-Related Expenditure,Rates,25-Apr-23,6713969,135,OTHER LOCAL AUTHORITY,HAVANT BOROUGH COUNCIL,300000020457057
Portsmouth City Council,PCC,Housing Revenue Account,"Rents, Rates, Taxes and Other Charges","Housing, Neighbourhood and Building Services",Premises-Related Expenditure,Rates,25-Apr-23,6713969,135,OTHER LOCAL AUTHORITY,HAVANT BOROUGH COUNCIL,300000020457057
Portsmouth City Council,PCC,Housing Revenue Account,"Rents, Rates, Taxes and Other Charges","Housing, Neighbourhood and Building Services",Premises-Related Expenditure,Rates,25-Apr-23,6713969,135,OTHER LOCAL AUTHORITY,HAVANT BOROUGH COUNCIL,300000020457057
Portsmouth City Council,PCC,Housing Revenue Account,"Rents, Rates, Taxes and Other Charges","Housing, Neighbourhood and Building Services",Premises-Related Expenditure,Rates,25-Apr-23,6713969,179,OTHER LOCAL AUTHORITY,HAVANT BOROUGH COUNCIL,300000020457057
Portsmouth City Council,PCC,Housing Revenue Account,"Rents, Rates, Taxes and Other Charges","Housing, Neighbourhood and Building Services",Premises-Related Expenditure,Rates,25-Apr-23,6713969,135,OTHER LOCAL AUTHORITY,HAVANT BOROUGH COUNCIL,300000020457057
Portsmouth City Council,PCC,Housing Services,Private Sector Housing Renewal,"Housing, Neighbourhood and Building Services",Income,Other grants reimbursements and contributions,06-Apr-23,6711169,"-2,137.50",LIMITED COMPANY,LIFTECH SYSTEMS (SE) LIMITED,300000020461913
Portsmouth City Council,PCC,Other,Suspense and Capital Schemes,Capital - Housing General Fund,Capital Charges,REFCUS,06-Apr-23,6711169,"2,565.00",LIMITED COMPANY,LIFTECH SYSTEMS (SE) LIMITED,300000020461913
Portsmouth City Council,PCC,Other,Suspense and Capital Schemes,Capital - Housing General Fund,Capital Charges,REFCUS,06-Apr-23,6711169,"2,700.00",LIMITED COMPANY,LIFTECH SYSTEMS (SE) LIMITED,300000020461913
Portsmouth City Council,PCC,Other,Suspense and Capital Schemes,"Housing, Neighbourhood and Building Services",Supplies and Services,Services,06-Apr-23,6711375,"7,944.00",LIMITED COMPANY,CONCEPT DESIGN SOLUTIONS LTD,300000118164776
Portsmouth City Council,PCC,Children's and Education Services,Asylum seekers,Children's Services and Education,Third Party Payments,Other establishments,04-Apr-23,6710948,261.46,SUPPLIER,FAMILY FIRST FOSTERING,300000020483859
Portsmouth City Council,PCC,Children's and Education Services,Asylum seekers,Children's Services and Education,Third Party Payments,Other establishments,04-Apr-23,6710948,522.91,SUPPLIER,FAMILY FIRST FOSTERING,300000020483859
Portsmouth City Council,PCC,Children's and Education Services,Asylum seekers,Children's Services and Education,Third Party Payments,Other establishments,04-Apr-23,6710948,915.1,SUPPLIER,FAMILY FIRST FOSTERING,300000020483859
Portsmouth City Council,PCC,Children's and Education Services,Asylum seekers,Children's Services and Education,Third Party Payments,Other establishments,04-Apr-23,6710948,915.1,SUPPLIER,FAMILY FIRST FOSTERING,300000020483859
Portsmouth City Council,PCC,Children's and Education Services,Safeguarding Children and Young Peoples Services,Children's Services and Education,Third Party Payments,Other establishments,04-Apr-23,6710948,392.19,SUPPLIER,FAMILY FIRST FOSTERING,300000020483859
Portsmouth City Council,PCC,Children's and Education Services,Safeguarding Children and Young Peoples Services,Children's Services and Education,Third Party Payments,Other establishments,04-Apr-23,6710948,653.64,SUPPLIER,FAMILY FIRST FOSTERING,300000020483859
Portsmouth City Council,PCC,Children's and Education Services,Children Looked After,Children's Services and Education,Third Party Payments,Other establishments,06-Apr-23,6711337,-0.09,SUPPLIER,SPORTFIT SHORTBREAK CARE LTD,300000020478018
Portsmouth City Council,PCC,Children's and Education Services,Children Looked After,Children's Services and Education,Third Party Payments,Other establishments,06-Apr-23,6711337,"1,508.57",SUPPLIER,SPORTFIT SHORTBREAK CARE LTD,300000020478018
Portsmouth City Council,PCC,Children's and Education Services,Children Looked After,Children's Services and Education,Third Party Payments,Other establishments,06-Apr-23,6711337,"2,262.86",SUPPLIER,SPORTFIT SHORTBREAK CARE LTD,300000020478018
Portsmouth City Council,PCC,Children's and Education Services,Children Looked After,Children's Services and Education,Third Party Payments,Other establishments,06-Apr-23,6711337,"2,640.00",SUPPLIER,SPORTFIT SHORTBREAK CARE LTD,300000020478018
Portsmouth City Council,PCC,Children's and Education Services,Children Looked After,Children's Services and Education,Third Party Payments,Other establishments,06-Apr-23,6711337,"2,640.00",SUPPLIER,SPORTFIT SHORTBREAK CARE LTD,300000020478018
Portsmouth City Council,PCC,Children's and Education Services,Children Looked After,Children's Services and Education,Third Party Payments,Other establishments,06-Apr-23,6711337,"2,640.00",SUPPLIER,SPORTFIT SHORTBREAK CARE LTD,300000020478018
Portsmouth City Council,PCC,Children's and Education Services,Children Looked After,Children's Services and Education,Third Party Payments,Other establishments,05-Apr-23,6711098,"-2,427.17",SUPPLIER,CAMBIAN GROUP LTD,300000020462057
Portsmouth City Council,PCC,Children's and Education Services,Children Looked After,Children's Services and Education,Third Party Payments,Other establishments,05-Apr-23,6711098,21.9,SUPPLIER,CAMBIAN GROUP LTD,300000020462057
Portsmouth City Council,PCC,Children's and Education Services,Children Looked After,Children's Services and Education,Third Party Payments,Other establishments,05-Apr-23,6711098,21.9,SUPPLIER,CAMBIAN GROUP LTD,300000020462057
Portsmouth City Council,PCC,Children's and Education Services,Children Looked After,Children's Services and Education,Third Party Payments,Other establishments,05-Apr-23,6711098,111.92,SUPPLIER,CAMBIAN GROUP LTD,300000020462057
Portsmouth City Council,PCC,Children's and Education Services,Children Looked After,Children's Services and Education,Third Party Payments,Other establishments,05-Apr-23,6711098,111.92,SUPPLIER,CAMBIAN GROUP LTD,300000020462057
Portsmouth City Council,PCC,Children's and Education Services,Children Looked After,Children's Services and Education,Third Party Payments,Other establishments,05-Apr-23,6711098,153.31,SUPPLIER,CAMBIAN GROUP LTD,300000020462057
Portsmouth City Council,PCC,Children's and Education Services,Children Looked After,Children's Services and Education,Third Party Payments,Other establishments,05-Apr-23,6711098,153.31,SUPPLIER,CAMBIAN GROUP LTD,300000020462057
Portsmouth City Council,PCC,Children's and Education Services,Children Looked After,Children's Services and Education,Third Party Payments,Other establishments,05-Apr-23,6711098,153.31,SUPPLIER,CAMBIAN GROUP LTD,300000020462057
Portsmouth City Council,PCC,Children's and Education Services,Children Looked After,Children's Services and Education,Third Party Payments,Other establishments,05-Apr-23,6711098,153.31,SUPPLIER,CAMBIAN GROUP LTD,300000020462057
Portsmouth City Council,PCC,Children's and Education Services,Children Looked After,Children's Services and Education,Third Party Payments,Other establishments,05-Apr-23,6711098,783.47,SUPPLIER,CAMBIAN GROUP LTD,300000020462057
Portsmouth City Council,PCC,Children's and Education Services,Children Looked After,Children's Services and Education,Third Party Payments,Other establishments,05-Apr-23,6711098,783.47,SUPPLIER,CAMBIAN GROUP LTD,300000020462057
Portsmouth City Council,PCC,Children's and Education Services,Children Looked After,Children's Services and Education,Third Party Payments,Other establishments,05-Apr-23,6711098,783.47,SUPPLIER,CAMBIAN GROUP LTD,300000020462057
Portsmouth City Council,PCC,Children's and Education Services,Children Looked After,Children's Services and Education,Third Party Payments,Other establishments,05-Apr-23,6711098,783.47,SUPPLIER,CAMBIAN GROUP LTD,300000020462057
Portsmouth City Council,PCC,Children's and Education Services,Children Looked After,Children's Services and Education,Third Party Payments,Other establishments,05-Apr-23,6711098,820.75,SUPPLIER,CAMBIAN GROUP LTD,300000020462057
Portsmouth City Council,PCC,Children's and Education Services,Children Looked After,Children's Services and Education,Third Party Payments,Other establishments,05-Apr-23,6711098,820.75,SUPPLIER,CAMBIAN GROUP LTD,300000020462057
Portsmouth City Council,PCC,Children's and Education Services,Children Looked After,Children's Services and Education,Third Party Payments,Other establishments,05-Apr-23,6711098,"5,745.22",SUPPLIER,CAMBIAN GROUP LTD,300000020462057
Portsmouth City Council,PCC,Children's and Education Services,Children Looked After,Children's Services and Education,Third Party Payments,Other establishments,05-Apr-23,6711098,"5,745.22",SUPPLIER,CAMBIAN GROUP LTD,300000020462057
Portsmouth City Council,PCC,Children's and Education Services,Children Looked After,Children's Services and Education,Third Party Payments,Other establishments,05-Apr-23,6711098,"5,745.22",SUPPLIER,CAMBIAN GROUP LTD,300000020462057
Portsmouth City Council,PCC,Children's and Education Services,Children Looked After,Children's Services and Education,Third Party Payments,Other establishments,05-Apr-23,6711098,"5,745.22",SUPPLIER,CAMBIAN GROUP LTD,300000020462057
Portsmouth City Council,PCC,Children's and Education Services,Children Looked After,Children's Services and Education,Third Party Payments,Other establishments,05-Apr-23,6711098,"2,395.07",SUPPLIER,CAMBIAN GROUP LTD,300000020462057
Portsmouth City Council,PCC,Children's and Education Services,Children Looked After,Children's Services and Education,Third Party Payments,Other establishments,05-Apr-23,6711098,0.14,SUPPLIER,CAMBIAN GROUP LTD,300000020462057
Portsmouth City Council,PCC,Children's and Education Services,Children Looked After,Children's Services and Education,Third Party Payments,Other establishments,05-Apr-23,6711098,46.57,SUPPLIER,CAMBIAN GROUP LTD,300000020462057
Portsmouth City Council,PCC,Children's and Education Services,Children Looked After,Children's Services and Education,Third Party Payments,Other establishments,05-Apr-23,6711098,46.57,SUPPLIER,CAMBIAN GROUP LTD,300000020462057
Portsmouth City Council,PCC,Children's and Education Services,Children Looked After,Children's Services and Education,Third Party Payments,Other establishments,05-Apr-23,6711098,325.96,SUPPLIER,CAMBIAN GROUP LTD,300000020462057
Portsmouth City Council,PCC,Children's and Education Services,Children Looked After,Children's Services and Education,Third Party Payments,Other establishments,05-Apr-23,6711098,325.96,SUPPLIER,CAMBIAN GROUP LTD,300000020462057
Portsmouth City Council,PCC,Children's and Education Services,Children Looked After,Children's Services and Education,Third Party Payments,Other establishments,05-Apr-23,6711098,325.96,SUPPLIER,CAMBIAN GROUP LTD,300000020462057
Portsmouth City Council,PCC,Children's and Education Services,Children Looked After,Children's Services and Education,Third Party Payments,Other establishments,05-Apr-23,6711098,325.96,SUPPLIER,CAMBIAN GROUP LTD,300000020462057
Portsmouth City Council,PCC,Children's and Education Services,Children Looked After,Children's Services and Education,Third Party Payments,Other establishments,05-Apr-23,6711098,484.05,SUPPLIER,CAMBIAN GROUP LTD,300000020462057
Portsmouth City Council,PCC,Children's and Education Services,Children Looked After,Children's Services and Education,Third Party Payments,Other establishments,05-Apr-23,6711098,484.05,SUPPLIER,CAMBIAN GROUP LTD,300000020462057
Portsmouth City Council,PCC,Children's and Education Services,Children Looked After,Children's Services and Education,Third Party Payments,Other establishments,05-Apr-23,6711098,"3,388.38",SUPPLIER,CAMBIAN GROUP LTD,300000020462057
Portsmouth City Council,PCC,Children's and Education Services,Children Looked After,Children's Services and Education,Third Party Payments,Other establishments,05-Apr-23,6711098,"3,388.38",SUPPLIER,CAMBIAN GROUP LTD,300000020462057
Portsmouth City Council,PCC,Children's and Education Services,Children Looked After,Children's Services and Education,Third Party Payments,Other establishments,05-Apr-23,6711098,"3,388.38",SUPPLIER,CAMBIAN GROUP LTD,300000020462057
Portsmouth City Council,PCC,Children's and Education Services,Children Looked After,Children's Services and Education,Third Party Payments,Other establishments,05-Apr-23,6711098,"3,388.38",SUPPLIER,CAMBIAN GROUP LTD,300000020462057
Portsmouth City Council,PCC,Children's and Education Services,Children Looked After,Children's Services and Education,Third Party Payments,Other establishments,05-Apr-23,6711098,"-1,825.18",SUPPLIER,CAMBIAN GROUP LTD,300000020462057
Portsmouth City Council,PCC,Children's and Education Services,Children Looked After,Children's Services and Education,Third Party Payments,Other establishments,05-Apr-23,6711098,276.42,SUPPLIER,CAMBIAN GROUP LTD,300000020462057
Portsmouth City Council,PCC,Children's and Education Services,Children Looked After,Children's Services and Education,Third Party Payments,Other establishments,05-Apr-23,6711098,276.42,SUPPLIER,CAMBIAN GROUP LTD,300000020462057
Portsmouth City Council,PCC,Children's and Education Services,Children Looked After,Children's Services and Education,Third Party Payments,Other establishments,05-Apr-23,6711098,"1,934.94",SUPPLIER,CAMBIAN GROUP LTD,300000020462057
Portsmouth City Council,PCC,Children's and Education Services,Children Looked After,Children's Services and Education,Third Party Payments,Other establishments,05-Apr-23,6711098,"1,934.94",SUPPLIER,CAMBIAN GROUP LTD,300000020462057
Portsmouth City Council,PCC,Children's and Education Services,Children Looked After,Children's Services and Education,Third Party Payments,Other establishments,05-Apr-23,6711098,"1,934.94",SUPPLIER,CAMBIAN GROUP LTD,300000020462057
Portsmouth City Council,PCC,Children's and Education Services,Children Looked After,Children's Services and Education,Third Party Payments,Other establishments,05-Apr-23,6711098,"1,934.94",SUPPLIER,CAMBIAN GROUP LTD,300000020462057
Portsmouth City Council,PCC,Children's and Education Services,Children Looked After,Children's Services and Education,Third Party Payments,Other establishments,05-Apr-23,6711098,"1,825.23",SUPPLIER,CAMBIAN GROUP LTD,300000020462057
Portsmouth City Council,PCC,Children's and Education Services,Safeguarding Children and Young Peoples Services,Children's Services and Education,Third Party Payments,Other establishments,17-Apr-23,6712537,"2,217.00",SUPPLIER,BATH SPA UNIVERSITY,300000508148957
Portsmouth City Council,PCC,Children's and Education Services,Children Looked After,Children's Services and Education,Third Party Payments,Other establishments,06-Apr-23,6711180,493.28,SUPPLIER,FOSTER CARE ASSOCIATES LTD,300000020461175
Portsmouth City Council,PCC,Children's and Education Services,Children Looked After,Children's Services and Education,Third Party Payments,Other establishments,06-Apr-23,6711180,739.92,SUPPLIER,FOSTER CARE ASSOCIATES LTD,300000020461175
Portsmouth City Council,PCC,Children's and Education Services,Children Looked After,Children's Services and Education,Third Party Payments,Other establishments,06-Apr-23,6711180,863.24,SUPPLIER,FOSTER CARE ASSOCIATES LTD,300000020461175
Portsmouth City Council,PCC,Children's and Education Services,Children Looked After,Children's Services and Education,Third Party Payments,Other establishments,06-Apr-23,6711180,863.24,SUPPLIER,FOSTER CARE ASSOCIATES LTD,300000020461175
Portsmouth City Council,PCC,Children's and Education Services,Children Looked After,Children's Services and Education,Third Party Payments,Other establishments,06-Apr-23,6711180,863.24,SUPPLIER,FOSTER CARE ASSOCIATES LTD,300000020461175
Portsmouth City Council,PCC,Children's and Education Services,Family Support Services,Children's Services and Education,Third Party Payments,Other establishments,03-Apr-23,6710201,200,SUPPLIER,HOPE INTO ACTION PORTSMOUTH,300000020472723
Portsmouth City Council,PCC,Children's and Education Services,Family Support Services,Children's Services and Education,Third Party Payments,Other establishments,03-Apr-23,6710201,700,SUPPLIER,HOPE INTO ACTION PORTSMOUTH,300000020472723
Portsmouth City Council,PCC,Children's and Education Services,Children Looked After,Children's Services and Education,Third Party Payments,Other establishments,12-Apr-23,6712199,0.01,LIMITED COMPANY,UNIQUE CARE HOMES LIMITED,300000546966251
Portsmouth City Council,PCC,Children's and Education Services,Children Looked After,Children's Services and Education,Third Party Payments,Other establishments,12-Apr-23,6712199,"2,657.14",LIMITED COMPANY,UNIQUE CARE HOMES LIMITED,300000546966251
Portsmouth City Council,PCC,Children's and Education Services,Children Looked After,Children's Services and Education,Third Party Payments,Other establishments,12-Apr-23,6712199,"3,985.71",LIMITED COMPANY,UNIQUE CARE HOMES LIMITED,300000546966251
Portsmouth City Council,PCC,Children's and Education Services,Children Looked After,Children's Services and Education,Third Party Payments,Other establishments,12-Apr-23,6712199,"4,650.00",LIMITED COMPANY,UNIQUE CARE HOMES LIMITED,300000546966251
Portsmouth City Council,PCC,Children's and Education Services,Children Looked After,Children's Services and Education,Third Party Payments,Other establishments,12-Apr-23,6712199,"4,650.00",LIMITED COMPANY,UNIQUE CARE HOMES LIMITED,300000546966251
Portsmouth City Council,PCC,Children's and Education Services,Children Looked After,Children's Services and Education,Third Party Payments,Other establishments,12-Apr-23,6712199,"4,650.00",LIMITED COMPANY,UNIQUE CARE HOMES LIMITED,300000546966251
Portsmouth City Council,PCC,Children's and Education Services,Asylum seekers,Children's Services and Education,Third Party Payments,Other establishments,06-Apr-23,6711356,485.71,SUPPLIER,FAMILY FIRST FOSTERING,300000020483859
Portsmouth City Council,PCC,Children's and Education Services,Asylum seekers,Children's Services and Education,Third Party Payments,Other establishments,06-Apr-23,6711356,728.57,SUPPLIER,FAMILY FIRST FOSTERING,300000020483859
Portsmouth City Council,PCC,Children's and Education Services,Asylum seekers,Children's Services and Education,Third Party Payments,Other establishments,06-Apr-23,6711356,850,SUPPLIER,FAMILY FIRST FOSTERING,300000020483859
Portsmouth City Council,PCC,Children's and Education Services,Asylum seekers,Children's Services and Education,Third Party Payments,Other establishments,06-Apr-23,6711356,850,SUPPLIER,FAMILY FIRST FOSTERING,300000020483859
Portsmouth City Council,PCC,Children's and Education Services,Asylum seekers,Children's Services and Education,Third Party Payments,Other establishments,06-Apr-23,6711356,850,SUPPLIER,FAMILY FIRST FOSTERING,300000020483859
Portsmouth City Council,PCC,Children's and Education Services,Safeguarding Children and Young Peoples Services,Children's Services and Education,Third Party Payments,Other establishments,06-Apr-23,6711356,522.91,SUPPLIER,FAMILY FIRST FOSTERING,300000020483859
Portsmouth City Council,PCC,Children's and Education Services,Safeguarding Children and Young Peoples Services,Children's Services and Education,Third Party Payments,Other establishments,06-Apr-23,6711356,784.37,SUPPLIER,FAMILY FIRST FOSTERING,300000020483859
Portsmouth City Council,PCC,Children's and Education Services,Safeguarding Children and Young Peoples Services,Children's Services and Education,Third Party Payments,Other establishments,06-Apr-23,6711356,915.1,SUPPLIER,FAMILY FIRST FOSTERING,300000020483859
Portsmouth City Council,PCC,Children's and Education Services,Safeguarding Children and Young Peoples Services,Children's Services and Education,Third Party Payments,Other establishments,06-Apr-23,6711356,915.1,SUPPLIER,FAMILY FIRST FOSTERING,300000020483859
Portsmouth City Council,PCC,Children's and Education Services,Safeguarding Children and Young Peoples Services,Children's Services and Education,Third Party Payments,Other establishments,06-Apr-23,6711356,915.1,SUPPLIER,FAMILY FIRST FOSTERING,300000020483859
Portsmouth City Council,PCC,Children's and Education Services,Safeguarding Children and Young Peoples Services,Children's Services and Education,Third Party Payments,Other establishments,06-Apr-23,6711356,522.91,SUPPLIER,FAMILY FIRST FOSTERING,300000020483859
Portsmouth City Council,PCC,Children's and Education Services,Safeguarding Children and Young Peoples Services,Children's Services and Education,Third Party Payments,Other establishments,06-Apr-23,6711356,784.37,SUPPLIER,FAMILY FIRST FOSTERING,300000020483859
Portsmouth City Council,PCC,Children's and Education Services,Safeguarding Children and Young Peoples Services,Children's Services and Education,Third Party Payments,Other establishments,06-Apr-23,6711356,915.1,SUPPLIER,FAMILY FIRST FOSTERING,300000020483859
Portsmouth City Council,PCC,Children's and Education Services,Safeguarding Children and Young Peoples Services,Children's Services and Education,Third Party Payments,Other establishments,06-Apr-23,6711356,915.1,SUPPLIER,FAMILY FIRST FOSTERING,300000020483859
Portsmouth City Council,PCC,Children's and Education Services,Safeguarding Children and Young Peoples Services,Children's Services and Education,Third Party Payments,Other establishments,06-Apr-23,6711356,915.1,SUPPLIER,FAMILY FIRST FOSTERING,300000020483859
Portsmouth City Council,PCC,Children's and Education Services,Safeguarding Children and Young Peoples Services,Children's Services and Education,Third Party Payments,Other establishments,06-Apr-23,6711356,500,SUPPLIER,FAMILY FIRST FOSTERING,300000020483859
Portsmouth City Council,PCC,Children's and Education Services,Safeguarding Children and Young Peoples Services,Children's Services and Education,Third Party Payments,Other establishments,06-Apr-23,6711356,750,SUPPLIER,FAMILY FIRST FOSTERING,300000020483859
Portsmouth City Council,PCC,Children's and Education Services,Safeguarding Children and Young Peoples Services,Children's Services and Education,Third Party Payments,Other establishments,06-Apr-23,6711356,875,SUPPLIER,FAMILY FIRST FOSTERING,300000020483859
Portsmouth City Council,PCC,Children's and Education Services,Safeguarding Children and Young Peoples Services,Children's Services and Education,Third Party Payments,Other establishments,06-Apr-23,6711356,875,SUPPLIER,FAMILY FIRST FOSTERING,300000020483859
Portsmouth City Council,PCC,Children's and Education Services,Safeguarding Children and Young Peoples Services,Children's Services and Education,Third Party Payments,Other establishments,06-Apr-23,6711356,875,SUPPLIER,FAMILY FIRST FOSTERING,300000020483859
Portsmouth City Council,PCC,Children's and Education Services,Safeguarding Children and Young Peoples Services,Children's Services and Education,Third Party Payments,Other establishments,06-Apr-23,6711356,0.01,SUPPLIER,FAMILY FIRST FOSTERING,300000020483859
Portsmouth City Council,PCC,Children's and Education Services,Safeguarding Children and Young Peoples Services,Children's Services and Education,Third Party Payments,Other establishments,06-Apr-23,6711356,285.71,SUPPLIER,FAMILY FIRST FOSTERING,300000020483859
Portsmouth City Council,PCC,Children's and Education Services,Safeguarding Children and Young Peoples Services,Children's Services and Education,Third Party Payments,Other establishments,06-Apr-23,6711356,428.57,SUPPLIER,FAMILY FIRST FOSTERING,300000020483859
Portsmouth City Council,PCC,Children's and Education Services,Safeguarding Children and Young Peoples Services,Children's Services and Education,Third Party Payments,Other establishments,06-Apr-23,6711356,500,SUPPLIER,FAMILY FIRST FOSTERING,300000020483859
Portsmouth City Council,PCC,Children's and Education Services,Safeguarding Children and Young Peoples Services,Children's Services and Education,Third Party Payments,Other establishments,06-Apr-23,6711356,500,SUPPLIER,FAMILY FIRST FOSTERING,300000020483859
Portsmouth City Council,PCC,Children's and Education Services,Safeguarding Children and Young Peoples Services,Children's Services and Education,Third Party Payments,Other establishments,06-Apr-23,6711356,500,SUPPLIER,FAMILY FIRST FOSTERING,300000020483859
Portsmouth City Council,PCC,Children's and Education Services,Children Looked After,Children's Services and Education,Third Party Payments,Other establishments,06-Apr-23,6711403,630,SUPPLIER,TIDAL FAMILY SUPPORT,300000521182927
Portsmouth City Council,PCC,Children's and Education Services,Family Support Services,Children's Services and Education,Supplies and Services,Services,05-Apr-23,6711062,84,SUPPLIER,AA GLOBAL LANGUAGE SERVICES LTD,300000020483226
Portsmouth City Council,PCC,Children's and Education Services,Other Children and Family Services,Children's Services and Education,Supplies and Services,Services,05-Apr-23,6711062,327,SUPPLIER,AA GLOBAL LANGUAGE SERVICES LTD,300000020483226
Portsmouth City Council,PCC,Children's and Education Services,Family Support Services,Children's Services and Education,Supplies and Services,Services,05-Apr-23,6711062,35,SUPPLIER,AA GLOBAL LANGUAGE SERVICES LTD,300000020483226
Portsmouth City Council,PCC,Children's and Education Services,Other Children and Family Services,Children's Services and Education,Supplies and Services,Services,05-Apr-23,6711062,35,SUPPLIER,AA GLOBAL LANGUAGE SERVICES LTD,300000020483226
Portsmouth City Council,PCC,Children's and Education Services,Family Support Services,Children's Services and Education,Supplies and Services,Services,05-Apr-23,6711062,588,SUPPLIER,AA GLOBAL LANGUAGE SERVICES LTD,300000020483226
Portsmouth City Council,PCC,Children's and Education Services,Children Looked After,Children's Services and Education,Supplies and Services,Services,05-Apr-23,6711062,35,SUPPLIER,AA GLOBAL LANGUAGE SERVICES LTD,300000020483226
Portsmouth City Council,PCC,Children's and Education Services,Family Support Services,Children's Services and Education,Supplies and Services,Services,05-Apr-23,6711062,445,SUPPLIER,AA GLOBAL LANGUAGE SERVICES LTD,300000020483226
Portsmouth City Council,PCC,Children's and Education Services,Other Children and Family Services,Children's Services and Education,Supplies and Services,Services,05-Apr-23,6711062,35,SUPPLIER,AA GLOBAL LANGUAGE SERVICES LTD,300000020483226
Portsmouth City Council,PCC,Children's and Education Services,Children Looked After,Children's Services and Education,Third Party Payments,Other establishments,13-Apr-23,6712233,-0.09,SUPPLIER,FAIR WAYS COMMUNITY BENEFIT SOCEITY T/A FAIRWAYS CARE (UK) LTD,300000020459125
Portsmouth City Council,PCC,Children's and Education Services,Children Looked After,Children's Services and Education,Third Party Payments,Other establishments,13-Apr-23,6712233,"2,529.65",SUPPLIER,FAIR WAYS COMMUNITY BENEFIT SOCEITY T/A FAIRWAYS CARE (UK) LTD,300000020459125
Portsmouth City Council,PCC,Children's and Education Services,Children Looked After,Children's Services and Education,Third Party Payments,Other establishments,13-Apr-23,6712233,"3,794.48",SUPPLIER,FAIR WAYS COMMUNITY BENEFIT SOCEITY T/A FAIRWAYS CARE (UK) LTD,300000020459125
Portsmouth City Council,PCC,Children's and Education Services,Children Looked After,Children's Services and Education,Third Party Payments,Other establishments,13-Apr-23,6712233,"4,426.89",SUPPLIER,FAIR WAYS COMMUNITY BENEFIT SOCEITY T/A FAIRWAYS CARE (UK) LTD,300000020459125
Portsmouth City Council,PCC,Children's and Education Services,Children Looked After,Children's Services and Education,Third Party Payments,Other establishments,13-Apr-23,6712233,"4,426.89",SUPPLIER,FAIR WAYS COMMUNITY BENEFIT SOCEITY T/A FAIRWAYS CARE (UK) LTD,300000020459125
Portsmouth City Council,PCC,Children's and Education Services,Children Looked After,Children's Services and Education,Third Party Payments,Other establishments,13-Apr-23,6712233,"4,426.89",SUPPLIER,FAIR WAYS COMMUNITY BENEFIT SOCEITY T/A FAIRWAYS CARE (UK) LTD,300000020459125
Portsmouth City Council,PCC,Children's and Education Services,Safeguarding Children and Young Peoples Services,Children's Services and Education,Third Party Payments,Other establishments,06-Apr-23,6711246,0.01,LIMITED COMPANY,IASPIRE CARE SERVICES LTD,300000540941627
Portsmouth City Council,PCC,Children's and Education Services,Safeguarding Children and Young Peoples Services,Children's Services and Education,Third Party Payments,Other establishments,06-Apr-23,6711246,557.14,LIMITED COMPANY,IASPIRE CARE SERVICES LTD,300000540941627
Portsmouth City Council,PCC,Children's and Education Services,Safeguarding Children and Young Peoples Services,Children's Services and Education,Third Party Payments,Other establishments,06-Apr-23,6711246,835.71,LIMITED COMPANY,IASPIRE CARE SERVICES LTD,300000540941627
Portsmouth City Council,PCC,Children's and Education Services,Safeguarding Children and Young Peoples Services,Children's Services and Education,Third Party Payments,Other establishments,06-Apr-23,6711246,975,LIMITED COMPANY,IASPIRE CARE SERVICES LTD,300000540941627
Portsmouth City Council,PCC,Children's and Education Services,Safeguarding Children and Young Peoples Services,Children's Services and Education,Third Party Payments,Other establishments,06-Apr-23,6711246,975,LIMITED COMPANY,IASPIRE CARE SERVICES LTD,300000540941627
Portsmouth City Council,PCC,Children's and Education Services,Safeguarding Children and Young Peoples Services,Children's Services and Education,Third Party Payments,Other establishments,06-Apr-23,6711246,975,LIMITED COMPANY,IASPIRE CARE SERVICES LTD,300000540941627
Portsmouth City Council,PCC,Children's and Education Services,Safeguarding Children and Young Peoples Services,Children's Services and Education,Third Party Payments,Other establishments,06-Apr-23,6711356,83.22,SUPPLIER,FAMILY FIRST FOSTERING,300000020483859
Portsmouth City Council,PCC,Children's and Education Services,Safeguarding Children and Young Peoples Services,Children's Services and Education,Third Party Payments,Other establishments,06-Apr-23,6711356,493,SUPPLIER,FAMILY FIRST FOSTERING,300000020483859
Portsmouth City Council,PCC,Children's and Education Services,Safeguarding Children and Young Peoples Services,Children's Services and Education,Third Party Payments,Other establishments,06-Apr-23,6711356,499.33,SUPPLIER,FAMILY FIRST FOSTERING,300000020483859
Portsmouth City Council,PCC,Children's and Education Services,Safeguarding Children and Young Peoples Services,Children's Services and Education,Third Party Payments,Other establishments,06-Apr-23,6711356,582.55,SUPPLIER,FAMILY FIRST FOSTERING,300000020483859
Portsmouth City Council,PCC,Children's and Education Services,Safeguarding Children and Young Peoples Services,Children's Services and Education,Third Party Payments,Other establishments,06-Apr-23,6711356,582.55,SUPPLIER,FAMILY FIRST FOSTERING,300000020483859
Portsmouth City Council,PCC,Children's and Education Services,Safeguarding Children and Young Peoples Services,Children's Services and Education,Third Party Payments,Other establishments,06-Apr-23,6711356,739.5,SUPPLIER,FAMILY FIRST FOSTERING,300000020483859
Portsmouth City Council,PCC,Adult Social Care,Learning Disability Support Adults (18 - 64),Adult Care,Third Party Payments,Other establishments,12-Apr-23,6711827,"7,521.90",SUPPLIER, ACHIEVE TOGETHER LIMITED,300000020469986
Portsmouth City Council,PCC,Adult Social Care,Learning Disability Support Adults (18 - 64),Adult Care,Third Party Payments,Other establishments,12-Apr-23,6711827,"7,540.20",SUPPLIER, ACHIEVE TOGETHER LIMITED,300000020469986
Portsmouth City Council,PCC,Adult Social Care,Learning Disabilty Support Older People (65 - 74),Adult Care,Third Party Payments,Joint authorities,12-Apr-23,6711827,"8,734.20",SUPPLIER, ACHIEVE TOGETHER LIMITED,300000020469986
Portsmouth City Council,PCC,Adult Social Care,Learning Disability Support Adults (18 - 64),Adult Care,Third Party Payments,Other establishments,12-Apr-23,6711827,"8,751.90",SUPPLIER, ACHIEVE TOGETHER LIMITED,300000020469986
Portsmouth City Council,PCC,Adult Social Care,Learning Disability Support Adults (18 - 64),Adult Care,Third Party Payments,Other establishments,12-Apr-23,6711827,"9,129.00",SUPPLIER, ACHIEVE TOGETHER LIMITED,300000020469986
Portsmouth City Council,PCC,Adult Social Care,Learning Disability Support Adults (18 - 64),Adult Care,Third Party Payments,Other establishments,12-Apr-23,6711827,"9,965.40",SUPPLIER, ACHIEVE TOGETHER LIMITED,300000020469986
Portsmouth City Council,PCC,Adult Social Care,Learning Disability Support Adults (18 - 64),Adult Care,Third Party Payments,Other establishments,12-Apr-23,6711827,"13,646.70",SUPPLIER, ACHIEVE TOGETHER LIMITED,300000020469986
Portsmouth City Council,PCC,Adult Social Care,Learning Disability Support Adults (18 - 64),Adult Care,Third Party Payments,Other establishments,25-Apr-23,6714099,-587.76,SUPPLIER, ACHIEVE TOGETHER LIMITED,300000020469986
Portsmouth City Council,PCC,Adult Social Care,Learning Disability Support Adults (18 - 64),Adult Care,Third Party Payments,Other establishments,25-Apr-23,6714099,-191.42,SUPPLIER, ACHIEVE TOGETHER LIMITED,300000020469986
Portsmouth City Council,PCC,Adult Social Care,Learning Disability Support Adults (18 - 64),Adult Care,Third Party Payments,Other establishments,25-Apr-23,6714099,-91.86,SUPPLIER, ACHIEVE TOGETHER LIMITED,300000020469986
Portsmouth City Council,PCC,Adult Social Care,Learning Disability Support Adults (18 - 64),Adult Care,Third Party Payments,Other establishments,25-Apr-23,6714099,-29.63,SUPPLIER, ACHIEVE TOGETHER LIMITED,300000020469986
Portsmouth City Council,PCC,Adult Social Care,Learning Disabilty Support Older People (65 - 74),Adult Care,Third Party Payments,Joint authorities,25-Apr-23,6714099,462.86,SUPPLIER, ACHIEVE TOGETHER LIMITED,300000020469986
Portsmouth City Council,PCC,Adult Social Care,Learning Disability Support Adults (18 - 64),Adult Care,Third Party Payments,Other establishments,25-Apr-23,6714099,747.51,SUPPLIER, ACHIEVE TOGETHER LIMITED,300000020469986
Portsmouth City Council,PCC,Adult Social Care,Learning Disability Support Adults (18 - 64),Adult Care,Third Party Payments,Other establishments,25-Apr-23,6714099,747.51,SUPPLIER, ACHIEVE TOGETHER LIMITED,300000020469986
Portsmouth City Council,PCC,Adult Social Care,Learning Disability Support Adults (18 - 64),Adult Care,Third Party Payments,Other establishments,25-Apr-23,6714099,747.51,SUPPLIER, ACHIEVE TOGETHER LIMITED,300000020469986
Portsmouth City Council,PCC,Adult Social Care,Learning Disability Support Adults (18 - 64),Adult Care,Third Party Payments,Other establishments,25-Apr-23,6714099,747.51,SUPPLIER, ACHIEVE TOGETHER LIMITED,300000020469986
Portsmouth City Council,PCC,Adult Social Care,Learning Disability Support Adults (18 - 64),Adult Care,Third Party Payments,Other establishments,25-Apr-23,6714099,747.51,SUPPLIER, ACHIEVE TOGETHER LIMITED,300000020469986
Portsmouth City Council,PCC,Adult Social Care,Learning Disability Support Adults (18 - 64),Adult Care,Third Party Payments,Other establishments,25-Apr-23,6714099,747.51,SUPPLIER, ACHIEVE TOGETHER LIMITED,300000020469986
Portsmouth City Council,PCC,Adult Social Care,Learning Disability Support Adults (18 - 64),Adult Care,Third Party Payments,Other establishments,25-Apr-23,6714099,747.51,SUPPLIER, ACHIEVE TOGETHER LIMITED,300000020469986
Portsmouth City Council,PCC,Adult Social Care,Learning Disability Support Adults (18 - 64),Adult Care,Third Party Payments,Other establishments,25-Apr-23,6714099,747.51,SUPPLIER, ACHIEVE TOGETHER LIMITED,300000020469986
Portsmouth City Council,PCC,Housing Revenue Account,"Rents, Rates, Taxes and Other Charges","Housing, Neighbourhood and Building Services",Premises-Related Expenditure,Rates,25-Apr-23,6713970,269,OTHER LOCAL AUTHORITY,HAVANT BOROUGH COUNCIL,300000020457057
Portsmouth City Council,PCC,Housing Revenue Account,"Rents, Rates, Taxes and Other Charges","Housing, Neighbourhood and Building Services",Premises-Related Expenditure,Rates,25-Apr-23,6713970,135,OTHER LOCAL AUTHORITY,HAVANT BOROUGH COUNCIL,300000020457057
Portsmouth City Council,PCC,Housing Revenue Account,"Rents, Rates, Taxes and Other Charges","Housing, Neighbourhood and Building Services",Premises-Related Expenditure,Rates,25-Apr-23,6713970,135,OTHER LOCAL AUTHORITY,HAVANT BOROUGH COUNCIL,300000020457057
Portsmouth City Council,PCC,Housing Revenue Account,"Rents, Rates, Taxes and Other Charges","Housing, Neighbourhood and Building Services",Premises-Related Expenditure,Rates,25-Apr-23,6713970,135,OTHER LOCAL AUTHORITY,HAVANT BOROUGH COUNCIL,300000020457057
Portsmouth City Council,PCC,Adult Social Care,Learning Disability Support Adults (18 - 64),Adult Care,Third Party Payments,Other establishments,25-Apr-23,6714099,747.51,SUPPLIER, ACHIEVE TOGETHER LIMITED,300000020469986
Portsmouth City Council,PCC,Adult Social Care,Learning Disability Support Adults (18 - 64),Adult Care,Third Party Payments,Other establishments,25-Apr-23,6714099,747.51,SUPPLIER, ACHIEVE TOGETHER LIMITED,300000020469986
Portsmouth City Council,PCC,Adult Social Care,Learning Disabilty Support Older People (65 - 74),Adult Care,Third Party Payments,Joint authorities,25-Apr-23,6714099,747.51,SUPPLIER, ACHIEVE TOGETHER LIMITED,300000020469986
Portsmouth City Council,PCC,Housing Revenue Account,"Rents, Rates, Taxes and Other Charges","Housing, Neighbourhood and Building Services",Premises-Related Expenditure,Rates,25-Apr-23,6713970,179,OTHER LOCAL AUTHORITY,HAVANT BOROUGH COUNCIL,300000020457057
Portsmouth City Council,PCC,Cultural and Related Services,Open Spaces,"Culture, Leisure & Regulatory Services",Premises-Related Expenditure,Water Services,13-Apr-23,6712284,-0.55,LIMITED COMPANY,WAVE LTD,300000457049455
Portsmouth City Council,PCC,Cultural and Related Services,Open Spaces,"Culture, Leisure & Regulatory Services",Premises-Related Expenditure,Water Services,13-Apr-23,6712284,137.61,LIMITED COMPANY,WAVE LTD,300000457049455
Portsmouth City Council,PCC,Housing Revenue Account,Special Services,"Housing, Neighbourhood and Building Services",Premises-Related Expenditure,Water Services,13-Apr-23,6712284,47.76,LIMITED COMPANY,WAVE LTD,300000457049455
Portsmouth City Council,PCC,Cultural and Related Services,Culture and Heritage,"Culture, Leisure & Regulatory Services",Premises-Related Expenditure,Water Services,13-Apr-23,6712284,35.84,LIMITED COMPANY,WAVE LTD,300000457049455
Portsmouth City Council,PCC,Cultural and Related Services,Open Spaces,"Culture, Leisure & Regulatory Services",Premises-Related Expenditure,Water Services,13-Apr-23,6712284,22.84,LIMITED COMPANY,WAVE LTD,300000457049455
Portsmouth City Council,PCC,Housing Revenue Account,"Rents, Rates, Taxes and Other Charges","Housing, Neighbourhood and Building Services",Premises-Related Expenditure,Water Services,13-Apr-23,6712284,8.68,LIMITED COMPANY,WAVE LTD,300000457049455
Portsmouth City Council,PCC,Housing Revenue Account,Special Services,"Housing, Neighbourhood and Building Services",Premises-Related Expenditure,Water Services,13-Apr-23,6712284,8.76,LIMITED COMPANY,WAVE LTD,300000457049455
Portsmouth City Council,PCC,Children's and Education Services,Family Support Services,Children's Services and Education,Premises-Related Expenditure,Water Services,13-Apr-23,6712284,442.98,LIMITED COMPANY,WAVE LTD,300000457049455
Portsmouth City Council,PCC,Housing Revenue Account,"Rents, Rates, Taxes and Other Charges","Housing, Neighbourhood and Building Services",Premises-Related Expenditure,Water Services,13-Apr-23,6712284,3.19,LIMITED COMPANY,WAVE LTD,300000457049455
Portsmouth City Council,PCC,Housing Revenue Account,"Rents, Rates, Taxes and Other Charges","Housing, Neighbourhood and Building Services",Premises-Related Expenditure,Water Services,13-Apr-23,6712284,32.62,LIMITED COMPANY,WAVE LTD,300000457049455
Portsmouth City Council,PCC,Highways and Transport Services,Public Transport,Regeneration,Premises-Related Expenditure,Water Services,13-Apr-23,6712284,155.58,LIMITED COMPANY,WAVE LTD,300000457049455
Portsmouth City Council,PCC,Cultural and Related Services,Open Spaces,"Culture, Leisure & Regulatory Services",Premises-Related Expenditure,Water Services,13-Apr-23,6712284,19.83,LIMITED COMPANY,WAVE LTD,300000457049455
Portsmouth City Council,PCC,Cultural and Related Services,Open Spaces,"Culture, Leisure & Regulatory Services",Premises-Related Expenditure,Water Services,13-Apr-23,6712284,779.42,LIMITED COMPANY,WAVE LTD,300000457049455
Portsmouth City Council,PCC,Children's and Education Services,Primary Schools,Children's Services and Education,Premises-Related Expenditure,Water Services,13-Apr-23,6712284,741.1,LIMITED COMPANY,WAVE LTD,300000457049455
Portsmouth City Council,PCC,Cultural and Related Services,Open Spaces,"Culture, Leisure & Regulatory Services",Premises-Related Expenditure,Water Services,13-Apr-23,6712284,60.24,LIMITED COMPANY,WAVE LTD,300000457049455
Portsmouth City Council,PCC,Cultural and Related Services,Open Spaces,"Culture, Leisure & Regulatory Services",Premises-Related Expenditure,Water Services,13-Apr-23,6712284,170.62,LIMITED COMPANY,WAVE LTD,300000457049455
Portsmouth City Council,PCC,Other,Trust Funds,Other,Premises-Related Expenditure,Water Services,13-Apr-23,6712284,70.18,LIMITED COMPANY,WAVE LTD,300000457049455
Portsmouth City Council,PCC,Housing Revenue Account,Special Services,"Housing, Neighbourhood and Building Services",Premises-Related Expenditure,Water Services,13-Apr-23,6712284,211.64,LIMITED COMPANY,WAVE LTD,300000457049455
Portsmouth City Council,PCC,Housing Revenue Account,Special Services,"Housing, Neighbourhood and Building Services",Premises-Related Expenditure,Water Services,13-Apr-23,6712284,97.81,LIMITED COMPANY,WAVE LTD,300000457049455
Portsmouth City Council,PCC,Housing Revenue Account,"Rents, Rates, Taxes and Other Charges","Housing, Neighbourhood and Building Services",Premises-Related Expenditure,Water Services,13-Apr-23,6712284,2.78,LIMITED COMPANY,WAVE LTD,300000457049455
Portsmouth City Council,PCC,Children's and Education Services,Primary Schools,Children's Services and Education,Premises-Related Expenditure,Water Services,13-Apr-23,6712284,278.59,LIMITED COMPANY,WAVE LTD,300000457049455
Portsmouth City Council,PCC,Housing Revenue Account,Special Services,"Housing, Neighbourhood and Building Services",Premises-Related Expenditure,Water Services,13-Apr-23,6712284,45.94,LIMITED COMPANY,WAVE LTD,300000457049455
Portsmouth City Council,PCC,Central Services,"Registration of Births, Deaths and Marriages","Culture, Leisure & Regulatory Services",Premises-Related Expenditure,Water Services,13-Apr-23,6712284,15.43,LIMITED COMPANY,WAVE LTD,300000457049455
Portsmouth City Council,PCC,Cultural and Related Services,Culture and Heritage,"Culture, Leisure & Regulatory Services",Premises-Related Expenditure,Water Services,13-Apr-23,6712284,15.43,LIMITED COMPANY,WAVE LTD,300000457049455
Portsmouth City Council,PCC,Children's and Education Services,Primary Schools,Children's Services and Education,Premises-Related Expenditure,Water Services,13-Apr-23,6712284,287.33,LIMITED COMPANY,WAVE LTD,300000457049455
Portsmouth City Council,PCC,Environmental and Regulatory Services,Regulatory Services,"Housing, Neighbourhood and Building Services",Premises-Related Expenditure,Water Services,13-Apr-23,6712284,307.9,LIMITED COMPANY,WAVE LTD,300000457049455
Portsmouth City Council,PCC,Environmental and Regulatory Services,Regulatory Services,"Housing, Neighbourhood and Building Services",Premises-Related Expenditure,Water Services,13-Apr-23,6712284,16.51,LIMITED COMPANY,WAVE LTD,300000457049455
Portsmouth City Council,PCC,Housing Revenue Account,"Rents, Rates, Taxes and Other Charges","Housing, Neighbourhood and Building Services",Premises-Related Expenditure,Water Services,13-Apr-23,6712284,32.62,LIMITED COMPANY,WAVE LTD,300000457049455
Portsmouth City Council,PCC,Children's and Education Services,Primary Schools,Children's Services and Education,Premises-Related Expenditure,Water Services,13-Apr-23,6712284,107.94,LIMITED COMPANY,WAVE LTD,300000457049455
Portsmouth City Council,PCC,Children's and Education Services,Primary Schools,Children's Services and Education,Premises-Related Expenditure,Water Services,13-Apr-23,6712284,160.86,LIMITED COMPANY,WAVE LTD,300000457049455
Portsmouth City Council,PCC,Housing Revenue Account,"Rents, Rates, Taxes and Other Charges","Housing, Neighbourhood and Building Services",Premises-Related Expenditure,Water Services,13-Apr-23,6712284,30.26,LIMITED COMPANY,WAVE LTD,300000457049455
Portsmouth City Council,PCC,Highways and Transport Services,"Transport Planning, Policy and Strategy",Regeneration,Premises-Related Expenditure,Water Services,13-Apr-23,6712284,4.45,LIMITED COMPANY,WAVE LTD,300000457049455
Portsmouth City Council,PCC,Adult Social Care,Learning Disability Support Adults (18 - 64),Adult Care,Third Party Payments,Other establishments,25-Apr-23,6714099,749.83,SUPPLIER, ACHIEVE TOGETHER LIMITED,300000020469986
Portsmouth City Council,PCC,Cultural and Related Services,Culture and Heritage,"Culture, Leisure & Regulatory Services",Premises-Related Expenditure,Water Services,13-Apr-23,6712284,49.06,LIMITED COMPANY,WAVE LTD,300000457049455
Portsmouth City Council,PCC,Costs below Net Cost of Services,Trading,"Housing, Neighbourhood and Building Services",Premises-Related Expenditure,Water Services,13-Apr-23,6712284,"1,753.97",LIMITED COMPANY,WAVE LTD,300000457049455
Portsmouth City Council,PCC,Housing Revenue Account,Special Services,"Housing, Neighbourhood and Building Services",Premises-Related Expenditure,Water Services,13-Apr-23,6712284,5.3,LIMITED COMPANY,WAVE LTD,300000457049455
Portsmouth City Council,PCC,Cultural and Related Services,Open Spaces,"Culture, Leisure & Regulatory Services",Premises-Related Expenditure,Water Services,13-Apr-23,6712284,157.45,LIMITED COMPANY,WAVE LTD,300000457049455
Portsmouth City Council,PCC,Cultural and Related Services,Library Service,"Culture, Leisure & Regulatory Services",Premises-Related Expenditure,Water Services,13-Apr-23,6712284,13.71,LIMITED COMPANY,WAVE LTD,300000457049455
Portsmouth City Council,PCC,Cultural and Related Services,Open Spaces,"Culture, Leisure & Regulatory Services",Premises-Related Expenditure,Water Services,13-Apr-23,6712284,76.09,LIMITED COMPANY,WAVE LTD,300000457049455
Portsmouth City Council,PCC,Cultural and Related Services,Open Spaces,"Culture, Leisure & Regulatory Services",Premises-Related Expenditure,Water Services,13-Apr-23,6712284,"1,073.03",LIMITED COMPANY,WAVE LTD,300000457049455
Portsmouth City Council,PCC,Cultural and Related Services,Open Spaces,"Culture, Leisure & Regulatory Services",Premises-Related Expenditure,Water Services,13-Apr-23,6712284,106.79,LIMITED COMPANY,WAVE LTD,300000457049455
Portsmouth City Council,PCC,Housing Revenue Account,Supervision and Management,"Housing, Neighbourhood and Building Services",Premises-Related Expenditure,Water Services,13-Apr-23,6712284,27.73,LIMITED COMPANY,WAVE LTD,300000457049455
Portsmouth City Council,PCC,Housing Revenue Account,Special Services,"Housing, Neighbourhood and Building Services",Premises-Related Expenditure,Water Services,13-Apr-23,6712284,225.66,LIMITED COMPANY,WAVE LTD,300000457049455
Portsmouth City Council,PCC,Housing Revenue Account,Special Services,"Housing, Neighbourhood and Building Services",Premises-Related Expenditure,Water Services,13-Apr-23,6712284,5.69,LIMITED COMPANY,WAVE LTD,300000457049455
Portsmouth City Council,PCC,Planning Services,Business support,Regeneration,Premises-Related Expenditure,Water Services,13-Apr-23,6712284,156.24,LIMITED COMPANY,WAVE LTD,300000457049455
Portsmouth City Council,PCC,Housing Revenue Account,Special Services,"Housing, Neighbourhood and Building Services",Premises-Related Expenditure,Water Services,13-Apr-23,6712284,8.1,LIMITED COMPANY,WAVE LTD,300000457049455
Portsmouth City Council,PCC,Housing Revenue Account,"Rents, Rates, Taxes and Other Charges","Housing, Neighbourhood and Building Services",Premises-Related Expenditure,Water Services,13-Apr-23,6712284,4.45,LIMITED COMPANY,WAVE LTD,300000457049455
Portsmouth City Council,PCC,Housing Revenue Account,Special Services,"Housing, Neighbourhood and Building Services",Premises-Related Expenditure,Water Services,13-Apr-23,6712284,127.22,LIMITED COMPANY,WAVE LTD,300000457049455
Portsmouth City Council,PCC,Costs below Net Cost of Services,Trading,Regeneration,Premises-Related Expenditure,Water Services,13-Apr-23,6712284,2.78,LIMITED COMPANY,WAVE LTD,300000457049455
Portsmouth City Council,PCC,Costs below Net Cost of Services,Trading,Regeneration,Premises-Related Expenditure,Water Services,13-Apr-23,6712284,5.3,LIMITED COMPANY,WAVE LTD,300000457049455
Portsmouth City Council,PCC,Children's and Education Services,Primary Schools,Children's Services and Education,Premises-Related Expenditure,Water Services,13-Apr-23,6712284,128.63,LIMITED COMPANY,WAVE LTD,300000457049455
Portsmouth City Council,PCC,Cultural and Related Services,Open Spaces,"Culture, Leisure & Regulatory Services",Premises-Related Expenditure,Water Services,13-Apr-23,6712284,19.14,LIMITED COMPANY,WAVE LTD,300000457049455
Portsmouth City Council,PCC,Cultural and Related Services,Open Spaces,"Culture, Leisure & Regulatory Services",Premises-Related Expenditure,Water Services,13-Apr-23,6712284,26.49,LIMITED COMPANY,WAVE LTD,300000457049455
Portsmouth City Council,PCC,Cultural and Related Services,Culture and Heritage,"Culture, Leisure & Regulatory Services",Premises-Related Expenditure,Water Services,13-Apr-23,6712284,148.26,LIMITED COMPANY,WAVE LTD,300000457049455
Portsmouth City Council,PCC,Children's and Education Services,Primary Schools,Children's Services and Education,Premises-Related Expenditure,Water Services,13-Apr-23,6712284,291.2,LIMITED COMPANY,WAVE LTD,300000457049455
Portsmouth City Council,PCC,Environmental and Regulatory Services,"Cemetery, Cremation and Mortuary Services","Culture, Leisure & Regulatory Services",Premises-Related Expenditure,Water Services,13-Apr-23,6712284,76.27,LIMITED COMPANY,WAVE LTD,300000457049455
Portsmouth City Council,PCC,Housing Revenue Account,Special Services,"Housing, Neighbourhood and Building Services",Premises-Related Expenditure,Water Services,13-Apr-23,6712284,2.78,LIMITED COMPANY,WAVE LTD,300000457049455
Portsmouth City Council,PCC,Housing Revenue Account,Special Services,"Housing, Neighbourhood and Building Services",Premises-Related Expenditure,Water Services,13-Apr-23,6712284,88.21,LIMITED COMPANY,WAVE LTD,300000457049455
Portsmouth City Council,PCC,Children's and Education Services,Family Support Services,Children's Services and Education,Premises-Related Expenditure,Water Services,13-Apr-23,6712284,183.61,LIMITED COMPANY,WAVE LTD,300000457049455
Portsmouth City Council,PCC,Cultural and Related Services,Open Spaces,"Culture, Leisure & Regulatory Services",Premises-Related Expenditure,Water Services,13-Apr-23,6712284,251.69,LIMITED COMPANY,WAVE LTD,300000457049455
Portsmouth City Council,PCC,Other,Suspense and Capital Schemes,"Housing, Neighbourhood and Building Services",Premises-Related Expenditure,Water Services,13-Apr-23,6712284,208.52,LIMITED COMPANY,WAVE LTD,300000457049455
Portsmouth City Council,PCC,Adult Social Care,Learning Disability Support Adults (18 - 64),Adult Care,Third Party Payments,Other establishments,25-Apr-23,6714099,"1,246.17",SUPPLIER, ACHIEVE TOGETHER LIMITED,300000020469986
Portsmouth City Council,PCC,Environmental and Regulatory Services,"Cemetery, Cremation and Mortuary Services","Culture, Leisure & Regulatory Services",Premises-Related Expenditure,Water Services,13-Apr-23,6712284,363.52,LIMITED COMPANY,WAVE LTD,300000457049455
Portsmouth City Council,PCC,Cultural and Related Services,Library Service,"Culture, Leisure & Regulatory Services",Premises-Related Expenditure,Water Services,13-Apr-23,6712284,8.51,LIMITED COMPANY,WAVE LTD,300000457049455
Portsmouth City Council,PCC,Cultural and Related Services,Open Spaces,"Culture, Leisure & Regulatory Services",Premises-Related Expenditure,Water Services,13-Apr-23,6712284,17.02,LIMITED COMPANY,WAVE LTD,300000457049455
Portsmouth City Council,PCC,Children's and Education Services,Primary Schools,Children's Services and Education,Premises-Related Expenditure,Water Services,13-Apr-23,6712284,221.14,LIMITED COMPANY,WAVE LTD,300000457049455
Portsmouth City Council,PCC,Children's and Education Services,Primary Schools,Children's Services and Education,Premises-Related Expenditure,Water Services,13-Apr-23,6712284,334.64,LIMITED COMPANY,WAVE LTD,300000457049455
Portsmouth City Council,PCC,Environmental and Regulatory Services,"Cemetery, Cremation and Mortuary Services","Culture, Leisure & Regulatory Services",Premises-Related Expenditure,Water Services,13-Apr-23,6712284,"4,763.75",LIMITED COMPANY,WAVE LTD,300000457049455
Portsmouth City Council,PCC,Cultural and Related Services,Open Spaces,"Culture, Leisure & Regulatory Services",Premises-Related Expenditure,Water Services,13-Apr-23,6712284,222.85,LIMITED COMPANY,WAVE LTD,300000457049455
Portsmouth City Council,PCC,Cultural and Related Services,Recreation and Sport,"Culture, Leisure & Regulatory Services",Premises-Related Expenditure,Water Services,13-Apr-23,6712284,13.71,LIMITED COMPANY,WAVE LTD,300000457049455
Portsmouth City Council,PCC,Cultural and Related Services,Open Spaces,"Culture, Leisure & Regulatory Services",Premises-Related Expenditure,Water Services,13-Apr-23,6712284,760.7,LIMITED COMPANY,WAVE LTD,300000457049455
Portsmouth City Council,PCC,Cultural and Related Services,Open Spaces,"Culture, Leisure & Regulatory Services",Premises-Related Expenditure,Water Services,13-Apr-23,6712284,2.78,LIMITED COMPANY,WAVE LTD,300000457049455
Portsmouth City Council,PCC,Cultural and Related Services,Open Spaces,"Culture, Leisure & Regulatory Services",Premises-Related Expenditure,Water Services,13-Apr-23,6712284,223.8,LIMITED COMPANY,WAVE LTD,300000457049455
Portsmouth City Council,PCC,Cultural and Related Services,Open Spaces,"Culture, Leisure & Regulatory Services",Premises-Related Expenditure,Water Services,13-Apr-23,6712284,165.14,LIMITED COMPANY,WAVE LTD,300000457049455
Portsmouth City Council,PCC,Cultural and Related Services,Open Spaces,"Culture, Leisure & Regulatory Services",Premises-Related Expenditure,Water Services,13-Apr-23,6712284,6.52,LIMITED COMPANY,WAVE LTD,300000457049455
Portsmouth City Council,PCC,Housing Revenue Account,"Rents, Rates, Taxes and Other Charges","Housing, Neighbourhood and Building Services",Premises-Related Expenditure,Water Services,13-Apr-23,6712284,78.6,LIMITED COMPANY,WAVE LTD,300000457049455
Portsmouth City Council,PCC,Housing Revenue Account,Special Services,"Housing, Neighbourhood and Building Services",Premises-Related Expenditure,Water Services,13-Apr-23,6712284,23.84,LIMITED COMPANY,WAVE LTD,300000457049455
Portsmouth City Council,PCC,Cultural and Related Services,Open Spaces,"Culture, Leisure & Regulatory Services",Premises-Related Expenditure,Water Services,13-Apr-23,6712284,28.67,LIMITED COMPANY,WAVE LTD,300000457049455
Portsmouth City Council,PCC,Environmental and Regulatory Services,Regulatory Services,"Housing, Neighbourhood and Building Services",Premises-Related Expenditure,Water Services,13-Apr-23,6712284,769.45,LIMITED COMPANY,WAVE LTD,300000457049455
Portsmouth City Council,PCC,Housing Revenue Account,"Rents, Rates, Taxes and Other Charges","Housing, Neighbourhood and Building Services",Premises-Related Expenditure,Water Services,13-Apr-23,6712284,89.42,LIMITED COMPANY,WAVE LTD,300000457049455
Portsmouth City Council,PCC,Housing Revenue Account,Non-dwelling Rents (Gross),"Housing, Neighbourhood and Building Services",Premises-Related Expenditure,Water Services,13-Apr-23,6712284,20.56,LIMITED COMPANY,WAVE LTD,300000457049455
Portsmouth City Council,PCC,Highways and Transport Services,Parking Services,Regeneration,Premises-Related Expenditure,Water Services,13-Apr-23,6712284,19.56,LIMITED COMPANY,WAVE LTD,300000457049455
Portsmouth City Council,PCC,Costs below Net Cost of Services,Trading,Regeneration,Premises-Related Expenditure,Water Services,13-Apr-23,6712284,4.61,LIMITED COMPANY,WAVE LTD,300000457049455
Portsmouth City Council,PCC,Cultural and Related Services,Open Spaces,"Culture, Leisure & Regulatory Services",Premises-Related Expenditure,Water Services,13-Apr-23,6712284,29.53,LIMITED COMPANY,WAVE LTD,300000457049455
Portsmouth City Council,PCC,Highways and Transport Services,Parking Services,Regeneration,Premises-Related Expenditure,Water Services,13-Apr-23,6712284,4.61,LIMITED COMPANY,WAVE LTD,300000457049455
Portsmouth City Council,PCC,Highways and Transport Services,Parking Services,Regeneration,Premises-Related Expenditure,Water Services,13-Apr-23,6712284,4.61,LIMITED COMPANY,WAVE LTD,300000457049455
Portsmouth City Council,PCC,Cultural and Related Services,Open Spaces,"Culture, Leisure & Regulatory Services",Premises-Related Expenditure,Water Services,13-Apr-23,6712284,55.45,LIMITED COMPANY,WAVE LTD,300000457049455
Portsmouth City Council,PCC,Housing Revenue Account,Special Services,"Housing, Neighbourhood and Building Services",Premises-Related Expenditure,Water Services,13-Apr-23,6712284,8.68,LIMITED COMPANY,WAVE LTD,300000457049455
Portsmouth City Council,PCC,Housing Revenue Account,Supervision and Management,"Housing, Neighbourhood and Building Services",Premises-Related Expenditure,Water Services,13-Apr-23,6712284,61.76,LIMITED COMPANY,WAVE LTD,300000457049455
Portsmouth City Council,PCC,Housing Revenue Account,Supervision and Management,"Housing, Neighbourhood and Building Services",Premises-Related Expenditure,Water Services,13-Apr-23,6712284,5.3,LIMITED COMPANY,WAVE LTD,300000457049455
Portsmouth City Council,PCC,Costs below Net Cost of Services,Trading,Regeneration,Premises-Related Expenditure,Water Services,13-Apr-23,6712284,225.66,LIMITED COMPANY,WAVE LTD,300000457049455
Portsmouth City Council,PCC,Cultural and Related Services,Open Spaces,"Culture, Leisure & Regulatory Services",Premises-Related Expenditure,Water Services,13-Apr-23,6712284,19.17,LIMITED COMPANY,WAVE LTD,300000457049455
Portsmouth City Council,PCC,Housing Revenue Account,Special Services,"Housing, Neighbourhood and Building Services",Premises-Related Expenditure,Water Services,13-Apr-23,6712284,9.23,LIMITED COMPANY,WAVE LTD,300000457049455
Portsmouth City Council,PCC,Cultural and Related Services,Library Service,"Culture, Leisure & Regulatory Services",Premises-Related Expenditure,Water Services,13-Apr-23,6712284,19.32,LIMITED COMPANY,WAVE LTD,300000457049455
Portsmouth City Council,PCC,Adult Social Care,Learning Disability Support Adults (18 - 64),Adult Care,Third Party Payments,Other establishments,25-Apr-23,6714099,"1,246.17",SUPPLIER, ACHIEVE TOGETHER LIMITED,300000020469986
Portsmouth City Council,PCC,Housing Revenue Account,"Rents, Rates, Taxes and Other Charges","Housing, Neighbourhood and Building Services",Premises-Related Expenditure,Water Services,13-Apr-23,6712284,80.99,LIMITED COMPANY,WAVE LTD,300000457049455
Portsmouth City Council,PCC,Housing Revenue Account,Special Services,"Housing, Neighbourhood and Building Services",Premises-Related Expenditure,Water Services,13-Apr-23,6712284,23.39,LIMITED COMPANY,WAVE LTD,300000457049455
Portsmouth City Council,PCC,Children's and Education Services,Other Education and Community Budget,Regeneration,Premises-Related Expenditure,Water Services,13-Apr-23,6712284,38.93,LIMITED COMPANY,WAVE LTD,300000457049455
Portsmouth City Council,PCC,Housing Revenue Account,Special Services,"Housing, Neighbourhood and Building Services",Premises-Related Expenditure,Water Services,13-Apr-23,6712284,223.51,LIMITED COMPANY,WAVE LTD,300000457049455
Portsmouth City Council,PCC,Housing Revenue Account,Special Services,"Housing, Neighbourhood and Building Services",Premises-Related Expenditure,Water Services,13-Apr-23,6712284,109.42,LIMITED COMPANY,WAVE LTD,300000457049455
Portsmouth City Council,PCC,Planning Services,Business support,Regeneration,Premises-Related Expenditure,Water Services,13-Apr-23,6712284,227.25,LIMITED COMPANY,WAVE LTD,300000457049455
Portsmouth City Council,PCC,Adult Social Care,Learning Disability Support Adults (18 - 64),Adult Care,Third Party Payments,Other establishments,25-Apr-23,6714099,"1,246.17",SUPPLIER, ACHIEVE TOGETHER LIMITED,300000020469986
Portsmouth City Council,PCC,Cultural and Related Services,Open Spaces,"Culture, Leisure & Regulatory Services",Premises-Related Expenditure,Water Services,13-Apr-23,6712284,"1,212.00",LIMITED COMPANY,WAVE LTD,300000457049455
Portsmouth City Council,PCC,Housing Revenue Account,Non-dwelling Rents (Gross),"Housing, Neighbourhood and Building Services",Premises-Related Expenditure,Water Services,13-Apr-23,6712284,15.74,LIMITED COMPANY,WAVE LTD,300000457049455
Portsmouth City Council,PCC,Housing Revenue Account,Special Services,"Housing, Neighbourhood and Building Services",Premises-Related Expenditure,Water Services,13-Apr-23,6712284,354.02,LIMITED COMPANY,WAVE LTD,300000457049455
Portsmouth City Council,PCC,Costs below Net Cost of Services,Trading,Regeneration,Premises-Related Expenditure,Water Services,13-Apr-23,6712284,"3,566.75",LIMITED COMPANY,WAVE LTD,300000457049455
Portsmouth City Council,PCC,Cultural and Related Services,Allocation of Management & Admin,"Culture, Leisure & Regulatory Services",Premises-Related Expenditure,Water Services,13-Apr-23,6712284,7.23,LIMITED COMPANY,WAVE LTD,300000457049455
Portsmouth City Council,PCC,Highways and Transport Services,Parking Services,Regeneration,Premises-Related Expenditure,Water Services,13-Apr-23,6712284,4.61,LIMITED COMPANY,WAVE LTD,300000457049455
Portsmouth City Council,PCC,Housing Revenue Account,Special Services,"Housing, Neighbourhood and Building Services",Premises-Related Expenditure,Water Services,13-Apr-23,6712284,12.99,LIMITED COMPANY,WAVE LTD,300000457049455
Portsmouth City Council,PCC,Housing Revenue Account,Special Services,"Housing, Neighbourhood and Building Services",Premises-Related Expenditure,Water Services,13-Apr-23,6712284,80.86,LIMITED COMPANY,WAVE LTD,300000457049455
Portsmouth City Council,PCC,Housing Revenue Account,Special Services,"Housing, Neighbourhood and Building Services",Premises-Related Expenditure,Water Services,13-Apr-23,6712284,56.04,LIMITED COMPANY,WAVE LTD,300000457049455
Portsmouth City Council,PCC,Housing Revenue Account,Non-dwelling Rents (Gross),"Housing, Neighbourhood and Building Services",Premises-Related Expenditure,Water Services,13-Apr-23,6712284,9.06,LIMITED COMPANY,WAVE LTD,300000457049455
Portsmouth City Council,PCC,Housing Revenue Account,Special Services,"Housing, Neighbourhood and Building Services",Premises-Related Expenditure,Water Services,13-Apr-23,6712284,26.94,LIMITED COMPANY,WAVE LTD,300000457049455
Portsmouth City Council,PCC,Housing Revenue Account,Special Services,"Housing, Neighbourhood and Building Services",Premises-Related Expenditure,Water Services,13-Apr-23,6712284,9.06,LIMITED COMPANY,WAVE LTD,300000457049455
Portsmouth City Council,PCC,Housing Revenue Account,Special Services,"Housing, Neighbourhood and Building Services",Premises-Related Expenditure,Water Services,13-Apr-23,6712284,33.31,LIMITED COMPANY,WAVE LTD,300000457049455
Portsmouth City Council,PCC,Housing Revenue Account,Special Services,"Housing, Neighbourhood and Building Services",Premises-Related Expenditure,Water Services,13-Apr-23,6712284,15.68,LIMITED COMPANY,WAVE LTD,300000457049455
Portsmouth City Council,PCC,Housing Revenue Account,Special Services,"Housing, Neighbourhood and Building Services",Premises-Related Expenditure,Water Services,13-Apr-23,6712284,87.34,LIMITED COMPANY,WAVE LTD,300000457049455
Portsmouth City Council,PCC,Housing Revenue Account,Special Services,"Housing, Neighbourhood and Building Services",Premises-Related Expenditure,Water Services,13-Apr-23,6712284,14.57,LIMITED COMPANY,WAVE LTD,300000457049455
Portsmouth City Council,PCC,Housing Revenue Account,Special Services,"Housing, Neighbourhood and Building Services",Premises-Related Expenditure,Water Services,13-Apr-23,6712284,9.06,LIMITED COMPANY,WAVE LTD,300000457049455
Portsmouth City Council,PCC,Housing Revenue Account,Special Services,"Housing, Neighbourhood and Building Services",Premises-Related Expenditure,Water Services,13-Apr-23,6712284,10,LIMITED COMPANY,WAVE LTD,300000457049455
Portsmouth City Council,PCC,Housing Revenue Account,Special Services,"Housing, Neighbourhood and Building Services",Premises-Related Expenditure,Water Services,13-Apr-23,6712284,44.49,LIMITED COMPANY,WAVE LTD,300000457049455
Portsmouth City Council,PCC,Housing Revenue Account,Special Services,"Housing, Neighbourhood and Building Services",Premises-Related Expenditure,Water Services,13-Apr-23,6712284,9.8,LIMITED COMPANY,WAVE LTD,300000457049455
Portsmouth City Council,PCC,Housing Revenue Account,Special Services,"Housing, Neighbourhood and Building Services",Premises-Related Expenditure,Water Services,13-Apr-23,6712284,9.06,LIMITED COMPANY,WAVE LTD,300000457049455
Portsmouth City Council,PCC,Highways and Transport Services,Public Transport,Regeneration,Premises-Related Expenditure,Water Services,13-Apr-23,6712284,167.89,LIMITED COMPANY,WAVE LTD,300000457049455
Portsmouth City Council,PCC,Housing Revenue Account,Special Services,"Housing, Neighbourhood and Building Services",Premises-Related Expenditure,Water Services,13-Apr-23,6712284,33.31,LIMITED COMPANY,WAVE LTD,300000457049455
Portsmouth City Council,PCC,Housing Revenue Account,Special Services,"Housing, Neighbourhood and Building Services",Premises-Related Expenditure,Water Services,13-Apr-23,6712284,16.57,LIMITED COMPANY,WAVE LTD,300000457049455
Portsmouth City Council,PCC,Housing Revenue Account,Special Services,"Housing, Neighbourhood and Building Services",Premises-Related Expenditure,Water Services,13-Apr-23,6712284,9.06,LIMITED COMPANY,WAVE LTD,300000457049455
Portsmouth City Council,PCC,Housing Revenue Account,Non-dwelling Rents (Gross),"Housing, Neighbourhood and Building Services",Premises-Related Expenditure,Water Services,13-Apr-23,6712284,13.19,LIMITED COMPANY,WAVE LTD,300000457049455
Portsmouth City Council,PCC,Housing Revenue Account,Special Services,"Housing, Neighbourhood and Building Services",Premises-Related Expenditure,Water Services,13-Apr-23,6712284,4.61,LIMITED COMPANY,WAVE LTD,300000457049455
Portsmouth City Council,PCC,Housing Revenue Account,Special Services,"Housing, Neighbourhood and Building Services",Premises-Related Expenditure,Water Services,13-Apr-23,6712284,9.06,LIMITED COMPANY,WAVE LTD,300000457049455
Portsmouth City Council,PCC,Housing Revenue Account,Supervision and Management,"Housing, Neighbourhood and Building Services",Premises-Related Expenditure,Water Services,13-Apr-23,6712284,2.78,LIMITED COMPANY,WAVE LTD,300000457049455
Portsmouth City Council,PCC,Housing Revenue Account,Special Services,"Housing, Neighbourhood and Building Services",Premises-Related Expenditure,Water Services,13-Apr-23,6712284,192.01,LIMITED COMPANY,WAVE LTD,300000457049455
Portsmouth City Council,PCC,Housing Revenue Account,Supervision and Management,"Housing, Neighbourhood and Building Services",Premises-Related Expenditure,Water Services,13-Apr-23,6712284,2.78,LIMITED COMPANY,WAVE LTD,300000457049455
Portsmouth City Council,PCC,Housing Revenue Account,Supervision and Management,"Housing, Neighbourhood and Building Services",Premises-Related Expenditure,Water Services,13-Apr-23,6712284,32.62,LIMITED COMPANY,WAVE LTD,300000457049455
Portsmouth City Council,PCC,Highways and Transport Services,Parking Services,Regeneration,Premises-Related Expenditure,Water Services,13-Apr-23,6712284,45.94,LIMITED COMPANY,WAVE LTD,300000457049455
Portsmouth City Council,PCC,Cultural and Related Services,Open Spaces,"Culture, Leisure & Regulatory Services",Premises-Related Expenditure,Water Services,13-Apr-23,6712284,2.78,LIMITED COMPANY,WAVE LTD,300000457049455
Portsmouth City Council,PCC,Cultural and Related Services,Library Service,"Culture, Leisure & Regulatory Services",Premises-Related Expenditure,Water Services,13-Apr-23,6712284,50.01,LIMITED COMPANY,WAVE LTD,300000457049455
Portsmouth City Council,PCC,Cultural and Related Services,Open Spaces,"Culture, Leisure & Regulatory Services",Premises-Related Expenditure,Water Services,13-Apr-23,6712284,11.11,LIMITED COMPANY,WAVE LTD,300000457049455
Portsmouth City Council,PCC,Environmental and Regulatory Services,Regulatory Services,"Housing, Neighbourhood and Building Services",Premises-Related Expenditure,Water Services,13-Apr-23,6712284,28.51,LIMITED COMPANY,WAVE LTD,300000457049455
Portsmouth City Council,PCC,Cultural and Related Services,Open Spaces,"Culture, Leisure & Regulatory Services",Premises-Related Expenditure,Water Services,13-Apr-23,6712284,116.89,LIMITED COMPANY,WAVE LTD,300000457049455
Portsmouth City Council,PCC,Cultural and Related Services,Open Spaces,"Culture, Leisure & Regulatory Services",Premises-Related Expenditure,Water Services,13-Apr-23,6712284,-17.26,LIMITED COMPANY,WAVE LTD,300000457049455
Portsmouth City Council,PCC,Cultural and Related Services,Open Spaces,"Culture, Leisure & Regulatory Services",Premises-Related Expenditure,Water Services,13-Apr-23,6712284,518.13,LIMITED COMPANY,WAVE LTD,300000457049455
Portsmouth City Council,PCC,Costs below Net Cost of Services,Trading,Regeneration,Premises-Related Expenditure,Water Services,13-Apr-23,6712284,53.35,LIMITED COMPANY,WAVE LTD,300000457049455
Portsmouth City Council,PCC,Other,Suspense and Capital Schemes,Regeneration,Premises-Related Expenditure,Water Services,13-Apr-23,6712284,763.83,LIMITED COMPANY,WAVE LTD,300000457049455
Portsmouth City Council,PCC,Children's and Education Services,Primary Schools,Children's Services and Education,Premises-Related Expenditure,Water Services,13-Apr-23,6712284,508.45,LIMITED COMPANY,WAVE LTD,300000457049455
Portsmouth City Council,PCC,Environmental and Regulatory Services,Regulatory Services,"Housing, Neighbourhood and Building Services",Premises-Related Expenditure,Water Services,13-Apr-23,6712284,402.25,LIMITED COMPANY,WAVE LTD,300000457049455
Portsmouth City Council,PCC,Cultural and Related Services,Library Service,"Culture, Leisure & Regulatory Services",Premises-Related Expenditure,Water Services,13-Apr-23,6712284,112.22,LIMITED COMPANY,WAVE LTD,300000457049455
Portsmouth City Council,PCC,Housing Revenue Account,"Rents, Rates, Taxes and Other Charges","Housing, Neighbourhood and Building Services",Premises-Related Expenditure,Water Services,13-Apr-23,6712284,32.62,LIMITED COMPANY,WAVE LTD,300000457049455
Portsmouth City Council,PCC,Housing Revenue Account,"Rents, Rates, Taxes and Other Charges","Housing, Neighbourhood and Building Services",Premises-Related Expenditure,Water Services,13-Apr-23,6712284,32.62,LIMITED COMPANY,WAVE LTD,300000457049455
Portsmouth City Council,PCC,Housing Revenue Account,Special Services,"Housing, Neighbourhood and Building Services",Premises-Related Expenditure,Water Services,13-Apr-23,6712284,61.37,LIMITED COMPANY,WAVE LTD,300000457049455
Portsmouth City Council,PCC,Costs below Net Cost of Services,Trading,Regeneration,Premises-Related Expenditure,Water Services,13-Apr-23,6712284,22.12,LIMITED COMPANY,WAVE LTD,300000457049455
Portsmouth City Council,PCC,Housing Revenue Account,Special Services,"Housing, Neighbourhood and Building Services",Premises-Related Expenditure,Water Services,13-Apr-23,6712284,9.06,LIMITED COMPANY,WAVE LTD,300000457049455
Portsmouth City Council,PCC,Highways and Transport Services,Public Transport,Regeneration,Premises-Related Expenditure,Water Services,13-Apr-23,6712284,97.73,LIMITED COMPANY,WAVE LTD,300000457049455
Portsmouth City Council,PCC,Housing Revenue Account,Special Services,"Housing, Neighbourhood and Building Services",Premises-Related Expenditure,Water Services,13-Apr-23,6712284,46.58,LIMITED COMPANY,WAVE LTD,300000457049455
Portsmouth City Council,PCC,Housing Revenue Account,Special Services,"Housing, Neighbourhood and Building Services",Premises-Related Expenditure,Water Services,13-Apr-23,6712284,46.58,LIMITED COMPANY,WAVE LTD,300000457049455
Portsmouth City Council,PCC,Housing Revenue Account,Special Services,"Housing, Neighbourhood and Building Services",Premises-Related Expenditure,Water Services,13-Apr-23,6712284,44.95,LIMITED COMPANY,WAVE LTD,300000457049455
Portsmouth City Council,PCC,Housing Revenue Account,"Rents, Rates, Taxes and Other Charges","Housing, Neighbourhood and Building Services",Premises-Related Expenditure,Water Services,13-Apr-23,6712284,80.99,LIMITED COMPANY,WAVE LTD,300000457049455
Portsmouth City Council,PCC,Planning Services,Business support,Regeneration,Premises-Related Expenditure,Water Services,13-Apr-23,6712284,6.52,LIMITED COMPANY,WAVE LTD,300000457049455
Portsmouth City Council,PCC,Housing Revenue Account,Supervision and Management,"Housing, Neighbourhood and Building Services",Premises-Related Expenditure,Water Services,13-Apr-23,6712284,651.96,LIMITED COMPANY,WAVE LTD,300000457049455
Portsmouth City Council,PCC,Highways and Transport Services,Parking Services,Regeneration,Premises-Related Expenditure,Water Services,13-Apr-23,6712284,59.14,LIMITED COMPANY,WAVE LTD,300000457049455
Portsmouth City Council,PCC,Housing Revenue Account,Special Services,"Housing, Neighbourhood and Building Services",Premises-Related Expenditure,Water Services,13-Apr-23,6712284,26.89,LIMITED COMPANY,WAVE LTD,300000457049455
Portsmouth City Council,PCC,Housing Revenue Account,Special Services,"Housing, Neighbourhood and Building Services",Premises-Related Expenditure,Water Services,13-Apr-23,6712284,5.71,LIMITED COMPANY,WAVE LTD,300000457049455
Portsmouth City Council,PCC,Housing Revenue Account,"Rents, Rates, Taxes and Other Charges","Housing, Neighbourhood and Building Services",Premises-Related Expenditure,Water Services,13-Apr-23,6712284,6.42,LIMITED COMPANY,WAVE LTD,300000457049455
Portsmouth City Council,PCC,Cultural and Related Services,Open Spaces,"Culture, Leisure & Regulatory Services",Premises-Related Expenditure,Water Services,13-Apr-23,6712284,3.61,LIMITED COMPANY,WAVE LTD,300000457049455
Portsmouth City Council,PCC,Cultural and Related Services,Open Spaces,"Culture, Leisure & Regulatory Services",Premises-Related Expenditure,Water Services,13-Apr-23,6712284,8.61,LIMITED COMPANY,WAVE LTD,300000457049455
Portsmouth City Council,PCC,Cultural and Related Services,Open Spaces,"Culture, Leisure & Regulatory Services",Premises-Related Expenditure,Water Services,13-Apr-23,6712284,2.78,LIMITED COMPANY,WAVE LTD,300000457049455
Portsmouth City Council,PCC,Housing Revenue Account,Supervision and Management,"Housing, Neighbourhood and Building Services",Premises-Related Expenditure,Water Services,13-Apr-23,6712284,202.91,LIMITED COMPANY,WAVE LTD,300000457049455
Portsmouth City Council,PCC,Cultural and Related Services,Recreation and Sport,"Culture, Leisure & Regulatory Services",Premises-Related Expenditure,Water Services,13-Apr-23,6712284,40.65,LIMITED COMPANY,WAVE LTD,300000457049455
Portsmouth City Council,PCC,Cultural and Related Services,Open Spaces,"Culture, Leisure & Regulatory Services",Premises-Related Expenditure,Water Services,13-Apr-23,6712284,2,LIMITED COMPANY,WAVE LTD,300000457049455
Portsmouth City Council,PCC,Cultural and Related Services,Open Spaces,"Culture, Leisure & Regulatory Services",Premises-Related Expenditure,Water Services,13-Apr-23,6712284,5.28,LIMITED COMPANY,WAVE LTD,300000457049455
Portsmouth City Council,PCC,Cultural and Related Services,Open Spaces,"Culture, Leisure & Regulatory Services",Premises-Related Expenditure,Water Services,13-Apr-23,6712284,15.26,LIMITED COMPANY,WAVE LTD,300000457049455
Portsmouth City Council,PCC,Cultural and Related Services,Open Spaces,"Culture, Leisure & Regulatory Services",Premises-Related Expenditure,Water Services,13-Apr-23,6712284,14.83,LIMITED COMPANY,WAVE LTD,300000457049455
Portsmouth City Council,PCC,Cultural and Related Services,Open Spaces,"Culture, Leisure & Regulatory Services",Premises-Related Expenditure,Water Services,13-Apr-23,6712284,1.95,LIMITED COMPANY,WAVE LTD,300000457049455
Portsmouth City Council,PCC,Cultural and Related Services,Open Spaces,"Culture, Leisure & Regulatory Services",Premises-Related Expenditure,Water Services,13-Apr-23,6712284,4.45,LIMITED COMPANY,WAVE LTD,300000457049455
Portsmouth City Council,PCC,Housing Revenue Account,"Rents, Rates, Taxes and Other Charges","Housing, Neighbourhood and Building Services",Premises-Related Expenditure,Water Services,13-Apr-23,6712284,3.62,LIMITED COMPANY,WAVE LTD,300000457049455
Portsmouth City Council,PCC,Housing Revenue Account,"Rents, Rates, Taxes and Other Charges","Housing, Neighbourhood and Building Services",Premises-Related Expenditure,Water Services,13-Apr-23,6712284,14.83,LIMITED COMPANY,WAVE LTD,300000457049455
Portsmouth City Council,PCC,Cultural and Related Services,Open Spaces,"Culture, Leisure & Regulatory Services",Premises-Related Expenditure,Water Services,13-Apr-23,6712284,6.94,LIMITED COMPANY,WAVE LTD,300000457049455
Portsmouth City Council,PCC,Housing Revenue Account,Special Services,"Housing, Neighbourhood and Building Services",Premises-Related Expenditure,Water Services,13-Apr-23,6712284,55.42,LIMITED COMPANY,WAVE LTD,300000457049455
Portsmouth City Council,PCC,Housing Revenue Account,Special Services,"Housing, Neighbourhood and Building Services",Premises-Related Expenditure,Water Services,13-Apr-23,6712284,41.73,LIMITED COMPANY,WAVE LTD,300000457049455
Portsmouth City Council,PCC,Housing Revenue Account,Special Services,"Housing, Neighbourhood and Building Services",Premises-Related Expenditure,Water Services,13-Apr-23,6712284,32.62,LIMITED COMPANY,WAVE LTD,300000457049455
Portsmouth City Council,PCC,Housing Revenue Account,Special Services,"Housing, Neighbourhood and Building Services",Premises-Related Expenditure,Water Services,13-Apr-23,6712284,23,LIMITED COMPANY,WAVE LTD,300000457049455
Portsmouth City Council,PCC,Cultural and Related Services,Open Spaces,"Culture, Leisure & Regulatory Services",Premises-Related Expenditure,Water Services,13-Apr-23,6712284,32.73,LIMITED COMPANY,WAVE LTD,300000457049455
Portsmouth City Council,PCC,Cultural and Related Services,Open Spaces,"Culture, Leisure & Regulatory Services",Premises-Related Expenditure,Water Services,13-Apr-23,6712284,2.78,LIMITED COMPANY,WAVE LTD,300000457049455
Portsmouth City Council,PCC,Housing Revenue Account,Special Services,"Housing, Neighbourhood and Building Services",Premises-Related Expenditure,Water Services,13-Apr-23,6712284,25.34,LIMITED COMPANY,WAVE LTD,300000457049455
Portsmouth City Council,PCC,Housing Revenue Account,Supervision and Management,"Housing, Neighbourhood and Building Services",Premises-Related Expenditure,Water Services,13-Apr-23,6712284,44.95,LIMITED COMPANY,WAVE LTD,300000457049455
Portsmouth City Council,PCC,Cultural and Related Services,Recreation and Sport,"Culture, Leisure & Regulatory Services",Premises-Related Expenditure,Water Services,13-Apr-23,6712284,8.51,LIMITED COMPANY,WAVE LTD,300000457049455
Portsmouth City Council,PCC,Housing Revenue Account,"Rents, Rates, Taxes and Other Charges","Housing, Neighbourhood and Building Services",Premises-Related Expenditure,Water Services,13-Apr-23,6712284,33.66,LIMITED COMPANY,WAVE LTD,300000457049455
Portsmouth City Council,PCC,Cultural and Related Services,Open Spaces,"Culture, Leisure & Regulatory Services",Premises-Related Expenditure,Water Services,13-Apr-23,6712284,-2.64,LIMITED COMPANY,WAVE LTD,300000457049455
Portsmouth City Council,PCC,Cultural and Related Services,Library Service,"Culture, Leisure & Regulatory Services",Premises-Related Expenditure,Water Services,13-Apr-23,6712284,27.73,LIMITED COMPANY,WAVE LTD,300000457049455
Portsmouth City Council,PCC,Cultural and Related Services,Open Spaces,"Culture, Leisure & Regulatory Services",Premises-Related Expenditure,Water Services,13-Apr-23,6712284,121.63,LIMITED COMPANY,WAVE LTD,300000457049455
Portsmouth City Council,PCC,Costs below Net Cost of Services,Trading,Regeneration,Premises-Related Expenditure,Water Services,13-Apr-23,6712284,-13.92,LIMITED COMPANY,WAVE LTD,300000457049455
Portsmouth City Council,PCC,Housing Revenue Account,Special Services,"Housing, Neighbourhood and Building Services",Premises-Related Expenditure,Water Services,13-Apr-23,6712284,132.84,LIMITED COMPANY,WAVE LTD,300000457049455
Portsmouth City Council,PCC,Cultural and Related Services,Open Spaces,"Culture, Leisure & Regulatory Services",Premises-Related Expenditure,Water Services,13-Apr-23,6712284,-62.12,LIMITED COMPANY,WAVE LTD,300000457049455
Portsmouth City Council,PCC,Children's and Education Services,Primary Schools,Children's Services and Education,Premises-Related Expenditure,Water Services,13-Apr-23,6712284,572.32,LIMITED COMPANY,WAVE LTD,300000457049455
Portsmouth City Council,PCC,Housing Revenue Account,Special Services,"Housing, Neighbourhood and Building Services",Premises-Related Expenditure,Water Services,13-Apr-23,6712284,44.95,LIMITED COMPANY,WAVE LTD,300000457049455
Portsmouth City Council,PCC,Environmental and Regulatory Services,Regulatory Services,"Housing, Neighbourhood and Building Services",Premises-Related Expenditure,Water Services,13-Apr-23,6712284,137.04,LIMITED COMPANY,WAVE LTD,300000457049455
Portsmouth City Council,PCC,Cultural and Related Services,Open Spaces,"Culture, Leisure & Regulatory Services",Premises-Related Expenditure,Water Services,13-Apr-23,6712284,15.26,LIMITED COMPANY,WAVE LTD,300000457049455
Portsmouth City Council,PCC,Cultural and Related Services,Open Spaces,"Culture, Leisure & Regulatory Services",Premises-Related Expenditure,Water Services,13-Apr-23,6712284,6.11,LIMITED COMPANY,WAVE LTD,300000457049455
Portsmouth City Council,PCC,Children's and Education Services,Children Looked After,Children's Services and Education,Premises-Related Expenditure,Water Services,13-Apr-23,6712284,43.47,LIMITED COMPANY,WAVE LTD,300000457049455
Portsmouth City Council,PCC,Housing Revenue Account,Special Services,"Housing, Neighbourhood and Building Services",Premises-Related Expenditure,Water Services,13-Apr-23,6712284,12.86,LIMITED COMPANY,WAVE LTD,300000457049455
Portsmouth City Council,PCC,Environmental and Regulatory Services,Regulatory Services,"Housing, Neighbourhood and Building Services",Premises-Related Expenditure,Water Services,13-Apr-23,6712284,92.19,LIMITED COMPANY,WAVE LTD,300000457049455
Portsmouth City Council,PCC,Environmental and Regulatory Services,Regulatory Services,"Housing, Neighbourhood and Building Services",Premises-Related Expenditure,Water Services,13-Apr-23,6712284,"1,066.56",LIMITED COMPANY,WAVE LTD,300000457049455
Portsmouth City Council,PCC,Cultural and Related Services,Open Spaces,"Culture, Leisure & Regulatory Services",Premises-Related Expenditure,Water Services,13-Apr-23,6712284,2,LIMITED COMPANY,WAVE LTD,300000457049455
Portsmouth City Council,PCC,Cultural and Related Services,Open Spaces,"Culture, Leisure & Regulatory Services",Premises-Related Expenditure,Water Services,13-Apr-23,6712284,-7.2,LIMITED COMPANY,WAVE LTD,300000457049455
Portsmouth City Council,PCC,Cultural and Related Services,Open Spaces,"Culture, Leisure & Regulatory Services",Premises-Related Expenditure,Water Services,13-Apr-23,6712284,2,LIMITED COMPANY,WAVE LTD,300000457049455
Portsmouth City Council,PCC,Costs below Net Cost of Services,Trading,Regeneration,Premises-Related Expenditure,Water Services,13-Apr-23,6712284,2,LIMITED COMPANY,WAVE LTD,300000457049455
Portsmouth City Council,PCC,Cultural and Related Services,Open Spaces,"Culture, Leisure & Regulatory Services",Premises-Related Expenditure,Water Services,13-Apr-23,6712284,508.71,LIMITED COMPANY,WAVE LTD,300000457049455
Portsmouth City Council,PCC,Cultural and Related Services,Open Spaces,"Culture, Leisure & Regulatory Services",Premises-Related Expenditure,Water Services,13-Apr-23,6712284,"1,965.92",LIMITED COMPANY,WAVE LTD,300000457049455
Portsmouth City Council,PCC,Highways and Transport Services,"Airports, Harbours and Toll Facilities",Portsmouth International Port,Premises-Related Expenditure,Water Services,13-Apr-23,6712284,"18,941.91",LIMITED COMPANY,WAVE LTD,300000457049455
Portsmouth City Council,PCC,Housing Revenue Account,Special Services,"Housing, Neighbourhood and Building Services",Premises-Related Expenditure,Water Services,13-Apr-23,6712284,525.89,LIMITED COMPANY,WAVE LTD,300000457049455
Portsmouth City Council,PCC,Cultural and Related Services,Culture and Heritage,"Culture, Leisure & Regulatory Services",Premises-Related Expenditure,Water Services,13-Apr-23,6712284,"4,743.94",LIMITED COMPANY,WAVE LTD,300000457049455
Portsmouth City Council,PCC,Support Service / Transparency Costs Unallocated,AMS,Corporate Services,Premises-Related Expenditure,Water Services,13-Apr-23,6712284,"2,693.97",LIMITED COMPANY,WAVE LTD,300000457049455
Portsmouth City Council,PCC,Cultural and Related Services,Open Spaces,"Culture, Leisure & Regulatory Services",Premises-Related Expenditure,Water Services,13-Apr-23,6712284,2,LIMITED COMPANY,WAVE LTD,300000457049455
Portsmouth City Council,PCC,Adult Social Care,Learning Disability Support Adults (18 - 64),Adult Care,Third Party Payments,Other establishments,25-Apr-23,6714099,"1,246.17",SUPPLIER, ACHIEVE TOGETHER LIMITED,300000020469986
Portsmouth City Council,PCC,Environmental and Regulatory Services,"Cemetery, Cremation and Mortuary Services","Culture, Leisure & Regulatory Services",Premises-Related Expenditure,Water Services,13-Apr-23,6712284,14.12,LIMITED COMPANY,WAVE LTD,300000457049455
Portsmouth City Council,PCC,Children's and Education Services,Primary Schools,Children's Services and Education,Premises-Related Expenditure,Water Services,13-Apr-23,6712284,33.34,LIMITED COMPANY,WAVE LTD,300000457049455
Portsmouth City Council,PCC,Costs below Net Cost of Services,Trading,"Housing, Neighbourhood and Building Services",Premises-Related Expenditure,Water Services,13-Apr-23,6712284,"2,085.93",LIMITED COMPANY,WAVE LTD,300000457049455
Portsmouth City Council,PCC,Cultural and Related Services,Open Spaces,"Culture, Leisure & Regulatory Services",Premises-Related Expenditure,Water Services,13-Apr-23,6712284,88.06,LIMITED COMPANY,WAVE LTD,300000457049455
Portsmouth City Council,PCC,Housing Revenue Account,Special Services,"Housing, Neighbourhood and Building Services",Premises-Related Expenditure,Water Services,13-Apr-23,6712284,141.57,LIMITED COMPANY,WAVE LTD,300000457049455
Portsmouth City Council,PCC,Cultural and Related Services,Open Spaces,"Culture, Leisure & Regulatory Services",Premises-Related Expenditure,Water Services,13-Apr-23,6712284,2.78,LIMITED COMPANY,WAVE LTD,300000457049455
Portsmouth City Council,PCC,Environmental and Regulatory Services,Regulatory Services,"Housing, Neighbourhood and Building Services",Premises-Related Expenditure,Water Services,13-Apr-23,6712284,298.53,LIMITED COMPANY,WAVE LTD,300000457049455
Portsmouth City Council,PCC,Costs below Net Cost of Services,Trading,Regeneration,Premises-Related Expenditure,Water Services,13-Apr-23,6712284,36,LIMITED COMPANY,WAVE LTD,300000457049455
Portsmouth City Council,PCC,Cultural and Related Services,Open Spaces,"Culture, Leisure & Regulatory Services",Premises-Related Expenditure,Water Services,13-Apr-23,6712284,2.78,LIMITED COMPANY,WAVE LTD,300000457049455
Portsmouth City Council,PCC,Cultural and Related Services,Open Spaces,"Culture, Leisure & Regulatory Services",Premises-Related Expenditure,Water Services,13-Apr-23,6712284,16.11,LIMITED COMPANY,WAVE LTD,300000457049455
Portsmouth City Council,PCC,Cultural and Related Services,Open Spaces,"Culture, Leisure & Regulatory Services",Premises-Related Expenditure,Water Services,13-Apr-23,6712284,461.11,LIMITED COMPANY,WAVE LTD,300000457049455
Portsmouth City Council,PCC,Cultural and Related Services,Open Spaces,"Culture, Leisure & Regulatory Services",Premises-Related Expenditure,Water Services,13-Apr-23,6712284,7.86,LIMITED COMPANY,WAVE LTD,300000457049455
Portsmouth City Council,PCC,Environmental and Regulatory Services,Regulatory Services,"Housing, Neighbourhood and Building Services",Premises-Related Expenditure,Water Services,13-Apr-23,6712284,413.47,LIMITED COMPANY,WAVE LTD,300000457049455
Portsmouth City Council,PCC,Housing Revenue Account,Special Services,"Housing, Neighbourhood and Building Services",Premises-Related Expenditure,Water Services,13-Apr-23,6712284,767.72,LIMITED COMPANY,WAVE LTD,300000457049455
Portsmouth City Council,PCC,Housing Revenue Account,Supervision and Management,"Housing, Neighbourhood and Building Services",Premises-Related Expenditure,Water Services,13-Apr-23,6712284,190.52,LIMITED COMPANY,WAVE LTD,300000457049455
Portsmouth City Council,PCC,Environmental and Regulatory Services,Regulatory Services,"Housing, Neighbourhood and Building Services",Premises-Related Expenditure,Water Services,13-Apr-23,6712284,407.85,LIMITED COMPANY,WAVE LTD,300000457049455
Portsmouth City Council,PCC,Children's and Education Services,Primary Schools,Children's Services and Education,Premises-Related Expenditure,Water Services,13-Apr-23,6712284,148.12,LIMITED COMPANY,WAVE LTD,300000457049455
Portsmouth City Council,PCC,Housing Revenue Account,"Rents, Rates, Taxes and Other Charges","Housing, Neighbourhood and Building Services",Premises-Related Expenditure,Water Services,13-Apr-23,6712284,112.13,LIMITED COMPANY,WAVE LTD,300000457049455
Portsmouth City Council,PCC,Cultural and Related Services,Library Service,"Culture, Leisure & Regulatory Services",Premises-Related Expenditure,Water Services,13-Apr-23,6712284,50.56,LIMITED COMPANY,WAVE LTD,300000457049455
Portsmouth City Council,PCC,Cultural and Related Services,Open Spaces,"Culture, Leisure & Regulatory Services",Premises-Related Expenditure,Water Services,13-Apr-23,6712284,15.35,LIMITED COMPANY,WAVE LTD,300000457049455
Portsmouth City Council,PCC,Cultural and Related Services,Open Spaces,"Culture, Leisure & Regulatory Services",Premises-Related Expenditure,Water Services,13-Apr-23,6712284,18.16,LIMITED COMPANY,WAVE LTD,300000457049455
Portsmouth City Council,PCC,Cultural and Related Services,Culture and Heritage,"Culture, Leisure & Regulatory Services",Premises-Related Expenditure,Water Services,13-Apr-23,6712284,18.23,LIMITED COMPANY,WAVE LTD,300000457049455
Portsmouth City Council,PCC,Adult Social Care,Learning Disability Support Adults (18 - 64),Adult Care,Third Party Payments,Other establishments,25-Apr-23,6714099,"1,246.17",SUPPLIER, ACHIEVE TOGETHER LIMITED,300000020469986
Portsmouth City Council,PCC,Children's and Education Services,Primary Schools,Children's Services and Education,Premises-Related Expenditure,Energy costs,14-Apr-23,6712421,"3,737.87",LIMITED COMPANY,BRYT ENERGY LTD,300000250807042
Portsmouth City Council,PCC,Support Service / Transparency Costs Unallocated,AMS,Corporate Services,Premises-Related Expenditure,Energy costs,14-Apr-23,6712421,"83,938.46",LIMITED COMPANY,BRYT ENERGY LTD,300000250807042
Portsmouth City Council,PCC,Housing Revenue Account,Special Services,"Housing, Neighbourhood and Building Services",Premises-Related Expenditure,Energy costs,14-Apr-23,6712421,"2,300.24",LIMITED COMPANY,BRYT ENERGY LTD,300000250807042
Portsmouth City Council,PCC,Highways and Transport Services,Parking Services,Regeneration,Premises-Related Expenditure,Energy costs,14-Apr-23,6712421,"3,998.98",LIMITED COMPANY,BRYT ENERGY LTD,300000250807042
Portsmouth City Council,PCC,Housing Revenue Account,Special Services,"Housing, Neighbourhood and Building Services",Premises-Related Expenditure,Energy costs,14-Apr-23,6712421,233.55,LIMITED COMPANY,BRYT ENERGY LTD,300000250807042
Portsmouth City Council,PCC,Housing Revenue Account,Special Services,"Housing, Neighbourhood and Building Services",Premises-Related Expenditure,Energy costs,14-Apr-23,6712421,"1,465.12",LIMITED COMPANY,BRYT ENERGY LTD,300000250807042
Portsmouth City Council,PCC,Housing Revenue Account,Special Services,"Housing, Neighbourhood and Building Services",Premises-Related Expenditure,Energy costs,14-Apr-23,6712421,"1,792.98",LIMITED COMPANY,BRYT ENERGY LTD,300000250807042
Portsmouth City Council,PCC,Housing Revenue Account,Special Services,"Housing, Neighbourhood and Building Services",Premises-Related Expenditure,Energy costs,14-Apr-23,6712421,470.24,LIMITED COMPANY,BRYT ENERGY LTD,300000250807042
Portsmouth City Council,PCC,Adult Social Care,Learning Disability Support Adults (18 - 64),Adult Care,Third Party Payments,Other establishments,25-Apr-23,6714099,"1,246.17",SUPPLIER, ACHIEVE TOGETHER LIMITED,300000020469986
Portsmouth City Council,PCC,Other,Suspense and Capital Schemes,Capital - Housing General Fund,Capital Charges,Capital Expenditure (WIP),14-Apr-23,6712421,494.19,LIMITED COMPANY,BRYT ENERGY LTD,300000250807042
Portsmouth City Council,PCC,Cultural and Related Services,Culture and Heritage,"Culture, Leisure & Regulatory Services",Premises-Related Expenditure,Energy costs,14-Apr-23,6712421,"7,060.92",LIMITED COMPANY,BRYT ENERGY LTD,300000250807042
Portsmouth City Council,PCC,Housing Revenue Account,"Rents, Rates, Taxes and Other Charges","Housing, Neighbourhood and Building Services",Premises-Related Expenditure,Energy costs,14-Apr-23,6712421,"4,324.09",LIMITED COMPANY,BRYT ENERGY LTD,300000250807042
Portsmouth City Council,PCC,Housing Revenue Account,Special Services,"Housing, Neighbourhood and Building Services",Premises-Related Expenditure,Energy costs,14-Apr-23,6712421,"3,658.98",LIMITED COMPANY,BRYT ENERGY LTD,300000250807042
Portsmouth City Council,PCC,Housing Revenue Account,Special Services,"Housing, Neighbourhood and Building Services",Premises-Related Expenditure,Energy costs,14-Apr-23,6712421,"1,048.00",LIMITED COMPANY,BRYT ENERGY LTD,300000250807042
Portsmouth City Council,PCC,Costs below Net Cost of Services,Trading,Regeneration,Premises-Related Expenditure,Energy costs,14-Apr-23,6712421,"233,904.44",LIMITED COMPANY,BRYT ENERGY LTD,300000250807042
Portsmouth City Council,PCC,Housing Revenue Account,Special Services,"Housing, Neighbourhood and Building Services",Premises-Related Expenditure,Energy costs,14-Apr-23,6712421,305.38,LIMITED COMPANY,BRYT ENERGY LTD,300000250807042
Portsmouth City Council,PCC,Other,Trust Funds,Other,Premises-Related Expenditure,Energy costs,14-Apr-23,6712421,"2,242.98",LIMITED COMPANY,BRYT ENERGY LTD,300000250807042
Portsmouth City Council,PCC,Other,Suspense and Capital Schemes,Portsmouth International Port,Premises-Related Expenditure,Energy costs,14-Apr-23,6712421,"85,092.83",LIMITED COMPANY,BRYT ENERGY LTD,300000250807042
Portsmouth City Council,PCC,Housing Revenue Account,Special Services,"Housing, Neighbourhood and Building Services",Premises-Related Expenditure,Energy costs,14-Apr-23,6712421,"2,383.11",LIMITED COMPANY,BRYT ENERGY LTD,300000250807042
Portsmouth City Council,PCC,Children's and Education Services,Primary Schools,Children's Services and Education,Premises-Related Expenditure,Energy costs,14-Apr-23,6712421,"4,803.08",LIMITED COMPANY,BRYT ENERGY LTD,300000250807042
Portsmouth City Council,PCC,Planning Services,Business support,Regeneration,Premises-Related Expenditure,Energy costs,14-Apr-23,6712421,"8,659.64",LIMITED COMPANY,BRYT ENERGY LTD,300000250807042
Portsmouth City Council,PCC,Housing Revenue Account,Special Services,"Housing, Neighbourhood and Building Services",Premises-Related Expenditure,Energy costs,14-Apr-23,6712421,"2,492.20",LIMITED COMPANY,BRYT ENERGY LTD,300000250807042
Portsmouth City Council,PCC,Other,Suspense and Capital Schemes,Portsmouth International Port,Premises-Related Expenditure,Energy costs,14-Apr-23,6712421,768.87,LIMITED COMPANY,BRYT ENERGY LTD,300000250807042
Portsmouth City Council,PCC,Planning Services,Business support,Regeneration,Premises-Related Expenditure,Energy costs,14-Apr-23,6712421,"7,682.90",LIMITED COMPANY,BRYT ENERGY LTD,300000250807042
Portsmouth City Council,PCC,Housing Revenue Account,Special Services,"Housing, Neighbourhood and Building Services",Premises-Related Expenditure,Energy costs,14-Apr-23,6712421,"5,346.79",LIMITED COMPANY,BRYT ENERGY LTD,300000250807042
Portsmouth City Council,PCC,Cultural and Related Services,Library Service,"Culture, Leisure & Regulatory Services",Premises-Related Expenditure,Energy costs,14-Apr-23,6712421,"17,684.85",LIMITED COMPANY,BRYT ENERGY LTD,300000250807042
Portsmouth City Council,PCC,Housing Revenue Account,Special Services,"Housing, Neighbourhood and Building Services",Premises-Related Expenditure,Energy costs,14-Apr-23,6712421,"2,215.98",LIMITED COMPANY,BRYT ENERGY LTD,300000250807042
Portsmouth City Council,PCC,Children's and Education Services,Primary Schools,Children's Services and Education,Premises-Related Expenditure,Energy costs,14-Apr-23,6712421,"2,841.47",LIMITED COMPANY,BRYT ENERGY LTD,300000250807042
Portsmouth City Council,PCC,Housing Revenue Account,Special Services,"Housing, Neighbourhood and Building Services",Premises-Related Expenditure,Energy costs,14-Apr-23,6712421,718.78,LIMITED COMPANY,BRYT ENERGY LTD,300000250807042
Portsmouth City Council,PCC,Adult Social Care,Learning Disability Support Adults (18 - 64),Adult Care,Third Party Payments,Other establishments,25-Apr-23,6714099,"1,246.17",SUPPLIER, ACHIEVE TOGETHER LIMITED,300000020469986
Portsmouth City Council,PCC,Adult Social Care,Learning Disability Support Adults (18 - 64),Adult Care,Third Party Payments,Other establishments,25-Apr-23,6714099,"1,246.17",SUPPLIER, ACHIEVE TOGETHER LIMITED,300000020469986
Portsmouth City Council,PCC,Housing Revenue Account,Special Services,"Housing, Neighbourhood and Building Services",Premises-Related Expenditure,Energy costs,14-Apr-23,6712421,"2,447.18",LIMITED COMPANY,BRYT ENERGY LTD,300000250807042
Portsmouth City Council,PCC,Children's and Education Services,Secondary Schools,Children's Services and Education,Premises-Related Expenditure,Energy costs,14-Apr-23,6712421,"16,466.55",LIMITED COMPANY,BRYT ENERGY LTD,300000250807042
Portsmouth City Council,PCC,Cultural and Related Services,Recreation and Sport,"Culture, Leisure & Regulatory Services",Premises-Related Expenditure,Energy costs,14-Apr-23,6712421,"30,492.99",LIMITED COMPANY,BRYT ENERGY LTD,300000250807042
Portsmouth City Council,PCC,Children's and Education Services,Primary Schools,Children's Services and Education,Premises-Related Expenditure,Energy costs,14-Apr-23,6712421,"5,274.68",LIMITED COMPANY,BRYT ENERGY LTD,300000250807042
Portsmouth City Council,PCC,Housing Revenue Account,Supervision and Management,"Housing, Neighbourhood and Building Services",Premises-Related Expenditure,Energy costs,14-Apr-23,6712421,"2,722.18",LIMITED COMPANY,BRYT ENERGY LTD,300000250807042
Portsmouth City Council,PCC,Adult Social Care,Learning Disability Support Adults (18 - 64),Adult Care,Third Party Payments,Other establishments,25-Apr-23,6714099,"1,246.17",SUPPLIER, ACHIEVE TOGETHER LIMITED,300000020469986
Portsmouth City Council,PCC,Costs below Net Cost of Services,Trading,Regeneration,Premises-Related Expenditure,Energy costs,14-Apr-23,6712421,"7,632.77",LIMITED COMPANY,BRYT ENERGY LTD,300000250807042
Portsmouth City Council,PCC,Planning Services,Business support,Regeneration,Premises-Related Expenditure,Energy costs,14-Apr-23,6712421,"2,006.39",LIMITED COMPANY,BRYT ENERGY LTD,300000250807042
Portsmouth City Council,PCC,Cultural and Related Services,Library Service,"Culture, Leisure & Regulatory Services",Premises-Related Expenditure,Energy costs,14-Apr-23,6712421,"4,822.38",LIMITED COMPANY,BRYT ENERGY LTD,300000250807042
Portsmouth City Council,PCC,Adult Social Care,Learning Disability Support Adults (18 - 64),Adult Care,Third Party Payments,Other establishments,25-Apr-23,6714099,"1,246.17",SUPPLIER, ACHIEVE TOGETHER LIMITED,300000020469986
Portsmouth City Council,PCC,Housing Revenue Account,"Rents, Rates, Taxes and Other Charges","Housing, Neighbourhood and Building Services",Premises-Related Expenditure,Energy costs,14-Apr-23,6712421,"1,852.19",LIMITED COMPANY,BRYT ENERGY LTD,300000250807042
Portsmouth City Council,PCC,Costs below Net Cost of Services,Trading,Regeneration,Premises-Related Expenditure,Energy costs,14-Apr-23,6712421,"5,036.92",LIMITED COMPANY,BRYT ENERGY LTD,300000250807042
Portsmouth City Council,PCC,Cultural and Related Services,Culture and Heritage,"Culture, Leisure & Regulatory Services",Premises-Related Expenditure,Energy costs,14-Apr-23,6712421,"1,967.77",LIMITED COMPANY,BRYT ENERGY LTD,300000250807042
Portsmouth City Council,PCC,Housing Revenue Account,Special Services,"Housing, Neighbourhood and Building Services",Premises-Related Expenditure,Energy costs,14-Apr-23,6712421,"3,327.06",LIMITED COMPANY,BRYT ENERGY LTD,300000250807042
Portsmouth City Council,PCC,Highways and Transport Services,Parking Services,Regeneration,Premises-Related Expenditure,Energy costs,14-Apr-23,6712421,"2,135.38",LIMITED COMPANY,BRYT ENERGY LTD,300000250807042
Portsmouth City Council,PCC,Children's and Education Services,Children Looked After,Children's Services and Education,Premises-Related Expenditure,Energy costs,14-Apr-23,6712421,783.06,LIMITED COMPANY,BRYT ENERGY LTD,300000250807042
Portsmouth City Council,PCC,Costs below Net Cost of Services,Trading,Regeneration,Premises-Related Expenditure,Energy costs,14-Apr-23,6712421,"3,383.86",LIMITED COMPANY,BRYT ENERGY LTD,300000250807042
Portsmouth City Council,PCC,Cultural and Related Services,Culture and Heritage,"Culture, Leisure & Regulatory Services",Premises-Related Expenditure,Energy costs,14-Apr-23,6712421,"13,104.69",LIMITED COMPANY,BRYT ENERGY LTD,300000250807042
Portsmouth City Council,PCC,Adult Social Care,Learning Disability Support Adults (18 - 64),Adult Care,Third Party Payments,Other establishments,25-Apr-23,6714099,"1,246.17",SUPPLIER, ACHIEVE TOGETHER LIMITED,300000020469986
Portsmouth City Council,PCC,Housing Revenue Account,Special Services,"Housing, Neighbourhood and Building Services",Premises-Related Expenditure,Energy costs,14-Apr-23,6712421,"2,318.72",LIMITED COMPANY,BRYT ENERGY LTD,300000250807042
Portsmouth City Council,PCC,Adult Social Care,Learning Disabilty Support Older People (65 - 74),Adult Care,Third Party Payments,Joint authorities,25-Apr-23,6714099,"1,246.17",SUPPLIER, ACHIEVE TOGETHER LIMITED,300000020469986
Portsmouth City Council,PCC,Children's and Education Services,Primary Schools,Children's Services and Education,Premises-Related Expenditure,Energy costs,14-Apr-23,6712421,"3,321.63",LIMITED COMPANY,BRYT ENERGY LTD,300000250807042
Portsmouth City Council,PCC,Housing Revenue Account,Supervision and Management,"Housing, Neighbourhood and Building Services",Premises-Related Expenditure,Energy costs,14-Apr-23,6712421,"22,790.98",LIMITED COMPANY,BRYT ENERGY LTD,300000250807042
Portsmouth City Council,PCC,Housing Revenue Account,Supervision and Management,"Housing, Neighbourhood and Building Services",Premises-Related Expenditure,Energy costs,14-Apr-23,6712421,"-22,790.98",LIMITED COMPANY,BRYT ENERGY LTD,300000250807042
Portsmouth City Council,PCC,Housing Revenue Account,Supervision and Management,"Housing, Neighbourhood and Building Services",Premises-Related Expenditure,Energy costs,14-Apr-23,6712421,"22,808.83",LIMITED COMPANY,BRYT ENERGY LTD,300000250807042
Portsmouth City Council,PCC,Costs below Net Cost of Services,Trading,Regeneration,Premises-Related Expenditure,Energy costs,14-Apr-23,6712421,"7,544.42",LIMITED COMPANY,BRYT ENERGY LTD,300000250807042
Portsmouth City Council,PCC,Housing Revenue Account,Supervision and Management,"Housing, Neighbourhood and Building Services",Premises-Related Expenditure,Energy costs,14-Apr-23,6712421,"2,107.94",LIMITED COMPANY,BRYT ENERGY LTD,300000250807042
Portsmouth City Council,PCC,Housing Revenue Account,Special Services,"Housing, Neighbourhood and Building Services",Premises-Related Expenditure,Energy costs,14-Apr-23,6712421,456.75,LIMITED COMPANY,BRYT ENERGY LTD,300000250807042
Portsmouth City Council,PCC,Cultural and Related Services,Culture and Heritage,"Culture, Leisure & Regulatory Services",Premises-Related Expenditure,Energy costs,14-Apr-23,6712421,"5,144.57",LIMITED COMPANY,BRYT ENERGY LTD,300000250807042
Portsmouth City Council,PCC,Housing Revenue Account,Special Services,"Housing, Neighbourhood and Building Services",Premises-Related Expenditure,Energy costs,14-Apr-23,6712421,"2,087.71",LIMITED COMPANY,BRYT ENERGY LTD,300000250807042
Portsmouth City Council,PCC,Costs below Net Cost of Services,Trading,Regeneration,Premises-Related Expenditure,Energy costs,14-Apr-23,6712421,578.26,LIMITED COMPANY,BRYT ENERGY LTD,300000250807042
Portsmouth City Council,PCC,Adult Social Care,Learning Disability Support Adults (18 - 64),Adult Care,Third Party Payments,Other establishments,25-Apr-23,6714099,"2,160.00",SUPPLIER, ACHIEVE TOGETHER LIMITED,300000020469986
Portsmouth City Council,PCC,Adult Social Care,Learning Disability Support Adults (18 - 64),Adult Care,Third Party Payments,Other establishments,25-Apr-23,6714099,"2,545.71",SUPPLIER, ACHIEVE TOGETHER LIMITED,300000020469986
Portsmouth City Council,PCC,Adult Social Care,Learning Disability Support Adults (18 - 64),Adult Care,Third Party Payments,Other establishments,25-Apr-23,6714099,"2,700.00",SUPPLIER, ACHIEVE TOGETHER LIMITED,300000020469986
Portsmouth City Council,PCC,Adult Social Care,Learning Disability Support Adults (18 - 64),Adult Care,Third Party Payments,Other establishments,25-Apr-23,6714099,"2,777.14",SUPPLIER, ACHIEVE TOGETHER LIMITED,300000020469986
Portsmouth City Council,PCC,Adult Social Care,Learning Disability Support Adults (18 - 64),Adult Care,Third Party Payments,Other establishments,25-Apr-23,6714099,"3,008.57",SUPPLIER, ACHIEVE TOGETHER LIMITED,300000020469986
Portsmouth City Council,PCC,Adult Social Care,Learning Disability Support Adults (18 - 64),Adult Care,Third Party Payments,Other establishments,25-Apr-23,6714099,"3,394.29",SUPPLIER, ACHIEVE TOGETHER LIMITED,300000020469986
Portsmouth City Council,PCC,Adult Social Care,Learning Disability Support Adults (18 - 64),Adult Care,Third Party Payments,Other establishments,25-Apr-23,6714099,"3,432.86",SUPPLIER, ACHIEVE TOGETHER LIMITED,300000020469986
Portsmouth City Council,PCC,Adult Social Care,Learning Disability Support Adults (18 - 64),Adult Care,Third Party Payments,Other establishments,25-Apr-23,6714099,"4,204.29",SUPPLIER, ACHIEVE TOGETHER LIMITED,300000020469986
Portsmouth City Council,PCC,Adult Social Care,Learning Disability Support Adults (18 - 64),Adult Care,Third Party Payments,Other establishments,25-Apr-23,6714099,"4,975.71",SUPPLIER, ACHIEVE TOGETHER LIMITED,300000020469986
Portsmouth City Council,PCC,Adult Social Care,Learning Disability Support Adults (18 - 64),Adult Care,Third Party Payments,Other establishments,25-Apr-23,6714099,"5,168.57",SUPPLIER, ACHIEVE TOGETHER LIMITED,300000020469986
Portsmouth City Council,PCC,Adult Social Care,Commissioning & service delivery,Adult Care,Premises-Related Expenditure,Cleaning and domestic supplies,26-Apr-23,6714371,"2,652.00",SUPPLIER,1ST CHOICE HIGH LEVEL CLEANING & MAINTENANCE LIMITED,300000020461450
Portsmouth City Council,PCC,Adult Social Care,Social Care Activities,Adult Care,Third Party Payments,Other establishments,12-Apr-23,6711627,"73,668.60",SUPPLIER,A24 GROUP LIMITED T/A AMBITION 24 HOURS,300000020481251
Portsmouth City Council,PCC,Adult Social Care,Social Care Activities,Adult Care,Third Party Payments,Other establishments,12-Apr-23,6711627,"77,509.32",SUPPLIER,A24 GROUP LIMITED T/A AMBITION 24 HOURS,300000020481251
Portsmouth City Council,PCC,Adult Social Care,Social Care Activities,Adult Care,Third Party Payments,Other establishments,12-Apr-23,6711627,"76,686.00",SUPPLIER,A24 GROUP LIMITED T/A AMBITION 24 HOURS,300000020481251
Portsmouth City Council,PCC,Adult Social Care,Social Care Activities,Adult Care,Third Party Payments,Other establishments,26-Apr-23,6714149,"79,432.80",SUPPLIER,A24 GROUP LIMITED T/A AMBITION 24 HOURS,300000020481251
Portsmouth City Council,PCC,Adult Social Care,Physical Support Adults (18 - 64),Adult Care,Third Party Payments,Joint authorities,18-Apr-23,6712617,269.64,SUPPLIER,ABICARE SERVICES LTD,300000020470310
Portsmouth City Council,PCC,Adult Social Care,Physical Support Older People (85+),Adult Care,Third Party Payments,Other establishments,18-Apr-23,6712617,"1,051.70",SUPPLIER,ABICARE SERVICES LTD,300000020470310
Portsmouth City Council,PCC,Adult Social Care,Support with Memory and Cognition Older People (65 - 74),Adult Care,Supplies and Services,Communications and computing,11-Apr-23,6711451,600,SUPPLIER,ACCENT VOICE AND DATA LTD,300000020478970
Portsmouth City Council,PCC,Adult Social Care,Social Care Activities,Adult Care,Third Party Payments,Other establishments,26-Apr-23,6714123,-691.5,SUPPLIER,ADMIRAL CARE LTD,300000020477405
Portsmouth City Council,PCC,Adult Social Care,Physical Support Older People (85+),Adult Care,Third Party Payments,Other establishments,26-Apr-23,6714123,-92.2,SUPPLIER,ADMIRAL CARE LTD,300000020477405
Portsmouth City Council,PCC,Adult Social Care,Physical Support Adults (18 - 64),Adult Care,Third Party Payments,Other establishments,26-Apr-23,6714123,-46.1,SUPPLIER,ADMIRAL CARE LTD,300000020477405
Portsmouth City Council,PCC,Adult Social Care,Physical Support Older People (85+),Adult Care,Third Party Payments,Other establishments,26-Apr-23,6714123,23.91,SUPPLIER,ADMIRAL CARE LTD,300000020477405
Portsmouth City Council,PCC,Adult Social Care,Mental Health Support Older People (65 - 74),Adult Care,Third Party Payments,Other establishments,26-Apr-23,6714123,34.57,SUPPLIER,ADMIRAL CARE LTD,300000020477405
Portsmouth City Council,PCC,Adult Social Care,Physical Support Older People (85+),Adult Care,Third Party Payments,Other establishments,26-Apr-23,6714123,47.21,SUPPLIER,ADMIRAL CARE LTD,300000020477405
Portsmouth City Council,PCC,Adult Social Care,Physical Support Older People (85+),Adult Care,Third Party Payments,Other establishments,26-Apr-23,6714123,57.39,SUPPLIER,ADMIRAL CARE LTD,300000020477405
Portsmouth City Council,PCC,Adult Social Care,Mental Health Support Older People (65 - 74),Adult Care,Third Party Payments,Other establishments,26-Apr-23,6714123,64.31,SUPPLIER,ADMIRAL CARE LTD,300000020477405
Portsmouth City Council,PCC,Adult Social Care,Mental Health Support Older People (65 - 74),Adult Care,Third Party Payments,Other establishments,26-Apr-23,6714123,64.57,SUPPLIER,ADMIRAL CARE LTD,300000020477405
Portsmouth City Council,PCC,Adult Social Care,Mental Health Support Older People (65 - 74),Adult Care,Third Party Payments,Other establishments,26-Apr-23,6714123,71.74,SUPPLIER,ADMIRAL CARE LTD,300000020477405
Portsmouth City Council,PCC,Adult Social Care,Mental Health Support Older People (65 - 74),Adult Care,Third Party Payments,Other establishments,26-Apr-23,6714123,77.44,SUPPLIER,ADMIRAL CARE LTD,300000020477405
Portsmouth City Council,PCC,Adult Social Care,Social Support - Support for Carer,Adult Care,Third Party Payments,Other establishments,26-Apr-23,6714123,82.62,SUPPLIER,ADMIRAL CARE LTD,300000020477405
Portsmouth City Council,PCC,Adult Social Care,Mental Health Support Older People (65 - 74),Adult Care,Third Party Payments,Other establishments,26-Apr-23,6714123,86.09,SUPPLIER,ADMIRAL CARE LTD,300000020477405
Portsmouth City Council,PCC,Adult Social Care,Physical Support Older People (85+),Adult Care,Third Party Payments,Other establishments,26-Apr-23,6714123,90.55,SUPPLIER,ADMIRAL CARE LTD,300000020477405
Portsmouth City Council,PCC,Adult Social Care,Social Support - Support for Carer,Adult Care,Third Party Payments,Other establishments,26-Apr-23,6714123,94.42,SUPPLIER,ADMIRAL CARE LTD,300000020477405
Portsmouth City Council,PCC,Adult Social Care,Physical Support Older People (85+),Adult Care,Third Party Payments,Other establishments,26-Apr-23,6714123,97.25,SUPPLIER,ADMIRAL CARE LTD,300000020477405
Portsmouth City Council,PCC,Adult Social Care,Physical Support Older People (85+),Adult Care,Third Party Payments,Other establishments,26-Apr-23,6714123,105.1,SUPPLIER,ADMIRAL CARE LTD,300000020477405
Portsmouth City Council,PCC,Adult Social Care,Mental Health Support Older People (65 - 74),Adult Care,Third Party Payments,Other establishments,26-Apr-23,6714123,118.23,SUPPLIER,ADMIRAL CARE LTD,300000020477405
Portsmouth City Council,PCC,Adult Social Care,Mental Health Support Older People (65 - 74),Adult Care,Third Party Payments,Other establishments,26-Apr-23,6714123,125.13,SUPPLIER,ADMIRAL CARE LTD,300000020477405
Portsmouth City Council,PCC,Adult Social Care,Social Support - Support for Carer,Adult Care,Third Party Payments,Other establishments,26-Apr-23,6714123,141.63,SUPPLIER,ADMIRAL CARE LTD,300000020477405
Portsmouth City Council,PCC,Adult Social Care,Physical Support Older People (85+),Adult Care,Third Party Payments,Other establishments,26-Apr-23,6714123,150.66,SUPPLIER,ADMIRAL CARE LTD,300000020477405
Portsmouth City Council,PCC,Adult Social Care,Mental Health Support Older People (65 - 74),Adult Care,Third Party Payments,Other establishments,26-Apr-23,6714123,157.65,SUPPLIER,ADMIRAL CARE LTD,300000020477405
Portsmouth City Council,PCC,Adult Social Care,Physical Support Older People (85+),Adult Care,Third Party Payments,Other establishments,26-Apr-23,6714123,177.01,SUPPLIER,ADMIRAL CARE LTD,300000020477405
Portsmouth City Council,PCC,Adult Social Care,Social Support - Support for Carer,Adult Care,Third Party Payments,Other establishments,26-Apr-23,6714123,181.1,SUPPLIER,ADMIRAL CARE LTD,300000020477405
Portsmouth City Council,PCC,Adult Social Care,Mental Health Support Older People (65 - 74),Adult Care,Third Party Payments,Other establishments,26-Apr-23,6714123,200.88,SUPPLIER,ADMIRAL CARE LTD,300000020477405
Portsmouth City Council,PCC,Adult Social Care,Mental Health Support Older People (65 - 74),Adult Care,Third Party Payments,Other establishments,26-Apr-23,6714123,229.58,SUPPLIER,ADMIRAL CARE LTD,300000020477405
Portsmouth City Council,PCC,Adult Social Care,Physical Support Older People (85+),Adult Care,Third Party Payments,Other establishments,26-Apr-23,6714123,251.1,SUPPLIER,ADMIRAL CARE LTD,300000020477405
Portsmouth City Council,PCC,Adult Social Care,Physical Support Older People (85+),Adult Care,Third Party Payments,Other establishments,26-Apr-23,6714123,251.1,SUPPLIER,ADMIRAL CARE LTD,300000020477405
Portsmouth City Council,PCC,Adult Social Care,Physical Support Older People (85+),Adult Care,Third Party Payments,Other establishments,26-Apr-23,6714123,255.14,SUPPLIER,ADMIRAL CARE LTD,300000020477405
Portsmouth City Council,PCC,Adult Social Care,Physical Support Older People (85+),Adult Care,Third Party Payments,Other establishments,26-Apr-23,6714123,257.25,SUPPLIER,ADMIRAL CARE LTD,300000020477405
Portsmouth City Council,PCC,Adult Social Care,Social Support - Support for Carer,Adult Care,Third Party Payments,Other establishments,26-Apr-23,6714123,271.65,SUPPLIER,ADMIRAL CARE LTD,300000020477405
Portsmouth City Council,PCC,Adult Social Care,Physical Support Older People (85+),Adult Care,Third Party Payments,Other establishments,26-Apr-23,6714123,275.88,SUPPLIER,ADMIRAL CARE LTD,300000020477405
Portsmouth City Council,PCC,Adult Social Care,Physical Support Older People (85+),Adult Care,Third Party Payments,Other establishments,26-Apr-23,6714123,301.32,SUPPLIER,ADMIRAL CARE LTD,300000020477405
Portsmouth City Council,PCC,Adult Social Care,Physical Support Older People (85+),Adult Care,Third Party Payments,Other establishments,26-Apr-23,6714123,301.32,SUPPLIER,ADMIRAL CARE LTD,300000020477405
Portsmouth City Council,PCC,Adult Social Care,Physical Support Older People (85+),Adult Care,Third Party Payments,Other establishments,26-Apr-23,6714123,301.32,SUPPLIER,ADMIRAL CARE LTD,300000020477405
Portsmouth City Council,PCC,Adult Social Care,Physical Support Older People (85+),Adult Care,Third Party Payments,Other establishments,26-Apr-23,6714123,301.32,SUPPLIER,ADMIRAL CARE LTD,300000020477405
Portsmouth City Council,PCC,Adult Social Care,Physical Support Older People (85+),Adult Care,Third Party Payments,Other establishments,26-Apr-23,6714123,338.8,SUPPLIER,ADMIRAL CARE LTD,300000020477405
Portsmouth City Council,PCC,Adult Social Care,Physical Support Older People (85+),Adult Care,Third Party Payments,Other establishments,26-Apr-23,6714123,348.48,SUPPLIER,ADMIRAL CARE LTD,300000020477405
Portsmouth City Council,PCC,Adult Social Care,Physical Support Older People (85+),Adult Care,Third Party Payments,Other establishments,26-Apr-23,6714123,348.48,SUPPLIER,ADMIRAL CARE LTD,300000020477405
Portsmouth City Council,PCC,Adult Social Care,Physical Support Older People (85+),Adult Care,Third Party Payments,Other establishments,26-Apr-23,6714123,351.54,SUPPLIER,ADMIRAL CARE LTD,300000020477405
Portsmouth City Council,PCC,Adult Social Care,Mental Health Support Older People (65 - 74),Adult Care,Third Party Payments,Other establishments,26-Apr-23,6714123,367.84,SUPPLIER,ADMIRAL CARE LTD,300000020477405
Portsmouth City Council,PCC,Adult Social Care,Physical Support Older People (85+),Adult Care,Third Party Payments,Other establishments,26-Apr-23,6714123,401.76,SUPPLIER,ADMIRAL CARE LTD,300000020477405
Portsmouth City Council,PCC,Adult Social Care,Mental Health Support Older People (65 - 74),Adult Care,Third Party Payments,Other establishments,26-Apr-23,6714123,420.39,SUPPLIER,ADMIRAL CARE LTD,300000020477405
Portsmouth City Council,PCC,Adult Social Care,Physical Support Adults (18 - 64),Adult Care,Third Party Payments,Other establishments,26-Apr-23,6714123,450.18,SUPPLIER,ADMIRAL CARE LTD,300000020477405
Portsmouth City Council,PCC,Adult Social Care,Physical Support Older People (85+),Adult Care,Third Party Payments,Other establishments,26-Apr-23,6714123,454.41,SUPPLIER,ADMIRAL CARE LTD,300000020477405
Portsmouth City Council,PCC,Adult Social Care,Physical Support Older People (85+),Adult Care,Third Party Payments,Other establishments,26-Apr-23,6714123,459.8,SUPPLIER,ADMIRAL CARE LTD,300000020477405
Portsmouth City Council,PCC,Adult Social Care,Physical Support Older People (85+),Adult Care,Third Party Payments,Other establishments,26-Apr-23,6714123,459.8,SUPPLIER,ADMIRAL CARE LTD,300000020477405
Portsmouth City Council,PCC,Adult Social Care,Physical Support Older People (85+),Adult Care,Third Party Payments,Other establishments,26-Apr-23,6714123,551.76,SUPPLIER,ADMIRAL CARE LTD,300000020477405
Portsmouth City Council,PCC,Adult Social Care,Physical Support Older People (85+),Adult Care,Third Party Payments,Other establishments,26-Apr-23,6714123,551.76,SUPPLIER,ADMIRAL CARE LTD,300000020477405
Portsmouth City Council,PCC,Adult Social Care,Physical Support Older People (85+),Adult Care,Third Party Payments,Other establishments,26-Apr-23,6714123,551.76,SUPPLIER,ADMIRAL CARE LTD,300000020477405
Portsmouth City Council,PCC,Adult Social Care,Physical Support Older People (85+),Adult Care,Third Party Payments,Other establishments,26-Apr-23,6714123,551.76,SUPPLIER,ADMIRAL CARE LTD,300000020477405
Portsmouth City Council,PCC,Adult Social Care,Physical Support Older People (85+),Adult Care,Third Party Payments,Other establishments,26-Apr-23,6714123,552.42,SUPPLIER,ADMIRAL CARE LTD,300000020477405
Portsmouth City Council,PCC,Adult Social Care,Physical Support Older People (85+),Adult Care,Third Party Payments,Other establishments,26-Apr-23,6714123,552.42,SUPPLIER,ADMIRAL CARE LTD,300000020477405
Portsmouth City Council,PCC,Adult Social Care,Physical Support Older People (85+),Adult Care,Third Party Payments,Other establishments,26-Apr-23,6714123,602.64,SUPPLIER,ADMIRAL CARE LTD,300000020477405
Portsmouth City Council,PCC,Adult Social Care,Physical Support Older People (85+),Adult Care,Third Party Payments,Other establishments,26-Apr-23,6714123,602.64,SUPPLIER,ADMIRAL CARE LTD,300000020477405
Portsmouth City Council,PCC,Adult Social Care,Physical Support Older People (85+),Adult Care,Third Party Payments,Other establishments,26-Apr-23,6714123,638.88,SUPPLIER,ADMIRAL CARE LTD,300000020477405
Portsmouth City Council,PCC,Adult Social Care,Physical Support Older People (85+),Adult Care,Third Party Payments,Other establishments,26-Apr-23,6714123,638.88,SUPPLIER,ADMIRAL CARE LTD,300000020477405
Portsmouth City Council,PCC,Adult Social Care,Physical Support Older People (85+),Adult Care,Third Party Payments,Other establishments,26-Apr-23,6714123,643.72,SUPPLIER,ADMIRAL CARE LTD,300000020477405
Portsmouth City Council,PCC,Adult Social Care,Physical Support Older People (85+),Adult Care,Third Party Payments,Other establishments,26-Apr-23,6714123,731.78,SUPPLIER,ADMIRAL CARE LTD,300000020477405
Portsmouth City Council,PCC,Adult Social Care,Physical Support Older People (85+),Adult Care,Third Party Payments,Other establishments,26-Apr-23,6714123,735.68,SUPPLIER,ADMIRAL CARE LTD,300000020477405
Portsmouth City Council,PCC,Adult Social Care,Physical Support Adults (18 - 64),Adult Care,Third Party Payments,Other establishments,26-Apr-23,6714123,875.9,SUPPLIER,ADMIRAL CARE LTD,300000020477405
Portsmouth City Council,PCC,Adult Social Care,Physical Support Older People (85+),Adult Care,Third Party Payments,Other establishments,26-Apr-23,6714123,"1,011.56",SUPPLIER,ADMIRAL CARE LTD,300000020477405
Portsmouth City Council,PCC,Adult Social Care,Physical Support Older People (85+),Adult Care,Third Party Payments,Other establishments,26-Apr-23,6714123,"1,011.56",SUPPLIER,ADMIRAL CARE LTD,300000020477405
Portsmouth City Council,PCC,Adult Social Care,Physical Support Older People (85+),Adult Care,Third Party Payments,Other establishments,26-Apr-23,6714123,"1,339.99",SUPPLIER,ADMIRAL CARE LTD,300000020477405
Portsmouth City Council,PCC,Adult Social Care,Support with Memory and Cognition Older People (65 - 74),Adult Care,Premises-Related Expenditure,Water Services,13-Apr-23,6712257,-618.99,SUPPLIER,ADVANCED DEMAND SIDE MANAGEMENT LIMITED,300000020478882
Portsmouth City Council,PCC,Adult Social Care,Support with Memory and Cognition Older People (65 - 74),Adult Care,Premises-Related Expenditure,Water Services,13-Apr-23,6712257,"-2,004.41",SUPPLIER,ADVANCED DEMAND SIDE MANAGEMENT LIMITED,300000020478882
Portsmouth City Council,PCC,Adult Social Care,Support with Memory and Cognition Older People (65 - 74),Adult Care,Premises-Related Expenditure,Water Services,13-Apr-23,6712257,-880.71,SUPPLIER,ADVANCED DEMAND SIDE MANAGEMENT LIMITED,300000020478882
Portsmouth City Council,PCC,Adult Social Care,Support with Memory and Cognition Older People (65 - 74),Adult Care,Premises-Related Expenditure,Water Services,13-Apr-23,6712257,"-2,605.79",SUPPLIER,ADVANCED DEMAND SIDE MANAGEMENT LIMITED,300000020478882
Portsmouth City Council,PCC,Adult Social Care,Support with Memory and Cognition Older People (65 - 74),Adult Care,Premises-Related Expenditure,Water Services,13-Apr-23,6712257,-270.14,SUPPLIER,ADVANCED DEMAND SIDE MANAGEMENT LIMITED,300000020478882
Portsmouth City Council,PCC,Adult Social Care,Support with Memory and Cognition Older People (65 - 74),Adult Care,Premises-Related Expenditure,Water Services,13-Apr-23,6712257,-282.45,SUPPLIER,ADVANCED DEMAND SIDE MANAGEMENT LIMITED,300000020478882
Portsmouth City Council,PCC,Adult Social Care,Support with Memory and Cognition Older People (65 - 74),Adult Care,Premises-Related Expenditure,Water Services,13-Apr-23,6712257,-273.17,SUPPLIER,ADVANCED DEMAND SIDE MANAGEMENT LIMITED,300000020478882
Portsmouth City Council,PCC,Adult Social Care,Support with Memory and Cognition Older People (65 - 74),Adult Care,Premises-Related Expenditure,Water Services,13-Apr-23,6712257,-459.78,SUPPLIER,ADVANCED DEMAND SIDE MANAGEMENT LIMITED,300000020478882
Portsmouth City Council,PCC,Adult Social Care,Support with Memory and Cognition Older People (65 - 74),Adult Care,Premises-Related Expenditure,Water Services,13-Apr-23,6712257,-282.45,SUPPLIER,ADVANCED DEMAND SIDE MANAGEMENT LIMITED,300000020478882
Portsmouth City Council,PCC,Adult Social Care,Support with Memory and Cognition Older People (65 - 74),Adult Care,Premises-Related Expenditure,Water Services,13-Apr-23,6712257,-273.9,SUPPLIER,ADVANCED DEMAND SIDE MANAGEMENT LIMITED,300000020478882
Portsmouth City Council,PCC,Adult Social Care,Support with Memory and Cognition Older People (65 - 74),Adult Care,Premises-Related Expenditure,Water Services,13-Apr-23,6712257,-283.18,SUPPLIER,ADVANCED DEMAND SIDE MANAGEMENT LIMITED,300000020478882
Portsmouth City Council,PCC,Adult Social Care,Support with Memory and Cognition Older People (65 - 74),Adult Care,Premises-Related Expenditure,Water Services,13-Apr-23,6712257,-282.45,SUPPLIER,ADVANCED DEMAND SIDE MANAGEMENT LIMITED,300000020478882
Portsmouth City Council,PCC,Adult Social Care,Support with Memory and Cognition Older People (65 - 74),Adult Care,Premises-Related Expenditure,Water Services,13-Apr-23,6712257,-852.1,SUPPLIER,ADVANCED DEMAND SIDE MANAGEMENT LIMITED,300000020478882
Portsmouth City Council,PCC,Adult Social Care,Support with Memory and Cognition Older People (65 - 74),Adult Care,Premises-Related Expenditure,Water Services,13-Apr-23,6712257,"-3,661.98",SUPPLIER,ADVANCED DEMAND SIDE MANAGEMENT LIMITED,300000020478882
Portsmouth City Council,PCC,Adult Social Care,Support with Memory and Cognition Older People (65 - 74),Adult Care,Premises-Related Expenditure,Water Services,13-Apr-23,6712257,-826.28,SUPPLIER,ADVANCED DEMAND SIDE MANAGEMENT LIMITED,300000020478882
Portsmouth City Council,PCC,Adult Social Care,Support with Memory and Cognition Older People (65 - 74),Adult Care,Premises-Related Expenditure,Water Services,13-Apr-23,6712257,-455.89,SUPPLIER,ADVANCED DEMAND SIDE MANAGEMENT LIMITED,300000020478882
Portsmouth City Council,PCC,Adult Social Care,Support with Memory and Cognition Older People (65 - 74),Adult Care,Premises-Related Expenditure,Water Services,13-Apr-23,6712257,"-1,111.62",SUPPLIER,ADVANCED DEMAND SIDE MANAGEMENT LIMITED,300000020478882
Portsmouth City Council,PCC,Adult Social Care,Support with Memory and Cognition Older People (65 - 74),Adult Care,Premises-Related Expenditure,Water Services,13-Apr-23,6712257,-707.6,SUPPLIER,ADVANCED DEMAND SIDE MANAGEMENT LIMITED,300000020478882
Portsmouth City Council,PCC,Adult Social Care,Support with Memory and Cognition Older People (65 - 74),Adult Care,Premises-Related Expenditure,Water Services,13-Apr-23,6712257,-1.49,SUPPLIER,ADVANCED DEMAND SIDE MANAGEMENT LIMITED,300000020478882
Portsmouth City Council,PCC,Adult Social Care,Support with Memory and Cognition Older People (65 - 74),Adult Care,Premises-Related Expenditure,Water Services,13-Apr-23,6712257,-823.55,SUPPLIER,ADVANCED DEMAND SIDE MANAGEMENT LIMITED,300000020478882
Portsmouth City Council,PCC,Adult Social Care,Support with Memory and Cognition Older People (65 - 74),Adult Care,Premises-Related Expenditure,Water Services,13-Apr-23,6712257,-841.21,SUPPLIER,ADVANCED DEMAND SIDE MANAGEMENT LIMITED,300000020478882
Portsmouth City Council,PCC,Adult Social Care,Support with Memory and Cognition Older People (65 - 74),Adult Care,Premises-Related Expenditure,Water Services,13-Apr-23,6712257,-867.49,SUPPLIER,ADVANCED DEMAND SIDE MANAGEMENT LIMITED,300000020478882
Portsmouth City Council,PCC,Adult Social Care,Support with Memory and Cognition Older People (65 - 74),Adult Care,Premises-Related Expenditure,Water Services,13-Apr-23,6712257,"7,431.45",SUPPLIER,ADVANCED DEMAND SIDE MANAGEMENT LIMITED,300000020478882
Portsmouth City Council,PCC,Adult Social Care,Support with Memory and Cognition Older People (65 - 74),Adult Care,Premises-Related Expenditure,Water Services,13-Apr-23,6712257,1.49,SUPPLIER,ADVANCED DEMAND SIDE MANAGEMENT LIMITED,300000020478882
Portsmouth City Council,PCC,Other,Suspense and Capital Schemes,"Housing, Neighbourhood and Building Services",Supplies and Services,Services,06-Apr-23,6711204,"12,061.00",SUPPLIER,ANY MAINTENANCE LTD,300000020474016
Portsmouth City Council,PCC,Housing Services,Private Sector Housing Renewal,"Housing, Neighbourhood and Building Services",Income,Other grants reimbursements and contributions,06-Apr-23,6711328,"-1,033.50",SUPPLIER,D&T BATHROOMS LTD,300000020476584
Portsmouth City Council,PCC,Other,Suspense and Capital Schemes,Capital - Housing General Fund,Capital Charges,REFCUS,06-Apr-23,6711328,"1,240.20",SUPPLIER,D&T BATHROOMS LTD,300000020476584
Portsmouth City Council,PCC,Other,Suspense and Capital Schemes,Capital - Housing General Fund,Capital Charges,REFCUS,06-Apr-23,6711328,"6,890.00",SUPPLIER,D&T BATHROOMS LTD,300000020476584
Portsmouth City Council,PCC,Adult Social Care,Support with Memory and Cognition Older People (65 - 74),Adult Care,Premises-Related Expenditure,Water Services,13-Apr-23,6712257,"3,150.90",SUPPLIER,ADVANCED DEMAND SIDE MANAGEMENT LIMITED,300000020478882
Portsmouth City Council,PCC,Adult Social Care,Support with Memory and Cognition Older People (65 - 74),Adult Care,Premises-Related Expenditure,Water Services,13-Apr-23,6712257,"9,627.34",SUPPLIER,ADVANCED DEMAND SIDE MANAGEMENT LIMITED,300000020478882
Portsmouth City Council,PCC,Adult Social Care,Support with Memory and Cognition Older People (65 - 74),Adult Care,Premises-Related Expenditure,Water Services,13-Apr-23,6712257,"3,024.48",SUPPLIER,ADVANCED DEMAND SIDE MANAGEMENT LIMITED,300000020478882
Portsmouth City Council,PCC,Adult Social Care,Support with Memory and Cognition Older People (65 - 74),Adult Care,Premises-Related Expenditure,Water Services,13-Apr-23,6712257,"8,923.70",SUPPLIER,ADVANCED DEMAND SIDE MANAGEMENT LIMITED,300000020478882
Portsmouth City Council,PCC,Adult Social Care,Support with Memory and Cognition Older People (65 - 74),Adult Care,Premises-Related Expenditure,Water Services,13-Apr-23,6712257,"2,438.27",SUPPLIER,ADVANCED DEMAND SIDE MANAGEMENT LIMITED,300000020478882
Portsmouth City Council,PCC,Adult Social Care,Support with Memory and Cognition Older People (65 - 74),Adult Care,Premises-Related Expenditure,Water Services,13-Apr-23,6712257,"7,203.59",SUPPLIER,ADVANCED DEMAND SIDE MANAGEMENT LIMITED,300000020478882
Portsmouth City Council,PCC,Adult Social Care,Support with Memory and Cognition Older People (65 - 74),Adult Care,Premises-Related Expenditure,Water Services,13-Apr-23,6712257,"2,311.09",SUPPLIER,ADVANCED DEMAND SIDE MANAGEMENT LIMITED,300000020478882
Portsmouth City Council,PCC,Adult Social Care,Support with Memory and Cognition Older People (65 - 74),Adult Care,Premises-Related Expenditure,Water Services,13-Apr-23,6712257,"1,578.32",SUPPLIER,ADVANCED DEMAND SIDE MANAGEMENT LIMITED,300000020478882
Portsmouth City Council,PCC,Adult Social Care,Support with Memory and Cognition Older People (65 - 74),Adult Care,Premises-Related Expenditure,Water Services,13-Apr-23,6712257,-290.94,SUPPLIER,ADVANCED DEMAND SIDE MANAGEMENT LIMITED,300000020478882
Portsmouth City Council,PCC,Adult Social Care,Physical Support Older People (85+),Adult Care,Third Party Payments,Other establishments,12-Apr-23,6711630,"6,450.00",SUPPLIER,AGINCARE UK,300000020481869
Portsmouth City Council,PCC,Adult Social Care,Social Care Activities,Adult Care,Third Party Payments,Other establishments,12-Apr-23,6711630,926.41,SUPPLIER,AGINCARE UK,300000020481869
Portsmouth City Council,PCC,Adult Social Care,Social Care Activities,Adult Care,Third Party Payments,Other establishments,12-Apr-23,6711630,941.61,SUPPLIER,AGINCARE UK,300000020481869
Portsmouth City Council,PCC,Adult Social Care,Social Care Activities,Adult Care,Third Party Payments,Other establishments,12-Apr-23,6711630,"6,428.70",SUPPLIER,AGINCARE UK,300000020481869
Portsmouth City Council,PCC,Adult Social Care,Social Care Activities,Adult Care,Third Party Payments,Other establishments,12-Apr-23,6711630,"6,642.99",SUPPLIER,AGINCARE UK,300000020481869
Portsmouth City Council,PCC,Adult Social Care,Social Support - Support for Carer,Adult Care,Third Party Payments,Other establishments,27-Apr-23,6714649,266.88,SUPPLIER,AGINCARE UK,300000020481869
Portsmouth City Council,PCC,Adult Social Care,Social Support - Support for Carer,Adult Care,Third Party Payments,Other establishments,27-Apr-23,6714649,100.08,SUPPLIER,AGINCARE UK,300000020481869
Portsmouth City Council,PCC,Adult Social Care,Social Support - Support for Carer,Adult Care,Third Party Payments,Other establishments,27-Apr-23,6714649,400.32,SUPPLIER,AGINCARE UK,300000020481869
Portsmouth City Council,PCC,Adult Social Care,Physical Support Older People (85+),Adult Care,Third Party Payments,Other establishments,27-Apr-23,6714649,232.32,SUPPLIER,AGINCARE UK,300000020481869
Portsmouth City Council,PCC,Adult Social Care,Physical Support Older People (85+),Adult Care,Third Party Payments,Other establishments,27-Apr-23,6714649,392.04,SUPPLIER,AGINCARE UK,300000020481869
Portsmouth City Council,PCC,Adult Social Care,Social Care Activities,Adult Care,Third Party Payments,Other establishments,27-Apr-23,6714649,271.04,SUPPLIER,AGINCARE UK,300000020481869
Portsmouth City Council,PCC,Adult Social Care,Social Care Activities,Adult Care,Third Party Payments,Other establishments,27-Apr-23,6714649,48.4,SUPPLIER,AGINCARE UK,300000020481869
Portsmouth City Council,PCC,Adult Social Care,Social Care Activities,Adult Care,Third Party Payments,Other establishments,27-Apr-23,6714649,96.8,SUPPLIER,AGINCARE UK,300000020481869
Portsmouth City Council,PCC,Adult Social Care,Physical Support Older People (85+),Adult Care,Third Party Payments,Other establishments,27-Apr-23,6714649,106.48,SUPPLIER,AGINCARE UK,300000020481869
Portsmouth City Council,PCC,Adult Social Care,Social Care Activities,Adult Care,Third Party Payments,Other establishments,27-Apr-23,6714649,48.4,SUPPLIER,AGINCARE UK,300000020481869
Portsmouth City Council,PCC,Adult Social Care,Physical Support Older People (85+),Adult Care,Third Party Payments,Other establishments,27-Apr-23,6714649,367.84,SUPPLIER,AGINCARE UK,300000020481869
Portsmouth City Council,PCC,Adult Social Care,Physical Support Older People (85+),Adult Care,Third Party Payments,Other establishments,27-Apr-23,6714649,"1,355.20",SUPPLIER,AGINCARE UK,300000020481869
Portsmouth City Council,PCC,Adult Social Care,Learning Disability Support Adults (18 - 64),Adult Care,Third Party Payments,Other establishments,27-Apr-23,6714649,135.52,SUPPLIER,AGINCARE UK,300000020481869
Portsmouth City Council,PCC,Adult Social Care,Physical Support Older People (85+),Adult Care,Third Party Payments,Other establishments,27-Apr-23,6714649,290.4,SUPPLIER,AGINCARE UK,300000020481869
Portsmouth City Council,PCC,Adult Social Care,Physical Support Older People (85+),Adult Care,Third Party Payments,Other establishments,27-Apr-23,6714649,421.08,SUPPLIER,AGINCARE UK,300000020481869
Portsmouth City Council,PCC,Adult Social Care,Social Care Activities,Adult Care,Third Party Payments,Other establishments,27-Apr-23,6714649,242,SUPPLIER,AGINCARE UK,300000020481869
Portsmouth City Council,PCC,Adult Social Care,Social Care Activities,Adult Care,Third Party Payments,Other establishments,12-Apr-23,6711725,"16,524.90",SUPPLIER,ALBANY CARE (PORTCHESTER) LIMITED,300000020467728
Portsmouth City Council,PCC,Adult Social Care,Social Care Activities,Adult Care,Third Party Payments,Other establishments,28-Apr-23,6714962,95.2,SUPPLIER,ALBANY CARE (PORTCHESTER) LIMITED,300000020467728
Portsmouth City Council,PCC,Children's and Education Services,Family Support Services,Children's Services and Education,Premises-Related Expenditure,Water Services,13-Apr-23,6712284,564.9,LIMITED COMPANY,WAVE LTD,300000457049455
Portsmouth City Council,PCC,Housing Revenue Account,Special Services,"Housing, Neighbourhood and Building Services",Premises-Related Expenditure,Water Services,13-Apr-23,6712284,33.51,LIMITED COMPANY,WAVE LTD,300000457049455
Portsmouth City Council,PCC,Other,Suspense and Capital Schemes,Capital - Housing General Fund,Capital Charges,Capital Expenditure (WIP),13-Apr-23,6712284,74.68,LIMITED COMPANY,WAVE LTD,300000457049455
Portsmouth City Council,PCC,Housing Services,Homelessness,"Housing, Neighbourhood and Building Services",Premises-Related Expenditure,Rents,25-Apr-23,6714097,"6,180.00",SUPPLIER,K H PROPERTY INVESTMENT LIMITED,300000020467836
Portsmouth City Council,PCC,Housing Revenue Account,Supervision and Management,"Housing, Neighbourhood and Building Services",Premises-Related Expenditure,Rates,25-Apr-23,6713970,"1,297.00",OTHER LOCAL AUTHORITY,HAVANT BOROUGH COUNCIL,300000020457057
Portsmouth City Council,PCC,Housing Revenue Account,Special Services,"Housing, Neighbourhood and Building Services",Premises-Related Expenditure,Rates,25-Apr-23,6713970,267,OTHER LOCAL AUTHORITY,HAVANT BOROUGH COUNCIL,300000020457057
Portsmouth City Council,PCC,Housing Revenue Account,Special Services,"Housing, Neighbourhood and Building Services",Premises-Related Expenditure,Energy costs,14-Apr-23,6712422,"4,532.40",LIMITED COMPANY,GAZPROM MARKETING AND TRADING LTD,300000250807105
Portsmouth City Council,PCC,Housing Revenue Account,Special Services,"Housing, Neighbourhood and Building Services",Premises-Related Expenditure,Energy costs,14-Apr-23,6712422,-33.25,LIMITED COMPANY,GAZPROM MARKETING AND TRADING LTD,300000250807105
Portsmouth City Council,PCC,Housing Revenue Account,Special Services,"Housing, Neighbourhood and Building Services",Premises-Related Expenditure,Energy costs,14-Apr-23,6712422,"-2,541.24",LIMITED COMPANY,GAZPROM MARKETING AND TRADING LTD,300000250807105
Portsmouth City Council,PCC,Housing Revenue Account,Special Services,"Housing, Neighbourhood and Building Services",Premises-Related Expenditure,Energy costs,14-Apr-23,6712422,-35.62,LIMITED COMPANY,GAZPROM MARKETING AND TRADING LTD,300000250807105
Portsmouth City Council,PCC,Planning Services,Business support,Regeneration,Premises-Related Expenditure,Energy costs,14-Apr-23,6712422,12.85,LIMITED COMPANY,GAZPROM MARKETING AND TRADING LTD,300000250807105
Portsmouth City Council,PCC,Housing Revenue Account,Special Services,"Housing, Neighbourhood and Building Services",Premises-Related Expenditure,Rates,25-Apr-23,6713970,394,OTHER LOCAL AUTHORITY,HAVANT BOROUGH COUNCIL,300000020457057
Portsmouth City Council,PCC,Housing Revenue Account,Special Services,"Housing, Neighbourhood and Building Services",Premises-Related Expenditure,Rates,25-Apr-23,6713970,53,OTHER LOCAL AUTHORITY,HAVANT BOROUGH COUNCIL,300000020457057
Portsmouth City Council,PCC,Highways and Transport Services,"Airports, Harbours and Toll Facilities",Portsmouth International Port,Premises-Related Expenditure,Energy costs,13-Apr-23,6712278,27.82,LIMITED COMPANY,GAZPROM MARKETING AND TRADING LTD,300000250807105
Portsmouth City Council,PCC,Housing Revenue Account,Special Services,"Housing, Neighbourhood and Building Services",Premises-Related Expenditure,Energy costs,13-Apr-23,6712278,"1,203.94",LIMITED COMPANY,GAZPROM MARKETING AND TRADING LTD,300000250807105
Portsmouth City Council,PCC,Housing Revenue Account,Special Services,"Housing, Neighbourhood and Building Services",Premises-Related Expenditure,Energy costs,13-Apr-23,6712278,883.62,LIMITED COMPANY,GAZPROM MARKETING AND TRADING LTD,300000250807105
Portsmouth City Council,PCC,Children's and Education Services,Other Education and Community Budget,Children's Services and Education,Premises-Related Expenditure,Energy costs,13-Apr-23,6712278,8.68,LIMITED COMPANY,GAZPROM MARKETING AND TRADING LTD,300000250807105
Portsmouth City Council,PCC,Adult Social Care,Social Care Activities,Adult Care,Third Party Payments,Other establishments,28-Apr-23,6714962,204.68,SUPPLIER,ALBANY CARE (PORTCHESTER) LIMITED,300000020467728
Portsmouth City Council,PCC,Housing Revenue Account,Special Services,"Housing, Neighbourhood and Building Services",Premises-Related Expenditure,Energy costs,13-Apr-23,6712278,"1,838.36",LIMITED COMPANY,GAZPROM MARKETING AND TRADING LTD,300000250807105
Portsmouth City Council,PCC,Housing Revenue Account,Special Services,"Housing, Neighbourhood and Building Services",Premises-Related Expenditure,Energy costs,13-Apr-23,6712278,206.46,LIMITED COMPANY,GAZPROM MARKETING AND TRADING LTD,300000250807105
Portsmouth City Council,PCC,Housing Revenue Account,Special Services,"Housing, Neighbourhood and Building Services",Premises-Related Expenditure,Energy costs,13-Apr-23,6712278,5.62,LIMITED COMPANY,GAZPROM MARKETING AND TRADING LTD,300000250807105
Portsmouth City Council,PCC,Housing Revenue Account,Special Services,"Housing, Neighbourhood and Building Services",Premises-Related Expenditure,Energy costs,13-Apr-23,6712278,182.11,LIMITED COMPANY,GAZPROM MARKETING AND TRADING LTD,300000250807105
Portsmouth City Council,PCC,Cultural and Related Services,Open Spaces,"Culture, Leisure & Regulatory Services",Premises-Related Expenditure,Energy costs,13-Apr-23,6712278,534.14,LIMITED COMPANY,GAZPROM MARKETING AND TRADING LTD,300000250807105
Portsmouth City Council,PCC,Housing Revenue Account,Special Services,"Housing, Neighbourhood and Building Services",Premises-Related Expenditure,Energy costs,13-Apr-23,6712278,378.95,LIMITED COMPANY,GAZPROM MARKETING AND TRADING LTD,300000250807105
Portsmouth City Council,PCC,Housing Revenue Account,Special Services,"Housing, Neighbourhood and Building Services",Premises-Related Expenditure,Energy costs,13-Apr-23,6712278,200.03,LIMITED COMPANY,GAZPROM MARKETING AND TRADING LTD,300000250807105
Portsmouth City Council,PCC,Housing Revenue Account,"Rents, Rates, Taxes and Other Charges","Housing, Neighbourhood and Building Services",Premises-Related Expenditure,Energy costs,13-Apr-23,6712278,42.65,LIMITED COMPANY,GAZPROM MARKETING AND TRADING LTD,300000250807105
Portsmouth City Council,PCC,Children's and Education Services,Secondary Schools,Children's Services and Education,Premises-Related Expenditure,Energy costs,13-Apr-23,6712278,"5,224.50",LIMITED COMPANY,GAZPROM MARKETING AND TRADING LTD,300000250807105
Portsmouth City Council,PCC,Housing Revenue Account,Special Services,"Housing, Neighbourhood and Building Services",Premises-Related Expenditure,Energy costs,13-Apr-23,6712278,192.09,LIMITED COMPANY,GAZPROM MARKETING AND TRADING LTD,300000250807105
Portsmouth City Council,PCC,Children's and Education Services,Primary Schools,Children's Services and Education,Premises-Related Expenditure,Energy costs,13-Apr-23,6712278,"2,442.18",LIMITED COMPANY,GAZPROM MARKETING AND TRADING LTD,300000250807105
Portsmouth City Council,PCC,Housing Revenue Account,Special Services,"Housing, Neighbourhood and Building Services",Premises-Related Expenditure,Energy costs,13-Apr-23,6712278,5.62,LIMITED COMPANY,GAZPROM MARKETING AND TRADING LTD,300000250807105
Portsmouth City Council,PCC,Adult Social Care,Social Care Activities,Adult Care,Third Party Payments,Other establishments,28-Apr-23,6714962,326.4,SUPPLIER,ALBANY CARE (PORTCHESTER) LIMITED,300000020467728
Portsmouth City Council,PCC,Children's and Education Services,Children Looked After,Children's Services and Education,Premises-Related Expenditure,Energy costs,13-Apr-23,6712278,"1,054.93",LIMITED COMPANY,GAZPROM MARKETING AND TRADING LTD,300000250807105
Portsmouth City Council,PCC,Other,Trust Funds,Other,Premises-Related Expenditure,Energy costs,13-Apr-23,6712278,"2,300.90",LIMITED COMPANY,GAZPROM MARKETING AND TRADING LTD,300000250807105
Portsmouth City Council,PCC,Housing Revenue Account,Special Services,"Housing, Neighbourhood and Building Services",Premises-Related Expenditure,Energy costs,13-Apr-23,6712278,97.42,LIMITED COMPANY,GAZPROM MARKETING AND TRADING LTD,300000250807105
Portsmouth City Council,PCC,Housing Revenue Account,Special Services,"Housing, Neighbourhood and Building Services",Premises-Related Expenditure,Energy costs,13-Apr-23,6712278,151.64,LIMITED COMPANY,GAZPROM MARKETING AND TRADING LTD,300000250807105
Portsmouth City Council,PCC,Housing Revenue Account,Special Services,"Housing, Neighbourhood and Building Services",Premises-Related Expenditure,Energy costs,13-Apr-23,6712278,5.52,LIMITED COMPANY,GAZPROM MARKETING AND TRADING LTD,300000250807105
Portsmouth City Council,PCC,Housing Revenue Account,Supervision and Management,"Housing, Neighbourhood and Building Services",Premises-Related Expenditure,Energy costs,13-Apr-23,6712278,188.74,LIMITED COMPANY,GAZPROM MARKETING AND TRADING LTD,300000250807105
Portsmouth City Council,PCC,Housing Revenue Account,Special Services,"Housing, Neighbourhood and Building Services",Premises-Related Expenditure,Energy costs,13-Apr-23,6712278,257.66,LIMITED COMPANY,GAZPROM MARKETING AND TRADING LTD,300000250807105
Portsmouth City Council,PCC,Housing Revenue Account,Special Services,"Housing, Neighbourhood and Building Services",Premises-Related Expenditure,Energy costs,13-Apr-23,6712278,31.8,LIMITED COMPANY,GAZPROM MARKETING AND TRADING LTD,300000250807105
Portsmouth City Council,PCC,Highways and Transport Services,"Airports, Harbours and Toll Facilities",Portsmouth International Port,Premises-Related Expenditure,Energy costs,13-Apr-23,6712278,5.52,LIMITED COMPANY,GAZPROM MARKETING AND TRADING LTD,300000250807105
Portsmouth City Council,PCC,Children's and Education Services,Children Looked After,Children's Services and Education,Premises-Related Expenditure,Energy costs,13-Apr-23,6712278,"1,251.52",LIMITED COMPANY,GAZPROM MARKETING AND TRADING LTD,300000250807105
Portsmouth City Council,PCC,Adult Social Care,Social Care Activities,Adult Care,Third Party Payments,Other establishments,28-Apr-23,6714962,467.84,SUPPLIER,ALBANY CARE (PORTCHESTER) LIMITED,300000020467728
Portsmouth City Council,PCC,Housing Revenue Account,Special Services,"Housing, Neighbourhood and Building Services",Premises-Related Expenditure,Energy costs,13-Apr-23,6712278,23.83,LIMITED COMPANY,GAZPROM MARKETING AND TRADING LTD,300000250807105
Portsmouth City Council,PCC,Adult Social Care,Social Care Activities,Adult Care,Third Party Payments,Joint authorities,12-Apr-23,6711587,"9,621.90",SUPPLIER,ALBANY FARM CARE (HAMPSHIRE) LTD,300000020477794
Portsmouth City Council,PCC,Children's and Education Services,Primary Schools,Children's Services and Education,Premises-Related Expenditure,Energy costs,13-Apr-23,6712278,"4,269.02",LIMITED COMPANY,GAZPROM MARKETING AND TRADING LTD,300000250807105
Portsmouth City Council,PCC,Other,Suspense and Capital Schemes,Portsmouth International Port,Premises-Related Expenditure,Energy costs,13-Apr-23,6712278,"4,967.41",LIMITED COMPANY,GAZPROM MARKETING AND TRADING LTD,300000250807105
Portsmouth City Council,PCC,Children's and Education Services,Primary Schools,Children's Services and Education,Premises-Related Expenditure,Energy costs,13-Apr-23,6712278,"5,283.19",LIMITED COMPANY,GAZPROM MARKETING AND TRADING LTD,300000250807105
Portsmouth City Council,PCC,Adult Social Care,Social Care Activities,Adult Care,Third Party Payments,Joint authorities,12-Apr-23,6711587,"10,394.10",SUPPLIER,ALBANY FARM CARE (HAMPSHIRE) LTD,300000020477794
Portsmouth City Council,PCC,Housing Revenue Account,Special Services,"Housing, Neighbourhood and Building Services",Premises-Related Expenditure,Energy costs,13-Apr-23,6712278,460.88,LIMITED COMPANY,GAZPROM MARKETING AND TRADING LTD,300000250807105
Portsmouth City Council,PCC,Housing Revenue Account,Special Services,"Housing, Neighbourhood and Building Services",Premises-Related Expenditure,Energy costs,13-Apr-23,6712278,42.48,LIMITED COMPANY,GAZPROM MARKETING AND TRADING LTD,300000250807105
Portsmouth City Council,PCC,Adult Social Care,Learning Disabilty Support Older People (65 - 74),Adult Care,Third Party Payments,Joint authorities,12-Apr-23,6711587,"13,199.10",SUPPLIER,ALBANY FARM CARE (HAMPSHIRE) LTD,300000020477794
Portsmouth City Council,PCC,Children's and Education Services,Primary Schools,Children's Services and Education,Premises-Related Expenditure,Energy costs,13-Apr-23,6712278,"3,223.55",LIMITED COMPANY,GAZPROM MARKETING AND TRADING LTD,300000250807105
Portsmouth City Council,PCC,Housing Revenue Account,Special Services,"Housing, Neighbourhood and Building Services",Premises-Related Expenditure,Energy costs,13-Apr-23,6712278,314.17,LIMITED COMPANY,GAZPROM MARKETING AND TRADING LTD,300000250807105
Portsmouth City Council,PCC,Housing Revenue Account,Supervision and Management,"Housing, Neighbourhood and Building Services",Premises-Related Expenditure,Energy costs,13-Apr-23,6712278,"1,642.90",LIMITED COMPANY,GAZPROM MARKETING AND TRADING LTD,300000250807105
Portsmouth City Council,PCC,Housing Revenue Account,Supervision and Management,"Housing, Neighbourhood and Building Services",Premises-Related Expenditure,Energy costs,13-Apr-23,6712278,883.52,LIMITED COMPANY,GAZPROM MARKETING AND TRADING LTD,300000250807105
Portsmouth City Council,PCC,Children's and Education Services,Primary Schools,Children's Services and Education,Premises-Related Expenditure,Energy costs,13-Apr-23,6712278,"1,405.14",LIMITED COMPANY,GAZPROM MARKETING AND TRADING LTD,300000250807105
Portsmouth City Council,PCC,Housing Revenue Account,Supervision and Management,"Housing, Neighbourhood and Building Services",Premises-Related Expenditure,Energy costs,13-Apr-23,6712278,738.99,LIMITED COMPANY,GAZPROM MARKETING AND TRADING LTD,300000250807105
Portsmouth City Council,PCC,Housing Revenue Account,Special Services,"Housing, Neighbourhood and Building Services",Premises-Related Expenditure,Energy costs,13-Apr-23,6712278,"3,641.62",LIMITED COMPANY,GAZPROM MARKETING AND TRADING LTD,300000250807105
Portsmouth City Council,PCC,Housing Revenue Account,Special Services,"Housing, Neighbourhood and Building Services",Premises-Related Expenditure,Energy costs,13-Apr-23,6712278,212.36,LIMITED COMPANY,GAZPROM MARKETING AND TRADING LTD,300000250807105
Portsmouth City Council,PCC,Housing Revenue Account,Special Services,"Housing, Neighbourhood and Building Services",Premises-Related Expenditure,Energy costs,13-Apr-23,6712278,"4,476.08",LIMITED COMPANY,GAZPROM MARKETING AND TRADING LTD,300000250807105
Portsmouth City Council,PCC,Housing Revenue Account,Special Services,"Housing, Neighbourhood and Building Services",Premises-Related Expenditure,Energy costs,13-Apr-23,6712278,"1,173.31",LIMITED COMPANY,GAZPROM MARKETING AND TRADING LTD,300000250807105
Portsmouth City Council,PCC,Housing Revenue Account,Special Services,"Housing, Neighbourhood and Building Services",Premises-Related Expenditure,Energy costs,13-Apr-23,6712278,984.04,LIMITED COMPANY,GAZPROM MARKETING AND TRADING LTD,300000250807105
Portsmouth City Council,PCC,Environmental and Regulatory Services,"Cemetery, Cremation and Mortuary Services","Culture, Leisure & Regulatory Services",Premises-Related Expenditure,Energy costs,13-Apr-23,6712278,700.02,LIMITED COMPANY,GAZPROM MARKETING AND TRADING LTD,300000250807105
Portsmouth City Council,PCC,Costs below Net Cost of Services,Trading,Regeneration,Premises-Related Expenditure,Energy costs,13-Apr-23,6712278,457.07,LIMITED COMPANY,GAZPROM MARKETING AND TRADING LTD,300000250807105
Portsmouth City Council,PCC,Housing Revenue Account,Special Services,"Housing, Neighbourhood and Building Services",Premises-Related Expenditure,Energy costs,13-Apr-23,6712278,559.3,LIMITED COMPANY,GAZPROM MARKETING AND TRADING LTD,300000250807105
Portsmouth City Council,PCC,Children's and Education Services,Other Education and Community Budget,Regeneration,Premises-Related Expenditure,Energy costs,13-Apr-23,6712278,815.24,LIMITED COMPANY,GAZPROM MARKETING AND TRADING LTD,300000250807105
Portsmouth City Council,PCC,Housing Revenue Account,Special Services,"Housing, Neighbourhood and Building Services",Premises-Related Expenditure,Energy costs,13-Apr-23,6712278,"2,293.55",LIMITED COMPANY,GAZPROM MARKETING AND TRADING LTD,300000250807105
Portsmouth City Council,PCC,Housing Revenue Account,Special Services,"Housing, Neighbourhood and Building Services",Premises-Related Expenditure,Energy costs,13-Apr-23,6712278,777.28,LIMITED COMPANY,GAZPROM MARKETING AND TRADING LTD,300000250807105
Portsmouth City Council,PCC,Costs below Net Cost of Services,Trading,Regeneration,Premises-Related Expenditure,Energy costs,13-Apr-23,6712278,"74,268.84",LIMITED COMPANY,GAZPROM MARKETING AND TRADING LTD,300000250807105
Portsmouth City Council,PCC,Housing Revenue Account,Special Services,"Housing, Neighbourhood and Building Services",Premises-Related Expenditure,Energy costs,13-Apr-23,6712278,637.77,LIMITED COMPANY,GAZPROM MARKETING AND TRADING LTD,300000250807105
Portsmouth City Council,PCC,Housing Revenue Account,Special Services,"Housing, Neighbourhood and Building Services",Premises-Related Expenditure,Energy costs,13-Apr-23,6712278,202,LIMITED COMPANY,GAZPROM MARKETING AND TRADING LTD,300000250807105
Portsmouth City Council,PCC,Housing Revenue Account,Special Services,"Housing, Neighbourhood and Building Services",Premises-Related Expenditure,Energy costs,13-Apr-23,6712278,407.72,LIMITED COMPANY,GAZPROM MARKETING AND TRADING LTD,300000250807105
Portsmouth City Council,PCC,Housing Revenue Account,Special Services,"Housing, Neighbourhood and Building Services",Premises-Related Expenditure,Energy costs,13-Apr-23,6712278,333.18,LIMITED COMPANY,GAZPROM MARKETING AND TRADING LTD,300000250807105
Portsmouth City Council,PCC,Housing Revenue Account,Special Services,"Housing, Neighbourhood and Building Services",Premises-Related Expenditure,Energy costs,13-Apr-23,6712278,355.42,LIMITED COMPANY,GAZPROM MARKETING AND TRADING LTD,300000250807105
Portsmouth City Council,PCC,Housing Revenue Account,Special Services,"Housing, Neighbourhood and Building Services",Premises-Related Expenditure,Energy costs,13-Apr-23,6712278,33.25,LIMITED COMPANY,GAZPROM MARKETING AND TRADING LTD,300000250807105
Portsmouth City Council,PCC,Housing Revenue Account,Special Services,"Housing, Neighbourhood and Building Services",Premises-Related Expenditure,Energy costs,13-Apr-23,6712278,481.98,LIMITED COMPANY,GAZPROM MARKETING AND TRADING LTD,300000250807105
Portsmouth City Council,PCC,Housing Revenue Account,Special Services,"Housing, Neighbourhood and Building Services",Premises-Related Expenditure,Energy costs,13-Apr-23,6712278,22.87,LIMITED COMPANY,GAZPROM MARKETING AND TRADING LTD,300000250807105
Portsmouth City Council,PCC,Highways and Transport Services,"Airports, Harbours and Toll Facilities",Portsmouth International Port,Premises-Related Expenditure,Energy costs,13-Apr-23,6712278,509.08,LIMITED COMPANY,GAZPROM MARKETING AND TRADING LTD,300000250807105
Portsmouth City Council,PCC,Other,Suspense and Capital Schemes,Portsmouth International Port,Premises-Related Expenditure,Energy costs,13-Apr-23,6712278,"1,067.34",LIMITED COMPANY,GAZPROM MARKETING AND TRADING LTD,300000250807105
Portsmouth City Council,PCC,Housing Revenue Account,Special Services,"Housing, Neighbourhood and Building Services",Premises-Related Expenditure,Energy costs,13-Apr-23,6712278,359.72,LIMITED COMPANY,GAZPROM MARKETING AND TRADING LTD,300000250807105
Portsmouth City Council,PCC,Housing Revenue Account,Special Services,"Housing, Neighbourhood and Building Services",Premises-Related Expenditure,Energy costs,13-Apr-23,6712278,294.97,LIMITED COMPANY,GAZPROM MARKETING AND TRADING LTD,300000250807105
Portsmouth City Council,PCC,Housing Revenue Account,Special Services,"Housing, Neighbourhood and Building Services",Premises-Related Expenditure,Energy costs,13-Apr-23,6712278,290.53,LIMITED COMPANY,GAZPROM MARKETING AND TRADING LTD,300000250807105
Portsmouth City Council,PCC,Housing Services,Homelessness,"Housing, Neighbourhood and Building Services",Premises-Related Expenditure,Energy costs,13-Apr-23,6712278,202.03,LIMITED COMPANY,GAZPROM MARKETING AND TRADING LTD,300000250807105
Portsmouth City Council,PCC,Other,Suspense and Capital Schemes,"Housing, Neighbourhood and Building Services",Premises-Related Expenditure,Energy costs,13-Apr-23,6712278,133.03,LIMITED COMPANY,GAZPROM MARKETING AND TRADING LTD,300000250807105
Portsmouth City Council,PCC,Housing Revenue Account,Special Services,"Housing, Neighbourhood and Building Services",Premises-Related Expenditure,Energy costs,13-Apr-23,6712278,5.52,LIMITED COMPANY,GAZPROM MARKETING AND TRADING LTD,300000250807105
Portsmouth City Council,PCC,Housing Revenue Account,Supervision and Management,"Housing, Neighbourhood and Building Services",Premises-Related Expenditure,Energy costs,13-Apr-23,6712278,441,LIMITED COMPANY,GAZPROM MARKETING AND TRADING LTD,300000250807105
Portsmouth City Council,PCC,Housing Revenue Account,Special Services,"Housing, Neighbourhood and Building Services",Premises-Related Expenditure,Energy costs,13-Apr-23,6712278,106.39,LIMITED COMPANY,GAZPROM MARKETING AND TRADING LTD,300000250807105
Portsmouth City Council,PCC,Children's and Education Services,Primary Schools,Children's Services and Education,Premises-Related Expenditure,Energy costs,13-Apr-23,6712278,194.65,LIMITED COMPANY,GAZPROM MARKETING AND TRADING LTD,300000250807105
Portsmouth City Council,PCC,Housing Revenue Account,Special Services,"Housing, Neighbourhood and Building Services",Premises-Related Expenditure,Energy costs,13-Apr-23,6712278,679.27,LIMITED COMPANY,GAZPROM MARKETING AND TRADING LTD,300000250807105
Portsmouth City Council,PCC,Highways and Transport Services,"Airports, Harbours and Toll Facilities",Portsmouth International Port,Premises-Related Expenditure,Energy costs,13-Apr-23,6712278,5.62,LIMITED COMPANY,GAZPROM MARKETING AND TRADING LTD,300000250807105
Portsmouth City Council,PCC,Children's and Education Services,Primary Schools,Children's Services and Education,Premises-Related Expenditure,Energy costs,13-Apr-23,6712278,"1,988.76",LIMITED COMPANY,GAZPROM MARKETING AND TRADING LTD,300000250807105
Portsmouth City Council,PCC,Children's and Education Services,Primary Schools,Children's Services and Education,Premises-Related Expenditure,Energy costs,13-Apr-23,6712278,72.8,LIMITED COMPANY,GAZPROM MARKETING AND TRADING LTD,300000250807105
